{"text_format":"3","workbook":"xlsx","n_sheets":11,"sheets":["COST OF ABSTRACT","SCOPE OF WORK","WORK COST","ABSTRACT OF GROUND FLOOR","MEASUREMENT GROUND FLOOR","ABSTRACT OF BOUNDARY WALL","BOUNDARY WALL MEASUREMENT","ABSTRACT OF WATER SUPPLY","WATER SUPPLY MEASUREMENT","ABSTRACT OF SANITARY WORKE","SANITARY WORK MEASUREMENT"],"read":"whole","date_system":"1900"}

{"sheet":"COST OF ABSTRACT","index":0,"n_rows":19,"n_cols":16383,"rows_kept":19,"merged":[[0,0,0,3],[1,0,1,3],[2,0,2,3],[3,2,3,3],[4,2,4,3],[5,2,5,3],[6,2,6,3],[7,2,7,3],[8,2,8,3],[9,2,9,3],[10,2,10,3],[11,2,11,3],[12,2,12,3],[13,0,13,1],[13,2,13,3],[14,0,14,1],[14,2,14,3],[15,0,15,1],[15,2,15,3],[15,4,15,5],[15,6,15,7],[15,8,15,9],[15,10,15,11],[15,12,15,13],[15,14,15,15],[15,16,15,17],[15,18,15,19],[15,20,15,21],[15,22,15,23],[15,24,15,25],[15,26,15,27],[15,28,15,29],[15,30,15,31],[15,32,15,33],[15,34,15,35],[15,36,15,37],[15,38,15,39],[15,40,15,41],[15,42,15,43],[15,44,15,45],[15,46,15,47],[15,48,15,49],[15,50,15,51],[15,52,15,53],[15,54,15,55],[15,56,15,57],[15,58,15,59],[15,60,15,61],[15,62,15,63],[15,64,15,65],[15,66,15,67],[15,68,15,69],[15,70,15,71],[15,72,15,73],[15,74,15,75],[15,76,15,77],[15,78,15,79],[15,80,15,81],[15,82,15,83],[15,84,15,85],[15,86,15,87],[15,88,15,89],[15,90,15,91],[15,92,15,93],[15,94,15,95],[15,96,15,97],[15,98,15,99],[15,100,15,101],[15,102,15,103],[15,104,15,105],[15,106,15,107],[15,108,15,109],[15,110,15,111],[15,112,15,113],[15,114,15,115],[15,116,15,117],[15,118,15,119],[15,120,15,121],[15,122,15,123],[15,124,15,125],[15,126,15,127],[15,128,15,129],[15,130,15,131],[15,132,15,133],[15,134,15,135],[15,136,15,137],[15,138,15,139],[15,140,15,141],[15,142,15,143],[15,144,15,145],[15,146,15,147],[15,148,15,149],[15,150,15,151],[15,152,15,153],[15,154,15,155],[15,156,15,157],[15,158,15,159],[15,160,15,161],[15,162,15,163],[15,164,15,165],[15,166,15,167],[15,168,15,169],[15,170,15,171],[15,172,15,173],[15,174,15,175],[15,176,15,177],[15,178,15,179],[15,180,15,181],[15,182,15,183],[15,184,15,185],[15,186,15,187],[15,188,15,189],[15,190,15,191],[15,192,15,193],[15,194,15,195],[15,196,15,197],[15,198,15,199],[15,200,15,201],[15,202,15,203],[15,204,15,205],[15,206,15,207],[15,208,15,209],[15,210,15,211],[15,212,15,213],[15,214,15,215],[15,216,15,217],[15,218,15,219],[15,220,15,221],[15,222,15,223],[15,224,15,225],[15,226,15,227],[15,228,15,229],[15,230,15,231],[15,232,15,233],[15,234,15,235],[15,236,15,237],[15,238,15,239],[15,240,15,241],[15,242,15,243],[15,244,15,245],[15,246,15,247],[15,248,15,249],[15,250,15,251],[15,252,15,253],[15,254,15,255],[15,256,15,257],[15,258,15,259],[15,260,15,261],[15,262,15,263],[15,264,15,265],[15,266,15,267],[15,268,15,269],[15,270,15,271],[15,272,15,273],[15,274,15,275],[15,276,15,277],[15,278,15,279],[15,280,15,281],[15,282,15,283],[15,284,15,285],[15,286,15,287],[15,288,15,289],[15,290,15,291],[15,292,15,293],[15,294,15,295],[15,296,15,297],[15,298,15,299],[15,300,15,301],[15,302,15,303],[15,304,15,305],[15,306,15,307],[15,308,15,309],[15,310,15,311],[15,312,15,313],[15,314,15,315],[15,316,15,317],[15,318,15,319],[15,320,15,321],[15,322,15,323],[15,324,15,325],[15,326,15,327],[15,328,15,329],[15,330,15,331],[15,332,15,333],[15,334,15,335],[15,336,15,337],[15,338,15,339],[15,340,15,341],[15,342,15,343],[15,344,15,345],[15,346,15,347],[15,348,15,349],[15,350,15,351],[15,352,15,353],[15,354,15,355],[15,356,15,357],[15,358,15,359],[15,360,15,361],[15,362,15,363],[15,364,15,365],[15,366,15,367],[15,368,15,369],[15,370,15,371],[15,372,15,373],[15,374,15,375],[15,376,15,377],[15,378,15,379],[15,380,15,381],[15,382,15,383],[15,384,15,385],[15,386,15,387],[15,388,15,389],[15,390,15,391],[15,392,15,393],[15,394,15,395],[15,396,15,397],[15,398,15,399],[15,400,15,401],[15,402,15,403],[15,404,15,405],[15,406,15,407],[15,408,15,409],[15,410,15,411],[15,412,15,413],[15,414,15,415],[15,416,15,417],[15,418,15,419],[15,420,15,421],[15,422,15,423],[15,424,15,425],[15,426,15,427],[15,428,15,429],[15,430,15,431],[15,432,15,433],[15,434,15,435],[15,436,15,437],[15,438,15,439],[15,440,15,441],[15,442,15,443],[15,444,15,445],[15,446,15,447],[15,448,15,449],[15,450,15,451],[15,452,15,453],[15,454,15,455],[15,456,15,457],[15,458,15,459],[15,460,15,461],[15,462,15,463],[15,464,15,465],[15,466,15,467],[15,468,15,469],[15,470,15,471],[15,472,15,473],[15,474,15,475],[15,476,15,477],[15,478,15,479],[15,480,15,481],[15,482,15,483],[15,484,15,485],[15,486,15,487],[15,488,15,489],[15,490,15,491],[15,492,15,493],[15,494,15,495],[15,496,15,497],[15,498,15,499],[15,500,15,501],[15,502,15,503],[15,504,15,505],[15,506,15,507],[15,508,15,509],[15,510,15,511],[15,512,15,513],[15,514,15,515],[15,516,15,517],[15,518,15,519],[15,520,15,521],[15,522,15,523],[15,524,15,525],[15,526,15,527],[15,528,15,529],[15,530,15,531],[15,532,15,533],[15,534,15,535],[15,536,15,537],[15,538,15,539],[15,540,15,541],[15,542,15,543],[15,544,15,545],[15,546,15,547],[15,548,15,549],[15,550,15,551],[15,552,15,553],[15,554,15,555],[15,556,15,557],[15,558,15,559],[15,560,15,561],[15,562,15,563],[15,564,15,565],[15,566,15,567],[15,568,15,569],[15,570,15,571],[15,572,15,573],[15,574,15,575],[15,576,15,577],[15,578,15,579],[15,580,15,581],[15,582,15,583],[15,584,15,585],[15,586,15,587],[15,588,15,589],[15,590,15,591],[15,592,15,593],[15,594,15,595],[15,596,15,597],[15,598,15,599],[15,600,15,601],[15,602,15,603],[15,604,15,605],[15,606,15,607],[15,608,15,609],[15,610,15,611],[15,612,15,613],[15,614,15,615],[15,616,15,617],[15,618,15,619],[15,620,15,621],[15,622,15,623],[15,624,15,625],[15,626,15,627],[15,628,15,629],[15,630,15,631],[15,632,15,633],[15,634,15,635],[15,636,15,637],[15,638,15,639],[15,640,15,641],[15,642,15,643],[15,644,15,645],[15,646,15,647],[15,648,15,649],[15,650,15,651],[15,652,15,653],[15,654,15,655],[15,656,15,657],[15,658,15,659],[15,660,15,661],[15,662,15,663],[15,664,15,665],[15,666,15,667],[15,668,15,669],[15,670,15,671],[15,672,15,673],[15,674,15,675],[15,676,15,677],[15,678,15,679],[15,680,15,681],[15,682,15,683],[15,684,15,685],[15,686,15,687],[15,688,15,689],[15,690,15,691],[15,692,15,693],[15,694,15,695],[15,696,15,697],[15,698,15,699],[15,700,15,701],[15,702,15,703],[15,704,15,705],[15,706,15,707],[15,708,15,709],[15,710,15,711],[15,712,15,713],[15,714,15,715],[15,716,15,717],[15,718,15,719],[15,720,15,721],[15,722,15,723],[15,724,15,725],[15,726,15,727],[15,728,15,729],[15,730,15,731],[15,732,15,733],[15,734,15,735],[15,736,15,737],[15,738,15,739],[15,740,15,741],[15,742,15,743],[15,744,15,745],[15,746,15,747],[15,748,15,749],[15,750,15,751],[15,752,15,753],[15,754,15,755],[15,756,15,757],[15,758,15,759],[15,760,15,761],[15,762,15,763],[15,764,15,765],[15,766,15,767],[15,768,15,769],[15,770,15,771],[15,772,15,773],[15,774,15,775],[15,776,15,777],[15,778,15,779],[15,780,15,781],[15,782,15,783],[15,784,15,785],[15,786,15,787],[15,788,15,789],[15,790,15,791],[15,792,15,793],[15,794,15,795],[15,796,15,797],[15,798,15,799],[15,800,15,801],[15,802,15,803],[15,804,15,805],[15,806,15,807],[15,808,15,809],[15,810,15,811],[15,812,15,813],[15,814,15,815],[15,816,15,817],[15,818,15,819],[15,820,15,821],[15,822,15,823],[15,824,15,825],[15,826,15,827],[15,828,15,829],[15,830,15,831],[15,832,15,833],[15,834,15,835],[15,836,15,837],[15,838,15,839],[15,840,15,841],[15,842,15,843],[15,844,15,845],[15,846,15,847],[15,848,15,849],[15,850,15,851],[15,852,15,853],[15,854,15,855],[15,856,15,857],[15,858,15,859],[15,860,15,861],[15,862,15,863],[15,864,15,865],[15,866,15,867],[15,868,15,869],[15,870,15,871],[15,872,15,873],[15,874,15,875],[15,876,15,877],[15,878,15,879],[15,880,15,881],[15,882,15,883],[15,884,15,885],[15,886,15,887],[15,888,15,889],[15,890,15,891],[15,892,15,893],[15,894,15,895],[15,896,15,897],[15,898,15,899],[15,900,15,901],[15,902,15,903],[15,904,15,905],[15,906,15,907],[15,908,15,909],[15,910,15,911],[15,912,15,913],[15,914,15,915],[15,916,15,917],[15,918,15,919],[15,920,15,921],[15,922,15,923],[15,924,15,925],[15,926,15,927],[15,928,15,929],[15,930,15,931],[15,932,15,933],[15,934,15,935],[15,936,15,937],[15,938,15,939],[15,940,15,941],[15,942,15,943],[15,944,15,945],[15,946,15,947],[15,948,15,949],[15,950,15,951],[15,952,15,953],[15,954,15,955],[15,956,15,957],[15,958,15,959],[15,960,15,961],[15,962,15,963],[15,964,15,965],[15,966,15,967],[15,968,15,969],[15,970,15,971],[15,972,15,973],[15,974,15,975],[15,976,15,977],[15,978,15,979],[15,980,15,981],[15,982,15,983],[15,984,15,985],[15,986,15,987],[15,988,15,989],[15,990,15,991],[15,992,15,993],[15,994,15,995],[15,996,15,997],[15,998,15,999],[15,1000,15,1001],[15,1002,15,1003],[15,1004,15,1005],[15,1006,15,1007],[15,1008,15,1009],[15,1010,15,1011],[15,1012,15,1013],[15,1014,15,1015],[15,1016,15,1017],[15,1018,15,1019],[15,1020,15,1021],[15,1022,15,1023],[15,1024,15,1025],[15,1026,15,1027],[15,1028,15,1029],[15,1030,15,1031],[15,1032,15,1033],[15,1034,15,1035],[15,1036,15,1037],[15,1038,15,1039],[15,1040,15,1041],[15,1042,15,1043],[15,1044,15,1045],[15,1046,15,1047],[15,1048,15,1049],[15,1050,15,1051],[15,1052,15,1053],[15,1054,15,1055],[15,1056,15,1057],[15,1058,15,1059],[15,1060,15,1061],[15,1062,15,1063],[15,1064,15,1065],[15,1066,15,1067],[15,1068,15,1069],[15,1070,15,1071],[15,1072,15,1073],[15,1074,15,1075],[15,1076,15,1077],[15,1078,15,1079],[15,1080,15,1081],[15,1082,15,1083],[15,1084,15,1085],[15,1086,15,1087],[15,1088,15,1089],[15,1090,15,1091],[15,1092,15,1093],[15,1094,15,1095],[15,1096,15,1097],[15,1098,15,1099],[15,1100,15,1101],[15,1102,15,1103],[15,1104,15,1105],[15,1106,15,1107],[15,1108,15,1109],[15,1110,15,1111],[15,1112,15,1113],[15,1114,15,1115],[15,1116,15,1117],[15,1118,15,1119],[15,1120,15,1121],[15,1122,15,1123],[15,1124,15,1125],[15,1126,15,1127],[15,1128,15,1129],[15,1130,15,1131],[15,1132,15,1133],[15,1134,15,1135],[15,1136,15,1137],[15,1138,15,1139],[15,1140,15,1141],[15,1142,15,1143],[15,1144,15,1145],[15,1146,15,1147],[15,1148,15,1149],[15,1150,15,1151],[15,1152,15,1153],[15,1154,15,1155],[15,1156,15,1157],[15,1158,15,1159],[15,1160,15,1161],[15,1162,15,1163],[15,1164,15,1165],[15,1166,15,1167],[15,1168,15,1169],[15,1170,15,1171],[15,1172,15,1173],[15,1174,15,1175],[15,1176,15,1177],[15,1178,15,1179],[15,1180,15,1181],[15,1182,15,1183],[15,1184,15,1185],[15,1186,15,1187],[15,1188,15,1189],[15,1190,15,1191],[15,1192,15,1193],[15,1194,15,1195],[15,1196,15,1197],[15,1198,15,1199],[15,1200,15,1201],[15,1202,15,1203],[15,1204,15,1205],[15,1206,15,1207],[15,1208,15,1209],[15,1210,15,1211],[15,1212,15,1213],[15,1214,15,1215],[15,1216,15,1217],[15,1218,15,1219],[15,1220,15,1221],[15,1222,15,1223],[15,1224,15,1225],[15,1226,15,1227],[15,1228,15,1229],[15,1230,15,1231],[15,1232,15,1233],[15,1234,15,1235],[15,1236,15,1237],[15,1238,15,1239],[15,1240,15,1241],[15,1242,15,1243],[15,1244,15,1245],[15,1246,15,1247],[15,1248,15,1249],[15,1250,15,1251],[15,1252,15,1253],[15,1254,15,1255],[15,1256,15,1257],[15,1258,15,1259],[15,1260,15,1261],[15,1262,15,1263],[15,1264,15,1265],[15,1266,15,1267],[15,1268,15,1269],[15,1270,15,1271],[15,1272,15,1273],[15,1274,15,1275],[15,1276,15,1277],[15,1278,15,1279],[15,1280,15,1281],[15,1282,15,1283],[15,1284,15,1285],[15,1286,15,1287],[15,1288,15,1289],[15,1290,15,1291],[15,1292,15,1293],[15,1294,15,1295],[15,1296,15,1297],[15,1298,15,1299],[15,1300,15,1301],[15,1302,15,1303],[15,1304,15,1305],[15,1306,15,1307],[15,1308,15,1309],[15,1310,15,1311],[15,1312,15,1313],[15,1314,15,1315],[15,1316,15,1317],[15,1318,15,1319],[15,1320,15,1321],[15,1322,15,1323],[15,1324,15,1325],[15,1326,15,1327],[15,1328,15,1329],[15,1330,15,1331],[15,1332,15,1333],[15,1334,15,1335],[15,1336,15,1337],[15,1338,15,1339],[15,1340,15,1341],[15,1342,15,1343],[15,1344,15,1345],[15,1346,15,1347],[15,1348,15,1349],[15,1350,15,1351],[15,1352,15,1353],[15,1354,15,1355],[15,1356,15,1357],[15,1358,15,1359],[15,1360,15,1361],[15,1362,15,1363],[15,1364,15,1365],[15,1366,15,1367],[15,1368,15,1369],[15,1370,15,1371],[15,1372,15,1373],[15,1374,15,1375],[15,1376,15,1377],[15,1378,15,1379],[15,1380,15,1381],[15,1382,15,1383],[15,1384,15,1385],[15,1386,15,1387],[15,1388,15,1389],[15,1390,15,1391],[15,1392,15,1393],[15,1394,15,1395],[15,1396,15,1397],[15,1398,15,1399],[15,1400,15,1401],[15,1402,15,1403],[15,1404,15,1405],[15,1406,15,1407],[15,1408,15,1409],[15,1410,15,1411],[15,1412,15,1413],[15,1414,15,1415],[15,1416,15,1417],[15,1418,15,1419],[15,1420,15,1421],[15,1422,15,1423],[15,1424,15,1425],[15,1426,15,1427],[15,1428,15,1429],[15,1430,15,1431],[15,1432,15,1433],[15,1434,15,1435],[15,1436,15,1437],[15,1438,15,1439],[15,1440,15,1441],[15,1442,15,1443],[15,1444,15,1445],[15,1446,15,1447],[15,1448,15,1449],[15,1450,15,1451],[15,1452,15,1453],[15,1454,15,1455],[15,1456,15,1457],[15,1458,15,1459],[15,1460,15,1461],[15,1462,15,1463],[15,1464,15,1465],[15,1466,15,1467],[15,1468,15,1469],[15,1470,15,1471],[15,1472,15,1473],[15,1474,15,1475],[15,1476,15,1477],[15,1478,15,1479],[15,1480,15,1481],[15,1482,15,1483],[15,1484,15,1485],[15,1486,15,1487],[15,1488,15,1489],[15,1490,15,1491],[15,1492,15,1493],[15,1494,15,1495],[15,1496,15,1497],[15,1498,15,1499],[15,1500,15,1501],[15,1502,15,1503],[15,1504,15,1505],[15,1506,15,1507],[15,1508,15,1509],[15,1510,15,1511],[15,1512,15,1513],[15,1514,15,1515],[15,1516,15,1517],[15,1518,15,1519],[15,1520,15,1521],[15,1522,15,1523],[15,1524,15,1525],[15,1526,15,1527],[15,1528,15,1529],[15,1530,15,1531],[15,1532,15,1533],[15,1534,15,1535],[15,1536,15,1537],[15,1538,15,1539],[15,1540,15,1541],[15,1542,15,1543],[15,1544,15,1545],[15,1546,15,1547],[15,1548,15,1549],[15,1550,15,1551],[15,1552,15,1553],[15,1554,15,1555],[15,1556,15,1557],[15,1558,15,1559],[15,1560,15,1561],[15,1562,15,1563],[15,1564,15,1565],[15,1566,15,1567],[15,1568,15,1569],[15,1570,15,1571],[15,1572,15,1573],[15,1574,15,1575],[15,1576,15,1577],[15,1578,15,1579],[15,1580,15,1581],[15,1582,15,1583],[15,1584,15,1585],[15,1586,15,1587],[15,1588,15,1589],[15,1590,15,1591],[15,1592,15,1593],[15,1594,15,1595],[15,1596,15,1597],[15,1598,15,1599],[15,1600,15,1601],[15,1602,15,1603],[15,1604,15,1605],[15,1606,15,1607],[15,1608,15,1609],[15,1610,15,1611],[15,1612,15,1613],[15,1614,15,1615],[15,1616,15,1617],[15,1618,15,1619],[15,1620,15,1621],[15,1622,15,1623],[15,1624,15,1625],[15,1626,15,1627],[15,1628,15,1629],[15,1630,15,1631],[15,1632,15,1633],[15,1634,15,1635],[15,1636,15,1637],[15,1638,15,1639],[15,1640,15,1641],[15,1642,15,1643],[15,1644,15,1645],[15,1646,15,1647],[15,1648,15,1649],[15,1650,15,1651],[15,1652,15,1653],[15,1654,15,1655],[15,1656,15,1657],[15,1658,15,1659],[15,1660,15,1661],[15,1662,15,1663],[15,1664,15,1665],[15,1666,15,1667],[15,1668,15,1669],[15,1670,15,1671],[15,1672,15,1673],[15,1674,15,1675],[15,1676,15,1677],[15,1678,15,1679],[15,1680,15,1681],[15,1682,15,1683],[15,1684,15,1685],[15,1686,15,1687],[15,1688,15,1689],[15,1690,15,1691],[15,1692,15,1693],[15,1694,15,1695],[15,1696,15,1697],[15,1698,15,1699],[15,1700,15,1701],[15,1702,15,1703],[15,1704,15,1705],[15,1706,15,1707],[15,1708,15,1709],[15,1710,15,1711],[15,1712,15,1713],[15,1714,15,1715],[15,1716,15,1717],[15,1718,15,1719],[15,1720,15,1721],[15,1722,15,1723],[15,1724,15,1725],[15,1726,15,1727],[15,1728,15,1729],[15,1730,15,1731],[15,1732,15,1733],[15,1734,15,1735],[15,1736,15,1737],[15,1738,15,1739],[15,1740,15,1741],[15,1742,15,1743],[15,1744,15,1745],[15,1746,15,1747],[15,1748,15,1749],[15,1750,15,1751],[15,1752,15,1753],[15,1754,15,1755],[15,1756,15,1757],[15,1758,15,1759],[15,1760,15,1761],[15,1762,15,1763],[15,1764,15,1765],[15,1766,15,1767],[15,1768,15,1769],[15,1770,15,1771],[15,1772,15,1773],[15,1774,15,1775],[15,1776,15,1777],[15,1778,15,1779],[15,1780,15,1781],[15,1782,15,1783],[15,1784,15,1785],[15,1786,15,1787],[15,1788,15,1789],[15,1790,15,1791],[15,1792,15,1793],[15,1794,15,1795],[15,1796,15,1797],[15,1798,15,1799],[15,1800,15,1801],[15,1802,15,1803],[15,1804,15,1805],[15,1806,15,1807],[15,1808,15,1809],[15,1810,15,1811],[15,1812,15,1813],[15,1814,15,1815],[15,1816,15,1817],[15,1818,15,1819],[15,1820,15,1821],[15,1822,15,1823],[15,1824,15,1825],[15,1826,15,1827],[15,1828,15,1829],[15,1830,15,1831],[15,1832,15,1833],[15,1834,15,1835],[15,1836,15,1837],[15,1838,15,1839],[15,1840,15,1841],[15,1842,15,1843],[15,1844,15,1845],[15,1846,15,1847],[15,1848,15,1849],[15,1850,15,1851],[15,1852,15,1853],[15,1854,15,1855],[15,1856,15,1857],[15,1858,15,1859],[15,1860,15,1861],[15,1862,15,1863],[15,1864,15,1865],[15,1866,15,1867],[15,1868,15,1869],[15,1870,15,1871],[15,1872,15,1873],[15,1874,15,1875],[15,1876,15,1877],[15,1878,15,1879],[15,1880,15,1881],[15,1882,15,1883],[15,1884,15,1885],[15,1886,15,1887],[15,1888,15,1889],[15,1890,15,1891],[15,1892,15,1893],[15,1894,15,1895],[15,1896,15,1897],[15,1898,15,1899],[15,1900,15,1901],[15,1902,15,1903],[15,1904,15,1905],[15,1906,15,1907],[15,1908,15,1909],[15,1910,15,1911],[15,1912,15,1913],[15,1914,15,1915],[15,1916,15,1917],[15,1918,15,1919],[15,1920,15,1921],[15,1922,15,1923],[15,1924,15,1925],[15,1926,15,1927],[15,1928,15,1929],[15,1930,15,1931],[15,1932,15,1933],[15,1934,15,1935],[15,1936,15,1937],[15,1938,15,1939],[15,1940,15,1941],[15,1942,15,1943],[15,1944,15,1945],[15,1976,15,1977],[15,1978,15,1979],[15,1980,15,1981],[15,1982,15,1983],[16,0,16,1],[16,2,16,3],[17,0,17,1],[17,2,17,3],[18,0,18,1],[18,2,18,3]],"merged_total":8215,"flags":["merged_cut"]}
["DETAILED ESTIMATE REPORT FOR P.H.C. CENTER, SUMAN NAGAR, HARIDWAR"]
["ABSTRACT OF COST"]
[]
["Sl.No.","Description","Amount (DSR/SOR-2023)"]
[]
[1,"GROUND FLOOR",{"$f":"'WORK COST'!C11","v":{"v":0,"d":"0.00"}}]
[]
[2,"ELECTRICAL   WORK    TOTAL (A) 08 %",{"$f":"'WORK COST'!C12","v":{"v":0,"d":"0.00"}}]
[]
[3,"BOUNDARY WALL ",{"$f":"'WORK COST'!C15","v":{"v":0,"d":"0.00"}}]
[4,"WATER SUPPLY",{"$f":"'WORK COST'!C13","v":{"v":0,"d":"0.00"}}]
[]
[5,"SANITARY WORKS",{"$f":"'WORK COST'!C14","v":{"v":0,"d":"0.00"}}]
["TOTAL ",null,{"$f":"SUM(C6:C13)","v":{"v":0,"d":"0.00"}}]
[]
["PHHF Contribution (85%)",null,{"$f":"C14*85%","v":{"v":0,"d":"0.00"}},null,"ITC Part 85%",null,"ITC Part 85%",null,"ITC Part 85%",null,"ITC Part 85%",null,"ITC Part 85%",null,"ITC Part 85%",null,"ITC Part 85%",null,"ITC Part 85%",null,"ITC Part 85%",null,"ITC Part 85%",null,"ITC Part 85%",null,"ITC Part 85%",null,"ITC Part 85%",null,"ITC Part 85%",null,"ITC Part 85%",null,"ITC Part 85%",null,"ITC Part 85%",null,"ITC Part 85%",null,"ITC Part 85%",null,"ITC Part 85%",null,"ITC Part 85%",null,"ITC Part 85%",null,"ITC Part 85%",null,"ITC Part 85%",null,"ITC Part 85%",null,"ITC Part 85%",null,"ITC Part 85%",null,"ITC Part 85%",null,"ITC Part 85%",null,"ITC Part 85%",null,"ITC Part 85%",null,"ITC Part 85%",null,"ITC Part 85%",null,"ITC Part 85%",null,"ITC Part 85%",null,"ITC Part 85%",null,"ITC Part 85%",null,"ITC Part 85%",null,"ITC Part 85%",null,"ITC Part 85%",null,"ITC Part 85%",null,"ITC Part 85%",null,"ITC Part 85%",null,"ITC Part 85%",null,"ITC Part 85%",null,"ITC Part 85%",null,"ITC Part 85%",null,"ITC Part 85%",null,"ITC Part 85%",null,"ITC Part 85%",null,"ITC Part 85%",null,"ITC Part 85%",null,"ITC Part 85%",null,"ITC Part 85%",null,"ITC Part 85%",null,"ITC Part 85%",null,"ITC Part 85%",null,"ITC Part 85%",null,"ITC Part 85%",null,"ITC Part 85%",null,"ITC Part 85%",null,"ITC Part 85%",null,"ITC Part 85%",null,"ITC Part 85%",null,"ITC Part 85%",null,"ITC Part 85%",null,"ITC Part 85%",null,"ITC Part 85%",null,"ITC Part 85%",null,"ITC Part 85%",null,"ITC Part 85%",null,"ITC Part 85%",null,"ITC Part 85%",null,"ITC Part 85%",null,"ITC Part 85%",null,"ITC Part 85%",null,"ITC Part 85%",null,"ITC Part 85%",null,"ITC Part 85%",null,"ITC Part 85%",null,"ITC Part 85%",null,"ITC Part 85%",null,"ITC Part 85%",null,"ITC Part 85%",null,"ITC Part 85%",null,"ITC Part 85%",null,"ITC Part 85%",null,"ITC Part 85%",null,"ITC Part 85%",null,"ITC Part 85%",null,"ITC Part 85%",null,"ITC Part 85%",null,"ITC Part 85%",null,"ITC Part 85%",null,"ITC Part 85%",null,"ITC Part 85%",null,"ITC Part 85%",null,"ITC Part 85%",null,"ITC Part 85%",null,"ITC Part 85%",null,"ITC Part 85%",null,"ITC Part 85%",null,"ITC Part 85%",null,"ITC Part 85%",null,"ITC Part 85%",null,"ITC Part 85%",null,"ITC Part 85%",null,"ITC Part 85%",null,"ITC Part 85%",null,"ITC Part 85%",null,"ITC Part 85%",null,"ITC Part 85%",null,"ITC Part 85%",null,"ITC Part 85%",null,"ITC Part 85%",null,"ITC Part 85%",null,"ITC Part 85%",null,"ITC Part 85%",null,"ITC Part 85%",null,"ITC Part 85%",null,"ITC Part 85%",null,"ITC Part 85%",null,"ITC Part 85%",null,"ITC Part 85%",null,"ITC Part 85%",null,"ITC Part 85%",null,"ITC Part 85%",null,"ITC Part 85%",null,"ITC Part 85%",null,"ITC Part 85%",null,"ITC Part 85%",null,"ITC Part 85%",null,"ITC Part 85%",null,"ITC Part 85%",null,"ITC Part 85%",null,"ITC Part 85%",null,"ITC Part 85%",null,"ITC Part 85%",null,"ITC Part 85%",null,"ITC Part 85%",null,"ITC Part 85%",null,"ITC Part 85%",null,"ITC Part 85%",null,"ITC Part 85%",null,"ITC Part 85%",null,"ITC Part 85%",null,"ITC Part 85%",null,"ITC Part 85%",null,"ITC Part 85%",null,"ITC Part 85%",null,"ITC Part 85%",null,"ITC Part 85%",null,"ITC Part 85%",null,"ITC Part 85%",null,"ITC Part 85%",null,"ITC Part 85%",null,"ITC Part 85%",null,"ITC Part 85%",null,"ITC Part 85%",null,"ITC Part 85%",null,"ITC Part 85%",null,"ITC Part 85%",null,"ITC Part 85%",null,"ITC Part 85%",null,"ITC Part 85%",null,"ITC Part 85%",null,"ITC Part 85%",null,"ITC Part 85%",null,"ITC Part 85%",null,"ITC Part 85%",null,"ITC Part 85%",null,"ITC Part 85%",null,"ITC Part 85%",null,"ITC Part 85%",null,"ITC Part 85%",null,"ITC Part 85%",null,"ITC Part 85%",null,"ITC Part 85%",null,"ITC Part 85%",null,"ITC Part 85%",null,"ITC Part 85%",null,"ITC Part 85%",null,"ITC Part 85%",null,"ITC Part 85%",null,"ITC Part 85%",null,"ITC Part 85%",null,"ITC Part 85%",null,"ITC Part 85%",null,"ITC Part 85%",null,"ITC Part 85%",null,"ITC Part 85%",null,"ITC Part 85%",null,"ITC Part 85%",null,"ITC Part 85%",null,"ITC Part 85%",null,"ITC Part 85%",null,"ITC Part 85%",null,"ITC Part 85%",null,"ITC Part 85%",null,"ITC Part 85%",null,"ITC Part 85%",null,"ITC Part 85%",null,"ITC Part 85%",null,"ITC Part 85%",null,"ITC Part 85%",null,"ITC Part 85%",null,"ITC Part 85%",null,"ITC Part 85%",null,"ITC Part 85%",null,"ITC Part 85%",null,"ITC Part 85%",null,"ITC Part 85%",null,"ITC Part 85%",null,"ITC Part 85%",null,"ITC Part 85%",null,"ITC Part 85%",null,"ITC Part 85%",null,"ITC Part 85%",null,"ITC Part 85%",null,"ITC Part 85%",null,"ITC Part 85%",null,"ITC Part 85%",null,"ITC Part 85%",null,"ITC Part 85%",null,"ITC Part 85%",null,"ITC Part 85%",null,"ITC Part 85%",null,"ITC Part 85%",null,"ITC Part 85%",null,"ITC Part 85%",null,"ITC Part 85%",null,"ITC Part 85%",null,"ITC Part 85%",null,"ITC Part 85%",null,"ITC Part 85%",null,"ITC Part 85%",null,"ITC Part 85%",null,"ITC Part 85%",null,"ITC Part 85%",null,"ITC Part 85%",null,"ITC Part 85%",null,"ITC Part 85%",null,"ITC Part 85%",null,"ITC Part 85%",null,"ITC Part 85%",null,"ITC Part 85%",null,"ITC Part 85%",null,"ITC Part 85%",null,"ITC Part 85%",null,"ITC Part 85%",null,"ITC Part 85%",null,"ITC Part 85%",null,"ITC Part 85%",null,"ITC Part 85%",null,"ITC Part 85%",null,"ITC Part 85%",null,"ITC Part 85%",null,"ITC Part 85%",null,"ITC Part 85%",null,"ITC Part 85%",null,"ITC Part 85%",null,"ITC Part 85%",null,"ITC Part 85%",null,"ITC Part 85%",null,"ITC Part 85%",null,"ITC Part 85%",null,"ITC Part 85%",null,"ITC Part 85%",null,"ITC Part 85%",null,"ITC Part 85%",null,"ITC Part 85%",null,"ITC Part 85%",null,"ITC Part 85%",null,"ITC Part 85%",null,"ITC Part 85%",null,"ITC Part 85%",null,"ITC Part 85%",null,"ITC Part 85%",null,"ITC Part 85%",null,"ITC Part 85%",null,"ITC Part 85%",null,"ITC Part 85%",null,"ITC Part 85%",null,"ITC Part 85%",null,"ITC Part 85%",null,"ITC Part 85%",null,"ITC Part 85%",null,"ITC Part 85%",null,"ITC Part 85%",null,"ITC Part 85%",null,"ITC Part 85%",null,"ITC Part 85%",null,"ITC Part 85%",null,"ITC Part 85%",null,"ITC Part 85%",null,"ITC Part 85%",null,"ITC Part 85%",null,"ITC Part 85%",null,"ITC Part 85%",null,"ITC Part 85%",null,"ITC Part 85%",null,"ITC Part 85%",null,"ITC Part 85%",null,"ITC Part 85%",null,"ITC Part 85%",null,"ITC Part 85%",null,"ITC Part 85%",null,"ITC Part 85%",null,"ITC Part 85%",null,"ITC Part 85%",null,"ITC Part 85%",null,"ITC Part 85%",null,"ITC Part 85%",null,"ITC Part 85%",null,"ITC Part 85%",null,"ITC Part 85%",null,"ITC Part 85%",null,"ITC Part 85%",null,"ITC Part 85%",null,"ITC Part 85%",null,"ITC Part 85%",null,"ITC Part 85%",null,"ITC Part 85%",null,"ITC Part 85%",null,"ITC Part 85%",null,"ITC Part 85%",null,"ITC Part 85%",null,"ITC Part 85%",null,"ITC Part 85%",null,"ITC Part 85%",null,"ITC Part 85%",null,"ITC Part 85%",null,"ITC Part 85%",null,"ITC Part 85%",null,"ITC Part 85%",null,"ITC Part 85%",null,"ITC Part 85%",null,"ITC Part 85%",null,"ITC Part 85%",null,"ITC Part 85%",null,"ITC Part 85%",null,"ITC Part 85%",null,"ITC Part 85%",null,"ITC Part 85%",null,"ITC Part 85%",null,"ITC Part 85%",null,"ITC Part 85%",null,"ITC Part 85%",null,"ITC Part 85%",null,"ITC Part 85%",null,"ITC Part 85%",null,"ITC Part 85%",null,"ITC Part 85%",null,"ITC Part 85%",null,"ITC Part 85%",null,"ITC Part 85%",null,"ITC Part 85%",null,"ITC Part 85%",null,"ITC Part 85%",null,"ITC Part 85%",null,"ITC Part 85%",null,"ITC Part 85%",null,"ITC Part 85%",null,"ITC Part 85%",null,"ITC Part 85%",null,"ITC Part 85%",null,"ITC Part 85%",null,"ITC Part 85%",null,"ITC Part 85%",null,"ITC Part 85%",null,"ITC Part 85%",null,"ITC Part 85%",null,"ITC Part 85%",null,"ITC Part 85%",null,"ITC Part 85%",null,"ITC Part 85%",null,"ITC Part 85%",null,"ITC Part 85%",null,"ITC Part 85%",null,"ITC Part 85%",null,"ITC Part 85%",null,"ITC Part 85%",null,"ITC Part 85%",null,"ITC Part 85%",null,"ITC Part 85%",null,"ITC Part 85%",null,"ITC Part 85%",null,"ITC Part 85%",null,"ITC Part 85%",null,"ITC Part 85%",null,"ITC Part 85%",null,"ITC Part 85%",null,"ITC Part 85%",null,"ITC Part 85%",null,"ITC Part 85%",null,"ITC Part 85%",null,"ITC Part 85%",null,"ITC Part 85%",null,"ITC Part 85%",null,"ITC Part 85%",null,"ITC Part 85%",null,"ITC Part 85%",null,"ITC Part 85%",null,"ITC Part 85%",null,"ITC Part 85%",null,"ITC Part 85%",null,"ITC Part 85%",null,"ITC Part 85%",null,"ITC Part 85%",null,"ITC Part 85%",null,"ITC Part 85%",null,"ITC Part 85%",null,"ITC Part 85%",null,"ITC Part 85%",null,"ITC Part 85%",null,"ITC Part 85%",null,"ITC Part 85%",null,"ITC Part 85%",null,"ITC Part 85%",null,"ITC Part 85%",null,"ITC Part 85%",null,"ITC Part 85%",null,"ITC Part 85%",null,"ITC Part 85%",null,"ITC Part 85%",null,"ITC Part 85%",null,"ITC Part 85%",null,"ITC Part 85%",null,"ITC Part 85%",null,"ITC Part 85%",null,"ITC Part 85%",null,"ITC Part 85%",null,"ITC Part 85%",null,"ITC Part 85%",null,"ITC Part 85%",null,"ITC Part 85%",null,"ITC Part 85%",null,"ITC Part 85%",null,"ITC Part 85%",null,"ITC Part 85%",null,"ITC Part 85%",null,"ITC Part 85%",null,"ITC Part 85%",null,"ITC Part 85%",null,"ITC Part 85%",null,"ITC Part 85%",null,"ITC Part 85%",null,"ITC Part 85%",null,"ITC Part 85%",null,"ITC Part 85%",null,"ITC Part 85%",null,"ITC Part 85%",null,"ITC Part 85%",null,"ITC Part 85%",null,"ITC Part 85%",null,"ITC Part 85%",null,"ITC Part 85%",null,"ITC Part 85%",null,"ITC Part 85%",null,"ITC Part 85%",null,"ITC Part 85%",null,"ITC Part 85%",null,"ITC Part 85%",null,"ITC Part 85%",null,"ITC Part 85%",null,"ITC Part 85%",null,"ITC Part 85%",null,"ITC Part 85%",null,"ITC Part 85%",null,"ITC Part 85%",null,"ITC Part 85%",null,"ITC Part 85%",null,"ITC Part 85%",null,"ITC Part 85%",null,"ITC Part 85%",null,"ITC Part 85%",null,"ITC Part 85%",null,"ITC Part 85%",null,"ITC Part 85%",null,"ITC Part 85%",null,"ITC Part 85%",null,"ITC Part 85%",null,"ITC Part 85%",null,"ITC Part 85%",null,"ITC Part 85%",null,"ITC Part 85%",null,"ITC Part 85%",null,"ITC Part 85%",null,"ITC Part 85%",null,"ITC Part 85%",null,"ITC Part 85%",null,"ITC Part 85%",null,"ITC Part 85%",null,"ITC Part 85%",null,"ITC Part 85%",null,"ITC Part 85%",null,"ITC Part 85%",null,"ITC Part 85%",null,"ITC Part 85%",null,"ITC Part 85%",null,"ITC Part 85%",null,"ITC Part 85%",null,"ITC Part 85%",null,"ITC Part 85%",null,"ITC Part 85%",null,"ITC Part 85%",null,"ITC Part 85%",null,"ITC Part 85%",null,"ITC Part 85%",null,"ITC Part 85%",null,"ITC Part 85%",null,"ITC Part 85%",null,"ITC Part 85%",null,"ITC Part 85%",null,"ITC Part 85%",null,"ITC Part 85%",null,"ITC Part 85%",null,"ITC Part 85%",null,"ITC Part 85%",null,"ITC Part 85%",null,"ITC Part 85%",null,"ITC Part 85%",null,"ITC Part 85%",null,"ITC Part 85%",null,"ITC Part 85%",null,"ITC Part 85%",null,"ITC Part 85%",null,"ITC Part 85%",null,"ITC Part 85%",null,"ITC Part 85%",null,"ITC Part 85%",null,"ITC Part 85%",null,"ITC Part 85%",null,"ITC Part 85%",null,"ITC Part 85%",null,"ITC Part 85%",null,"ITC Part 85%",null,"ITC Part 85%",null,"ITC Part 85%",null,"ITC Part 85%",null,"ITC Part 85%",null,"ITC Part 85%",null,"ITC Part 85%",null,"ITC Part 85%",null,"ITC Part 85%",null,"ITC Part 85%",null,"ITC Part 85%",null,"ITC Part 85%",null,"ITC Part 85%",null,"ITC Part 85%",null,"ITC Part 85%",null,"ITC Part 85%",null,"ITC Part 85%",null,"ITC Part 85%",null,"ITC Part 85%",null,"ITC Part 85%",null,"ITC Part 85%",null,"ITC Part 85%",null,"ITC Part 85%",null,"ITC Part 85%",null,"ITC Part 85%",null,"ITC Part 85%",null,"ITC Part 85%",null,"ITC Part 85%",null,"ITC Part 85%",null,"ITC Part 85%",null,"ITC Part 85%",null,"ITC Part 85%",null,"ITC Part 85%",null,"ITC Part 85%",null,"ITC Part 85%",null,"ITC Part 85%",null,"ITC Part 85%",null,"ITC Part 85%",null,"ITC Part 85%",null,"ITC Part 85%",null,"ITC Part 85%",null,"ITC Part 85%",null,"ITC Part 85%",null,"ITC Part 85%",null,"ITC Part 85%",null,"ITC Part 85%",null,"ITC Part 85%",null,"ITC Part 85%",null,"ITC Part 85%",null,"ITC Part 85%",null,"ITC Part 85%",null,"ITC Part 85%",null,"ITC Part 85%",null,"ITC Part 85%",null,"ITC Part 85%",null,"ITC Part 85%",null,"ITC Part 85%",null,"ITC Part 85%",null,"ITC Part 85%",null,"ITC Part 85%",null,"ITC Part 85%",null,"ITC Part 85%",null,"ITC Part 85%",null,"ITC Part 85%",null,"ITC Part 85%",null,"ITC Part 85%",null,"ITC Part 85%",null,"ITC Part 85%",null,"ITC Part 85%",null,"ITC Part 85%",null,"ITC Part 85%",null,"ITC Part 85%",null,"ITC Part 85%",null,"ITC Part 85%",null,"ITC Part 85%",null,"ITC Part 85%",null,"ITC Part 85%",null,"ITC Part 85%",null,"ITC Part 85%",null,"ITC Part 85%",null,"ITC Part 85%",null,"ITC Part 85%",null,"ITC Part 85%",null,"ITC Part 85%",null,"ITC Part 85%",null,"ITC Part 85%",null,"ITC Part 85%",null,"ITC Part 85%",null,"ITC Part 85%",null,"ITC Part 85%",null,"ITC Part 85%",null,"ITC Part 85%",null,"ITC Part 85%",null,"ITC Part 85%",null,"ITC Part 85%",null,"ITC Part 85%",null,"ITC Part 85%",null,"ITC Part 85%",null,"ITC Part 85%",null,"ITC Part 85%",null,"ITC Part 85%",null,"ITC Part 85%",null,"ITC Part 85%",null,"ITC Part 85%",null,"ITC Part 85%",null,"ITC Part 85%",null,"ITC Part 85%",null,"ITC Part 85%",null,"ITC Part 85%",null,"ITC Part 85%",null,"ITC Part 85%",null,"ITC Part 85%",null,"ITC Part 85%",null,"ITC Part 85%",null,"ITC Part 85%",null,"ITC Part 85%",null,"ITC Part 85%",null,"ITC Part 85%",null,"ITC Part 85%",null,"ITC Part 85%",null,"ITC Part 85%",null,"ITC Part 85%",null,"ITC Part 85%",null,"ITC Part 85%",null,"ITC Part 85%",null,"ITC Part 85%",null,"ITC Part 85%",null,"ITC Part 85%",null,"ITC Part 85%",null,"ITC Part 85%",null,"ITC Part 85%",null,"ITC Part 85%",null,"ITC Part 85%",null,"ITC Part 85%",null,"ITC Part 85%",null,"ITC Part 85%",null,"ITC Part 85%",null,"ITC Part 85%",null,"ITC Part 85%",null,"ITC Part 85%",null,"ITC Part 85%",null,"ITC Part 85%",null,"ITC Part 85%",null,"ITC Part 85%",null,"ITC Part 85%",null,"ITC Part 85%",null,"ITC Part 85%",null,"ITC Part 85%",null,"ITC Part 85%",null,"ITC Part 85%",null,"ITC Part 85%",null,"ITC Part 85%",null,"ITC Part 85%",null,"ITC Part 85%",null,"ITC Part 85%",null,"ITC Part 85%",null,"ITC Part 85%",null,"ITC Part 85%",null,"ITC Part 85%",null,"ITC Part 85%",null,"ITC Part 85%",null,"ITC Part 85%",null,"ITC Part 85%",null,"ITC Part 85%",null,"ITC Part 85%",null,"ITC Part 85%",null,"ITC Part 85%",null,"ITC Part 85%",null,"ITC Part 85%",null,"ITC Part 85%",null,"ITC Part 85%",null,"ITC Part 85%",null,"ITC Part 85%",null,"ITC Part 85%",null,"ITC Part 85%",null,"ITC Part 85%",null,"ITC Part 85%",null,"ITC Part 85%",null,"ITC Part 85%",null,"ITC Part 85%",null,"ITC Part 85%",null,"ITC Part 85%",null,"ITC Part 85%",null,"ITC Part 85%",null,"ITC Part 85%",null,"ITC Part 85%",null,"ITC Part 85%",null,"ITC Part 85%",null,"ITC Part 85%",null,"ITC Part 85%",null,"ITC Part 85%",null,"ITC Part 85%",null,"ITC Part 85%",null,"ITC Part 85%",null,"ITC Part 85%",null,"ITC Part 85%",null,"ITC Part 85%",null,"ITC Part 85%",null,"ITC Part 85%",null,"ITC Part 85%",null,"ITC Part 85%",null,"ITC Part 85%",null,"ITC Part 85%",null,"ITC Part 85%",null,"ITC Part 85%",null,"ITC Part 85%",null,"ITC Part 85%",null,"ITC Part 85%",null,"ITC Part 85%",null,"ITC Part 85%",null,"ITC Part 85%",null,"ITC Part 85%",null,"ITC Part 85%",null,"ITC Part 85%",null,"ITC Part 85%",null,"ITC Part 85%",null,"ITC Part 85%",null,"ITC Part 85%",null,"ITC Part 85%",null,"ITC Part 85%",null,"ITC Part 85%",null,"ITC Part 85%",null,"ITC Part 85%",null,"ITC Part 85%",null,"ITC Part 85%",null,"ITC Part 85%",null,"ITC Part 85%",null,"ITC Part 85%",null,"ITC Part 85%",null,"ITC Part 85%",null,"ITC Part 85%",null,"ITC Part 85%",null,"ITC Part 85%",null,"ITC Part 85%",null,"ITC Part 85%",null,"ITC Part 85%",null,"ITC Part 85%",null,"ITC Part 85%",null,"ITC Part 85%",null,"ITC Part 85%",null,"ITC Part 85%",null,"ITC Part 85%",null,"ITC Part 85%",null,"ITC Part 85%",null,"ITC Part 85%",null,"ITC Part 85%",null,"ITC Part 85%",null,"ITC Part 85%",null,"ITC Part 85%",null,"ITC Part 85%",null,"ITC Part 85%",null,"ITC Part 85%",null,"ITC Part 85%",null,"ITC Part 85%",null,"ITC Part 85%",null,"ITC Part 85%",null,"ITC Part 85%",null,"ITC Part 85%",null,"ITC Part 85%",null,"ITC Part 85%",null,"ITC Part 85%",null,"ITC Part 85%",null,"ITC Part 85%",null,"ITC Part 85%",null,"ITC Part 85%",null,"ITC Part 85%",null,"ITC Part 85%",null,"ITC Part 85%",null,"ITC Part 85%",null,"ITC Part 85%",null,"ITC Part 85%",null,"ITC Part 85%",null,"ITC Part 85%",null,"ITC Part 85%",null,"ITC Part 85%",null,"ITC Part 85%",null,"ITC Part 85%",null,"ITC Part 85%",null,"ITC Part 85%",null,"ITC Part 85%",null,"ITC Part 85%",null,"ITC Part 85%",null,"ITC Part 85%",null,"ITC Part 85%",null,"ITC Part 85%",null,"ITC Part 85%",null,"ITC Part 85%",null,"ITC Part 85%",null,"ITC Part 85%",null,"ITC Part 85%",null,"ITC Part 85%",null,"ITC Part 85%",null,"ITC Part 85%",null,"ITC Part 85%",null,"ITC Part 85%",null,"ITC Part 85%",null,"ITC Part 85%",null,"ITC Part 85%",null,"ITC Part 85%",null,"ITC Part 85%",null,"ITC Part 85%",null,"ITC Part 85%",null,"ITC Part 85%",null,"ITC Part 85%",null,"ITC Part 85%",null,"ITC Part 85%",null,"ITC Part 85%",null,"ITC Part 85%",null,"ITC Part 85%",null,"ITC Part 85%",null,"ITC Part 85%",null,"ITC Part 85%",null,"ITC Part 85%",null,"ITC Part 85%",null,"ITC Part 85%",null,"ITC Part 85%",null,"ITC Part 85%",null,"ITC Part 85%",null,"ITC Part 85%",null,"ITC Part 85%",null,"ITC Part 85%",null,"ITC Part 85%",null,"ITC Part 85%",null,"ITC Part 85%",null,"ITC Part 85%",null,"ITC Part 85%",null,"ITC Part 85%",null,"ITC Part 85%",null,"ITC Part 85%",null,"ITC Part 85%",null,"ITC Part 85%",null,"ITC Part 85%",null,"ITC Part 85%",null,"ITC Part 85%",null,"ITC Part 85%",null,"ITC Part 85%",null,"ITC Part 85%",null,"ITC Part 85%",null,"ITC Part 85%",null,"ITC Part 85%",null,"ITC Part 85%",null,"ITC Part 85%",null,"ITC Part 85%",null,"ITC Part 85%",null,"ITC Part 85%",null,"ITC Part 85%",null,"ITC Part 85%",null,"ITC Part 85%",null,"ITC Part 85%",null,"ITC Part 85%",null,"ITC Part 85%",null,"ITC Part 85%",null,"ITC Part 85%",null,"ITC Part 85%",null,"ITC Part 85%",null,"ITC Part 85%",null,"ITC Part 85%",null,"ITC Part 85%",null,"ITC Part 85%",null,"ITC Part 85%",null,"ITC Part 85%",null,"ITC Part 85%",null,"ITC Part 85%",null,"ITC Part 85%",null,"ITC Part 85%",null,"ITC Part 85%",null,"ITC Part 85%",null,"ITC Part 85%",null,"ITC Part 85%",null,"ITC Part 85%",null,"ITC Part 85%",null,"ITC Part 85%",null,"ITC Part 85%",null,"ITC Part 85%",null,"ITC Part 85%",null,"ITC Part 85%",null,"ITC Part 85%",null,"ITC Part 85%",null,"ITC Part 85%",null,"ITC Part 85%",null,"ITC Part 85%",null,"ITC Part 85%",null,"ITC Part 85%",null,"ITC Part 85%",null,"ITC Part 85%",null,"ITC Part 85%",null,"ITC Part 85%",null,"ITC Part 85%",null,"ITC Part 85%",null,"ITC Part 85%",null,"ITC Part 85%",null,"ITC Part 85%",null,"ITC Part 85%",null,"ITC Part 85%",null,"ITC Part 85%",null,"ITC Part 85%",null,"ITC Part 85%",null,"ITC Part 85%",null,"ITC Part 85%",null,"ITC Part 85%",null,"ITC Part 85%",null,"ITC Part 85%",null,"ITC Part 85%",null,"ITC Part 85%",null,"ITC Part 85%",null,"ITC Part 85%",null,"ITC Part 85%",null,"ITC Part 85%",null,"ITC Part 85%",null,"ITC Part 85%",null,"ITC Part 85%",null,"ITC Part 85%",null,"ITC Part 85%",null,"ITC Part 85%",null,"ITC Part 85%",null,"ITC Part 85%",null,"ITC Part 85%",null,"ITC Part 85%",null,"ITC Part 85%",null,"ITC Part 85%",null,"ITC Part 85%",null,"ITC Part 85%",null,"ITC Part 85%",null,"ITC Part 85%",null,"ITC Part 85%",null,"ITC Part 85%",null,"ITC Part 85%",null,"ITC Part 85%",null,"ITC Part 85%",null,"ITC Part 85%",null,"ITC Part 85%",null,"ITC Part 85%",null,"ITC Part 85%",null,"ITC Part 85%",null,"ITC Part 85%",null,"ITC Part 85%",null,"ITC Part 85%",null,"ITC Part 85%",null,"ITC Part 85%",null,"ITC Part 85%",null,"ITC Part 85%",null,"ITC Part 85%",null,"ITC Part 85%",null,"ITC Part 85%",null,"ITC Part 85%",null,"ITC Part 85%",null,"ITC Part 85%",null,"ITC Part 85%",null,"ITC Part 85%",null,"ITC Part 85%",null,"ITC Part 85%",null,"ITC Part 85%",null,"ITC Part 85%",null,"ITC Part 85%",null,"ITC Part 85%",null,"ITC Part 85%",null,"ITC Part 85%",null,"ITC Part 85%",null,"ITC Part 85%",null,"ITC Part 85%",null,"ITC Part 85%",null,"ITC Part 85%",null,"ITC Part 85%",null,"ITC Part 85%",null,"ITC Part 85%",null,"ITC Part 85%",null,"ITC Part 85%",null,"ITC Part 85%",null,"ITC Part 85%",null,"ITC Part 85%",null,"ITC Part 85%",null,"ITC Part 85%",null,"ITC Part 85%",null,"ITC Part 85%",null,"ITC Part 85%",null,"ITC Part 85%",null,"ITC Part 85%",null,"ITC Part 85%",null,"ITC Part 85%",null,"ITC Part 85%",null,"ITC Part 85%",null,"ITC Part 85%",null,"ITC Part 85%",null,"ITC Part 85%",null,"ITC Part 85%",null,"ITC Part 85%",null,"ITC Part 85%",null,"ITC Part 85%",null,"ITC Part 85%",null,"ITC Part 85%",null,"ITC Part 85%",null,"ITC Part 85%",null,"ITC Part 85%",null,"ITC Part 85%",null,"ITC Part 85%",null,"ITC Part 85%",null,"ITC Part 85%",null,"ITC Part 85%",null,"ITC Part 85%",null,"ITC Part 85%",null,"ITC Part 85%",null,"ITC Part 85%",null,"ITC Part 85%",null,"ITC Part 85%",null,"ITC Part 85%",null,"ITC Part 85%",null,"ITC Part 85%",null,"ITC Part 85%",null,"ITC Part 85%",null,"ITC Part 85%",null,"ITC Part 85%",null,"ITC Part 85%",null,"ITC Part 85%",null,"ITC Part 85%",null,"ITC Part 85%",null,"ITC Part 85%",null,"ITC Part 85%",null,"ITC Part 85%",null,"ITC Part 85%",null,"ITC Part 85%",null,"ITC Part 85%",null,"ITC Part 85%",null,"ITC Part 85%",null,"ITC Part 85%",null,"ITC Part 85%",null,"ITC Part 85%",null,"ITC Part 85%",null,"ITC Part 85%",null,"ITC Part 85%",null,"ITC Part 85%",null,"ITC Part 85%",null,"ITC Part 85%",null,"ITC Part 85%",null,"ITC Part 85%",null,"ITC Part 85%",null,"ITC Part 85%",null,"ITC Part 85%",null,"ITC Part 85%",null,"ITC Part 85%",null,"ITC Part 85%",null,"ITC Part 85%",null,"ITC Part 85%",null,"ITC Part 85%",null,"ITC Part 85%",null,"ITC Part 85%",null,"ITC Part 85%",null,"ITC Part 85%",null,"ITC Part 85%",null,"ITC Part 85%",null,"ITC Part 85%",null,"ITC Part 85%",null,"ITC Part 85%",null,"ITC Part 85%",null,"ITC Part 85%",null,"ITC Part 85%",null,"ITC Part 85%",null,"ITC Part 85%",null,"ITC Part 85%",null,"ITC Part 85%",null,"ITC Part 85%",null,"ITC Part 85%",null,"ITC Part 85%",null,"ITC Part 85%",null,"ITC Part 85%",null,"ITC Part 85%",null,"ITC Part 85%",null,"ITC Part 85%",null,"ITC Part 85%",null,"ITC Part 85%",null,"ITC Part 85%",null,"ITC Part 85%",null,"ITC Part 85%",null,"ITC Part 85%",null,"ITC Part 85%",null,"ITC Part 85%",null,"ITC Part 85%",null,"ITC Part 85%",null,"ITC Part 85%",null,"ITC Part 85%",null,"ITC Part 85%",null,"ITC Part 85%",null,"ITC Part 85%",null,"ITC Part 85%",null,"ITC Part 85%",null,"ITC Part 85%",null,"ITC Part 85%",null,"ITC Part 85%",null,"ITC Part 85%",null,"ITC Part 85%",null,"ITC Part 85%",null,"ITC Part 85%",null,"ITC Part 85%",null,"ITC Part 85%",null,"ITC Part 85%",null,"ITC Part 85%",null,"ITC Part 85%",null,"ITC Part 85%",null,"ITC Part 85%",null,"ITC Part 85%",null,"ITC Part 85%",null,"ITC Part 85%",null,"ITC Part 85%",null,"ITC Part 85%",null,"ITC Part 85%",null,"ITC Part 85%",null,"ITC Part 85%",null,"ITC Part 85%",null,"ITC Part 85%",null,"ITC Part 85%",null,"ITC Part 85%",null,"ITC Part 85%",null,"ITC Part 85%",null,"ITC Part 85%",null,"ITC Part 85%",null,"ITC Part 85%",null,"ITC Part 85%",null,"ITC Part 85%",null,"ITC Part 85%",null,"ITC Part 85%",null,"ITC Part 85%",null,"ITC Part 85%",null,"ITC Part 85%",null,"ITC Part 85%",null,"ITC Part 85%",null,"ITC Part 85%",null,"ITC Part 85%",null,"ITC Part 85%",null,"ITC Part 85%",null,"ITC Part 85%",null,"ITC Part 85%",null,"ITC Part 85%",null,"ITC Part 85%",null,"ITC Part 85%",null,"ITC Part 85%",null,"ITC Part 85%",null,"ITC Part 85%",null,"ITC Part 85%",null,"ITC Part 85%",null,"ITC Part 85%",null,"ITC Part 85%",null,"ITC Part 85%",null,"ITC Part 85%",null,"ITC Part 85%",null,"ITC Part 85%",null,"ITC Part 85%",null,"ITC Part 85%",null,"ITC Part 85%",null,"ITC Part 85%",null,"ITC Part 85%",null,"ITC Part 85%",null,"ITC Part 85%",null,"ITC Part 85%",null,"ITC Part 85%",null,"ITC Part 85%",null,"ITC Part 85%",null,"ITC Part 85%",null,"ITC Part 85%",null,"ITC Part 85%",null,"ITC Part 85%",null,"ITC Part 85%",null,"ITC Part 85%",null,"ITC Part 85%",null,"ITC Part 85%",null,"ITC Part 85%",null,"ITC Part 85%",null,"ITC Part 85%",null,"ITC Part 85%",null,"ITC Part 85%",null,"ITC Part 85%",null,"ITC Part 85%",null,"ITC Part 85%",null,"ITC Part 85%",null,"ITC Part 85%",null,"ITC Part 85%",null,"ITC Part 85%",null,"ITC Part 85%",null,"ITC Part 85%",null,"ITC Part 85%",null,"ITC Part 85%",null,"ITC Part 85%",null,"ITC Part 85%",null,"ITC Part 85%",null,"ITC Part 85%",null,"ITC Part 85%",null,"ITC Part 85%",null,"ITC Part 85%",null,"ITC Part 85%",null,"ITC Part 85%",null,"ITC Part 85%",null,"ITC Part 85%",null,"ITC Part 85%",null,"ITC Part 85%",null,"ITC Part 85%",null,"ITC Part 85%",null,"ITC Part 85%",null,"ITC Part 85%",null,"ITC Part 85%",null,"ITC Part 85%",null,"ITC Part 85%",null,"ITC Part 85%",null,"ITC Part 85%",null,"ITC Part 85%",null,"ITC Part 85%",null,"ITC Part 85%",null,"ITC Part 85%",null,"ITC Part 85%",null,"ITC Part 85%",null,"ITC Part 85%",null,"ITC Part 85%",null,"ITC Part 85%",null,"ITC Part 85%",null,"ITC Part 85%",null,"ITC Part 85%",null,"ITC Part 85%",null,"ITC Part 85%",null,"ITC Part 85%",null,"ITC Part 85%",null,"ITC Part 85%",null,"ITC Part 85%",null,"ITC Part 85%",null,"ITC Part 85%",null,"ITC Part 85%",null,"ITC Part 85%",null,"ITC Part 85%",null,"ITC Part 85%",null,"ITC Part 85%",null,"ITC Part 85%",null,"ITC Part 85%",null,"ITC Part 85%",null,"ITC Part 85%",null,"ITC Part 85%",null,"ITC Part 85%",null,"ITC Part 85%",null,"ITC Part 85%",null,"ITC Part 85%",null,"ITC Part 85%",null,"ITC Part 85%",null,"ITC Part 85%",null,"ITC Part 85%",null,"ITC Part 85%",null,"ITC Part 85%",null,"ITC Part 85%",null,"ITC Part 85%",null,"ITC Part 85%",null,"ITC Part 85%",null,"ITC Part 85%",null,"ITC Part 85%",null,"ITC Part 85%",null,"ITC Part 85%",null,"ITC Part 85%",null,"ITC Part 85%",null,"ITC Part 85%",null,"ITC Part 85%",null,"ITC Part 85%",null,"ITC Part 85%",null,"ITC Part 85%",null,"ITC Part 85%",null,"ITC Part 85%",null,"ITC Part 85%",null,"ITC Part 85%",null,"ITC Part 85%",null,"ITC Part 85%",null,"ITC Part 85%",null,"ITC Part 85%",null,"ITC Part 85%",null,"ITC Part 85%",null,"ITC Part 85%",null,"ITC Part 85%",null,"ITC Part 85%",null,"ITC Part 85%",null,"ITC Part 85%",null,"ITC Part 85%",null,"ITC Part 85%",null,"ITC Part 85%",null,"ITC Part 85%",null,"ITC Part 85%",null,"ITC Part 85%",null,"ITC Part 85%",null,"ITC Part 85%",null,"ITC Part 85%",null,"ITC Part 85%",null,"ITC Part 85%",null,"ITC Part 85%",null,"ITC Part 85%",null,"ITC Part 85%",null,"ITC Part 85%",null,"ITC Part 85%",null,"ITC Part 85%",null,"ITC Part 85%",null,"ITC Part 85%",null,"ITC Part 85%",null,"ITC Part 85%",null,"ITC Part 85%",null,"ITC Part 85%",null,"ITC Part 85%",null,"ITC Part 85%",null,"ITC Part 85%",null,"ITC Part 85%",null,"ITC Part 85%",null,"ITC Part 85%",null,"ITC Part 85%",null,"ITC Part 85%",null,"ITC Part 85%",null,"ITC Part 85%",null,"ITC Part 85%",null,"ITC Part 85%",null,"ITC Part 85%",null,"ITC Part 85%",null,"ITC Part 85%",null,"ITC Part 85%",null,"ITC Part 85%",null,"ITC Part 85%",null,"ITC Part 85%",null,"ITC Part 85%",null,"ITC Part 85%",null,"ITC Part 85%",null,"ITC Part 85%",null,"ITC Part 85%",null,"ITC Part 85%",null,"ITC Part 85%",null,"ITC Part 85%",null,"ITC Part 85%",null,"ITC Part 85%",null,"ITC Part 85%",null,"ITC Part 85%",null,"ITC Part 85%",null,"ITC Part 85%",null,"ITC Part 85%",null,"ITC Part 85%",null,"ITC Part 85%",null,"ITC Part 85%",null,"ITC Part 85%",null,"ITC Part 85%",null,"ITC Part 85%",null,"ITC Part 85%",null,"ITC Part 85%",null,"ITC Part 85%",null,"ITC Part 85%",null,"ITC Part 85%",null,"ITC Part 85%",null,"ITC Part 85%",null,"ITC Part 85%",null,"ITC Part 85%",null,"ITC Part 85%",null,"ITC Part 85%",null,"ITC Part 85%",null,"ITC Part 85%",null,"ITC Part 85%",null,"ITC Part 85%",null,"ITC Part 85%",null,"ITC Part 85%",null,"ITC Part 85%",null,"ITC Part 85%",null,"ITC Part 85%",null,"ITC Part 85%",null,"ITC Part 85%",null,"ITC Part 85%",null,"ITC Part 85%",null,"ITC Part 85%",null,"ITC Part 85%",null,"ITC Part 85%",null,"ITC Part 85%",null,"ITC Part 85%",null,"ITC Part 85%",null,"ITC Part 85%",null,"ITC Part 85%",null,"ITC Part 85%",null,"ITC Part 85%",null,"ITC Part 85%",null,"ITC Part 85%",null,"ITC Part 85%",null,"ITC Part 85%",null,"ITC Part 85%",null,"ITC Part 85%",null,"ITC Part 85%",null,"ITC Part 85%",null,"ITC Part 85%",null,"ITC Part 85%",null,"ITC Part 85%",null,"ITC Part 85%",null,"ITC Part 85%",null,"ITC Part 85%",null,"ITC Part 85%",null,"ITC Part 85%",null,"ITC Part 85%",null,"ITC Part 85%",null,"ITC Part 85%",null,"ITC Part 85%",null,"ITC Part 85%",null,"ITC Part 85%",null,"ITC Part 85%",null,"ITC Part 85%",null,"ITC Part 85%",null,"ITC Part 85%",null,"ITC Part 85%",null,"ITC Part 85%",null,"ITC Part 85%",null,"ITC Part 85%",null,"ITC Part 85%",null,"ITC Part 85%",null,"ITC Part 85%",null,"ITC Part 85%",null,"ITC Part 85%",null,"ITC Part 85%",null,"ITC Part 85%",null,"ITC Part 85%",null,"ITC Part 85%",null,"ITC Part 85%",null,"ITC Part 85%",null,"ITC Part 85%",null,"ITC Part 85%",null,"ITC Part 85%",null,"ITC Part 85%",null,"ITC Part 85%",null,"ITC Part 85%",null,"ITC Part 85%",null,"ITC Part 85%",null,"ITC Part 85%",null,"ITC Part 85%",null,"ITC Part 85%",null,"ITC Part 85%",null,"ITC Part 85%",null,"ITC Part 85%",null,"ITC Part 85%",null,"ITC Part 85%",null,"ITC Part 85%",null,"ITC Part 85%",null,"ITC Part 85%",null,"ITC Part 85%",null,"ITC Part 85%",null,"ITC Part 85%",null,"ITC Part 85%",null,"ITC Part 85%",null,"ITC Part 85%",null,"ITC Part 85%",null,"ITC Part 85%",null,"ITC Part 85%",null,"ITC Part 85%",null,"ITC Part 85%",null,"ITC Part 85%",null,"ITC Part 85%",null,"ITC Part 85%",null,"ITC Part 85%",null,"ITC Part 85%",null,"ITC Part 85%",null,"ITC Part 85%",null,"ITC Part 85%",null,"ITC Part 85%",null,"ITC Part 85%",null,"ITC Part 85%",null,"ITC Part 85%",null,"ITC Part 85%",null,"ITC Part 85%",null,"ITC Part 85%",null,"ITC Part 85%",null,"ITC Part 85%",null,"ITC Part 85%",null,"ITC Part 85%",null,"ITC Part 85%",null,"ITC Part 85%",null,"ITC Part 85%",null,"ITC Part 85%",null,"ITC Part 85%",null,"ITC Part 85%",null,"ITC Part 85%",null,"ITC Part 85%",null,"ITC Part 85%",null,"ITC Part 85%",null,"ITC Part 85%",null,"ITC Part 85%",null,"ITC Part 85%",null,"ITC Part 85%",null,"ITC Part 85%",null,"ITC Part 85%",null,"ITC Part 85%",null,"ITC Part 85%",null,"ITC Part 85%",null,"ITC Part 85%",null,"ITC Part 85%",null,"ITC Part 85%",null,"ITC Part 85%",null,"ITC Part 85%",null,"ITC Part 85%",null,"ITC Part 85%",null,"ITC Part 85%",null,"ITC Part 85%",null,"ITC Part 85%",null,"ITC Part 85%",null,"ITC Part 85%",null,"ITC Part 85%",null,"ITC Part 85%",null,"ITC Part 85%",null,"ITC Part 85%",null,"ITC Part 85%",null,"ITC Part 85%",null,"ITC Part 85%",null,"ITC Part 85%",null,"ITC Part 85%",null,"ITC Part 85%",null,"ITC Part 85%",null,"ITC Part 85%",null,"ITC Part 85%",null,"ITC Part 85%",null,"ITC Part 85%",null,"ITC Part 85%",null,"ITC Part 85%",null,"ITC Part 85%",null,"ITC Part 85%",null,"ITC Part 85%",null,"ITC Part 85%",null,"ITC Part 85%",null,"ITC Part 85%",null,"ITC Part 85%",null,"ITC Part 85%",null,"ITC Part 85%",null,"ITC Part 85%",null,"ITC Part 85%",null,"ITC Part 85%",null,"ITC Part 85%",null,"ITC Part 85%",null,"ITC Part 85%",null,"ITC Part 85%",null,"ITC Part 85%",null,"ITC Part 85%",null,"ITC Part 85%",null,"ITC Part 85%",null,"ITC Part 85%",null,"ITC Part 85%",null,"ITC Part 85%",null,"ITC Part 85%",null,"ITC Part 85%",null,"ITC Part 85%",null,"ITC Part 85%",null,"ITC Part 85%",null,"ITC Part 85%",null,"ITC Part 85%",null,"ITC Part 85%",null,"ITC Part 85%",null,"ITC Part 85%",null,"ITC Part 85%",null,"ITC Part 85%",null,"ITC Part 85%",null,"ITC Part 85%",null,"ITC Part 85%",null,"ITC Part 85%",null,"ITC Part 85%",null,"ITC Part 85%",null,"ITC Part 85%",null,"ITC Part 85%",null,"ITC Part 85%",null,"ITC Part 85%",null,"ITC Part 85%",null,"ITC Part 85%",null,"ITC Part 85%",null,"ITC Part 85%",null,"ITC Part 85%",null,"ITC Part 85%",null,"ITC Part 85%",null,"ITC Part 85%",null,"ITC Part 85%",null,"ITC Part 85%",null,"ITC Part 85%",null,"ITC Part 85%",null,"ITC Part 85%",null,"ITC Part 85%",null,"ITC Part 85%",null,"ITC Part 85%",null,"ITC Part 85%",null,"ITC Part 85%",null,"ITC Part 85%",null,"ITC Part 85%",null,"ITC Part 85%",null,"ITC Part 85%",null,"ITC Part 85%",null,"ITC Part 85%",null,"ITC Part 85%",null,"ITC Part 85%",null,"ITC Part 85%",null,"ITC Part 85%",null,"ITC Part 85%",null,"ITC Part 85%",null,"ITC Part 85%",null,"ITC Part 85%",null,"ITC Part 85%",null,"ITC Part 85%",null,"ITC Part 85%",null,"ITC Part 85%",null,"ITC Part 85%",null,"ITC Part 85%",null,"ITC Part 85%",null,"ITC Part 85%",null,"ITC Part 85%",null,"ITC Part 85%",null,"ITC Part 85%",null,"ITC Part 85%",null,"ITC Part 85%",null,"ITC Part 85%",null,"ITC Part 85%",null,"ITC Part 85%",null,"ITC Part 85%",null,"ITC Part 85%",null,"ITC Part 85%",null,"ITC Part 85%",null,"ITC Part 85%",null,"ITC Part 85%",null,"ITC Part 85%",null,"ITC Part 85%",null,"ITC Part 85%",null,"ITC Part 85%",null,"ITC Part 85%",null,"ITC Part 85%",null,"ITC Part 85%",null,"ITC Part 85%",null,"ITC Part 85%",null,"ITC Part 85%",null,"ITC Part 85%",null,"ITC Part 85%",null,"ITC Part 85%",null,"ITC Part 85%",null,"ITC Part 85%",null,"ITC Part 85%",null,"ITC Part 85%",null,"ITC Part 85%",null,"ITC Part 85%",null,"ITC Part 85%",null,"ITC Part 85%",null,"ITC Part 85%",null,"ITC Part 85%",null,"ITC Part 85%",null,"ITC Part 85%",null,"ITC Part 85%",null,"ITC Part 85%",null,"ITC Part 85%",null,"ITC Part 85%",null,"ITC Part 85%",null,"ITC Part 85%",null,"ITC Part 85%",null,"ITC Part 85%",null,"ITC Part 85%",null,"ITC Part 85%",null,"ITC Part 85%",null,"ITC Part 85%",null,"ITC Part 85%",null,"ITC Part 85%",null,"ITC Part 85%",null,"ITC Part 85%",null,"ITC Part 85%",null,"ITC Part 85%",null,"ITC Part 85%",null,"ITC Part 85%",null,"ITC Part 85%",null,"ITC Part 85%",null,"ITC Part 85%",null,"ITC Part 85%",null,"ITC Part 85%",null,"ITC Part 85%",null,"ITC Part 85%",null,"ITC Part 85%",null,"ITC Part 85%",null,"ITC Part 85%",null,"ITC Part 85%",null,"ITC Part 85%",null,"ITC Part 85%",null,"ITC Part 85%",null,"ITC Part 85%",null,"ITC Part 85%",null,"ITC Part 85%",null,"ITC Part 85%",null,"ITC Part 85%",null,"ITC Part 85%",null,"ITC Part 85%",null,"ITC Part 85%",null,"ITC Part 85%",null,"ITC Part 85%",null,"ITC Part 85%",null,"ITC Part 85%",null,"ITC Part 85%",null,"ITC Part 85%",null,"ITC Part 85%",null,"ITC Part 85%",null,"ITC Part 85%",null,"ITC Part 85%",null,"ITC Part 85%",null,"ITC Part 85%",null,"ITC Part 85%",null,"ITC Part 85%",null,"ITC Part 85%",null,"ITC Part 85%",null,"ITC Part 85%",null,"ITC Part 85%",null,"ITC Part 85%",null,"ITC Part 85%",null,"ITC Part 85%",null,"ITC Part 85%",null,"ITC Part 85%",null,"ITC Part 85%",null,"ITC Part 85%",null,"ITC Part 85%",null,"ITC Part 85%",null,"ITC Part 85%",null,"ITC Part 85%",null,"ITC Part 85%",null,"ITC Part 85%",null,"ITC Part 85%",null,"ITC Part 85%",null,"ITC Part 85%",null,"ITC Part 85%",null,"ITC Part 85%",null,"ITC Part 85%",null,"ITC Part 85%",null,"ITC Part 85%",null,"ITC Part 85%",null,"ITC Part 85%",null,"ITC Part 85%",null,"ITC Part 85%",null,"ITC Part 85%",null,"ITC Part 85%",null,"ITC Part 85%",null,"ITC Part 85%",null,"ITC Part 85%",null,"ITC Part 85%",null,"ITC Part 85%",null,"ITC Part 85%",null,"ITC Part 85%",null,"ITC Part 85%",null,"ITC Part 85%",null,"ITC Part 85%",null,"ITC Part 85%",null,"ITC Part 85%",null,"ITC Part 85%",null,"ITC Part 85%",null,"ITC Part 85%",null,"ITC Part 85%",null,"ITC Part 85%",null,"ITC Part 85%",null,"ITC Part 85%",null,"ITC Part 85%",null,"ITC Part 85%",null,"ITC Part 85%",null,"ITC Part 85%",null,"ITC Part 85%",null,"ITC Part 85%",null,"ITC Part 85%",null,"ITC Part 85%",null,"ITC Part 85%",null,"ITC Part 85%",null,"ITC Part 85%",null,"ITC Part 85%",null,"ITC Part 85%",null,"ITC Part 85%",null,"ITC Part 85%",null,"ITC Part 85%",null,"ITC Part 85%",null,"ITC Part 85%",null,"ITC Part 85%",null,"ITC Part 85%",null,"ITC Part 85%",null,"ITC Part 85%",null,"ITC Part 85%",null,"ITC Part 85%",null,"ITC Part 85%",null,"ITC Part 85%",null,"ITC Part 85%",null,"ITC Part 85%",null,"ITC Part 85%",null,"ITC Part 85%",null,"ITC Part 85%",null,"ITC Part 85%",null,"ITC Part 85%",null,"ITC Part 85%",null,"ITC Part 85%",null,"ITC Part 85%",null,"ITC Part 85%",null,"ITC Part 85%",null,"ITC Part 85%",null,"ITC Part 85%",null,"ITC Part 85%",null,"ITC Part 85%",null,"ITC Part 85%",null,"ITC Part 85%",null,"ITC Part 85%",null,"ITC Part 85%",null,"ITC Part 85%",null,"ITC Part 85%",null,"ITC Part 85%",null,"ITC Part 85%",null,"ITC Part 85%",null,"ITC Part 85%",null,"ITC Part 85%",null,"ITC Part 85%",null,"ITC Part 85%",null,"ITC Part 85%",null,"ITC Part 85%",null,"ITC Part 85%",null,"ITC Part 85%",null,"ITC Part 85%",null,"ITC Part 85%",null,"ITC Part 85%",null,"ITC Part 85%",null,"ITC Part 85%",null,"ITC Part 85%",null,"ITC Part 85%",null,"ITC Part 85%",null,"ITC Part 85%",null,"ITC Part 85%",null,"ITC Part 85%",null,"ITC Part 85%",null,"ITC Part 85%",null,"ITC Part 85%",null,"ITC Part 85%",null,"ITC Part 85%",null,"ITC Part 85%",null,"ITC Part 85%",null,"ITC Part 85%",null,"ITC Part 85%",null,"ITC Part 85%",null,"ITC Part 85%",null,"ITC Part 85%",null,"ITC Part 85%",null,"ITC Part 85%",null,"ITC Part 85%",null,"ITC Part 85%",null,"ITC Part 85%",null,"ITC Part 85%",null,"ITC Part 85%",null,"ITC Part 85%",null,"ITC Part 85%",null,"ITC Part 85%",null,"ITC Part 85%",null,"ITC Part 85%",null,"ITC Part 85%",null,"ITC Part 85%",null,"ITC Part 85%",null,"ITC Part 85%",null,"ITC Part 85%",null,"ITC Part 85%",null,"ITC Part 85%",null,"ITC Part 85%",null,"ITC Part 85%",null,"ITC Part 85%",null,"ITC Part 85%",null,"ITC Part 85%",null,"ITC Part 85%",null,"ITC Part 85%",null,"ITC Part 85%",null,"ITC Part 85%",null,"ITC Part 85%",null,"ITC Part 85%",null,"ITC Part 85%",null,"ITC Part 85%",null,"ITC Part 85%",null,"ITC Part 85%",null,"ITC Part 85%",null,"ITC Part 85%",null,"ITC Part 85%",null,"ITC Part 85%",null,"ITC Part 85%",null,"ITC Part 85%",null,"ITC Part 85%",null,"ITC Part 85%",null,"ITC Part 85%",null,"ITC Part 85%",null,"ITC Part 85%",null,"ITC Part 85%",null,"ITC Part 85%",null,"ITC Part 85%",null,"ITC Part 85%",null,"ITC Part 85%",null,"ITC Part 85%",null,"ITC Part 85%",null,"ITC Part 85%",null,"ITC Part 85%",null,"ITC Part 85%",null,"ITC Part 85%",null,"ITC Part 85%",null,"ITC Part 85%",null,"ITC Part 85%",null,"ITC Part 85%",null,"ITC Part 85%",null,"ITC Part 85%",null,"ITC Part 85%",null,"ITC Part 85%",null,"ITC Part 85%",null,"ITC Part 85%",null,"ITC Part 85%",null,"ITC Part 85%",null,"ITC Part 85%",null,"ITC Part 85%",null,"ITC Part 85%",null,"ITC Part 85%",null,"ITC Part 85%",null,"ITC Part 85%",null,"ITC Part 85%",null,"ITC Part 85%",null,"ITC Part 85%",null,"ITC Part 85%",null,"ITC Part 85%",null,"ITC Part 85%",null,"ITC Part 85%",null,"ITC Part 85%",null,"ITC Part 85%",null,"ITC Part 85%",null,"ITC Part 85%",null,"ITC Part 85%",null,"ITC Part 85%",null,"ITC Part 85%",null,"ITC Part 85%",null,"ITC Part 85%",null,"ITC Part 85%",null,"ITC Part 85%",null,"ITC Part 85%",null,"ITC Part 85%",null,"ITC Part 85%",null,"ITC Part 85%",null,"ITC Part 85%",null,"ITC Part 85%",null,"ITC Part 85%",null,"ITC Part 85%",null,"ITC Part 85%",null,"ITC Part 85%",null,"ITC Part 85%",null,"ITC Part 85%",null,"ITC Part 85%",null,"ITC Part 85%",null,"ITC Part 85%",null,"ITC Part 85%",null,"ITC Part 85%",null,"ITC Part 85%",null,"ITC Part 85%",null,"ITC Part 85%",null,"ITC Part 85%",null,"ITC Part 85%",null,"ITC Part 85%",null,"ITC Part 85%",null,"ITC Part 85%",null,"ITC Part 85%",null,"ITC Part 85%",null,"ITC Part 85%",null,"ITC Part 85%",null,"ITC Part 85%",null,"ITC Part 85%",null,"ITC Part 85%",null,"ITC Part 85%",null,"ITC Part 85%",null,"ITC Part 85%",null,"ITC Part 85%",null,"ITC Part 85%",null,"ITC Part 85%",null,"ITC Part 85%",null,"ITC Part 85%",null,"ITC Part 85%",null,"ITC Part 85%",null,"ITC Part 85%",null,"ITC Part 85%",null,"ITC Part 85%",null,"ITC Part 85%",null,"ITC Part 85%",null,"ITC Part 85%",null,"ITC Part 85%",null,"ITC Part 85%",null,"ITC Part 85%",null,"ITC Part 85%",null,"ITC Part 85%",null,"ITC Part 85%",null,"ITC Part 85%",null,"ITC Part 85%",null,"ITC Part 85%",null,"ITC Part 85%",null,"ITC Part 85%",null,"ITC Part 85%",null,"ITC Part 85%",null,"ITC Part 85%",null,"ITC Part 85%",null,"ITC Part 85%",null,"ITC Part 85%",null,"ITC Part 85%",null,"ITC Part 85%",null,"ITC Part 85%",null,"ITC Part 85%",null,"ITC Part 85%",null,"ITC Part 85%",null,"ITC Part 85%",null,"ITC Part 85%",null,"ITC Part 85%",null,"ITC Part 85%",null,"ITC Part 85%",null,"ITC Part 85%",null,"ITC Part 85%",null,"ITC Part 85%",null,"ITC Part 85%",null,"ITC Part 85%",null,"ITC Part 85%",null,"ITC Part 85%",null,"ITC Part 85%",null,"ITC Part 85%",null,"ITC Part 85%",null,"ITC Part 85%",null,"ITC Part 85%",null,"ITC Part 85%",null,"ITC Part 85%",null,"ITC Part 85%",null,"ITC Part 85%",null,"ITC Part 85%",null,"ITC Part 85%",null,"ITC Part 85%",null,"ITC Part 85%",null,"ITC Part 85%",null,"ITC Part 85%",null,"ITC Part 85%",null,"ITC Part 85%",null,"ITC Part 85%",null,"ITC Part 85%",null,"ITC Part 85%",null,"ITC Part 85%",null,"ITC Part 85%",null,"ITC Part 85%",null,"ITC Part 85%",null,"ITC Part 85%",null,"ITC Part 85%",null,"ITC Part 85%",null,"ITC Part 85%",null,"ITC Part 85%",null,"ITC Part 85%",null,"ITC Part 85%",null,"ITC Part 85%",null,"ITC Part 85%",null,"ITC Part 85%",null,"ITC Part 85%",null,"ITC Part 85%",null,"ITC Part 85%",null,"ITC Part 85%",null,"ITC Part 85%",null,"ITC Part 85%",null,"ITC Part 85%",null,"ITC Part 85%",null,"ITC Part 85%",null,"ITC Part 85%",null,"ITC Part 85%",null,"ITC Part 85%",null,"ITC Part 85%",null,"ITC Part 85%",null,"ITC Part 85%",null,"ITC Part 85%",null,"ITC Part 85%",null,"ITC Part 85%",null,"ITC Part 85%",null,"ITC Part 85%",null,"ITC Part 85%",null,"ITC Part 85%",null,"ITC Part 85%",null,"ITC Part 85%",null,"ITC Part 85%",null,"ITC Part 85%",null,"ITC Part 85%",null,"ITC Part 85%",null,"ITC Part 85%",null,"ITC Part 85%",null,"ITC Part 85%",null,"ITC Part 85%",null,"ITC Part 85%",null,"ITC Part 85%",null,"ITC Part 85%",null,"ITC Part 85%",null,"ITC Part 85%",null,"ITC Part 85%",null,"ITC Part 85%",null,"ITC Part 85%",null,"ITC Part 85%",null,"ITC Part 85%",null,"ITC Part 85%",null,"ITC Part 85%",null,"ITC Part 85%",null,"ITC Part 85%",null,"ITC Part 85%",null,"ITC Part 85%",null,"ITC Part 85%",null,"ITC Part 85%",null,"ITC Part 85%",null,"ITC Part 85%",null,"ITC Part 85%",null,"ITC Part 85%",null,"ITC Part 85%",null,"ITC Part 85%",null,"ITC Part 85%",null,"ITC Part 85%",null,"ITC Part 85%",null,"ITC Part 85%",null,"ITC Part 85%",null,"ITC Part 85%",null,"ITC Part 85%",null,"ITC Part 85%",null,"ITC Part 85%",null,"ITC Part 85%",null,"ITC Part 85%",null,"ITC Part 85%",null,"ITC Part 85%",null,"ITC Part 85%",null,"ITC Part 85%",null,"ITC Part 85%",null,"ITC Part 85%",null,"ITC Part 85%",null,"ITC Part 85%",null,"ITC Part 85%",null,"ITC Part 85%",null,"ITC Part 85%",null,"ITC Part 85%",null,"ITC Part 85%",null,"ITC Part 85%",null,"ITC Part 85%",null,"ITC Part 85%",null,"ITC Part 85%",null,"ITC Part 85%",null,"ITC Part 85%",null,"ITC Part 85%",null,"ITC Part 85%",null,"ITC Part 85%",null,"ITC Part 85%",null,"ITC Part 85%",null,"ITC Part 85%",null,"ITC Part 85%",null,"ITC Part 85%",null,"ITC Part 85%",null,"ITC Part 85%",null,"ITC Part 85%",null,"ITC Part 85%",null,"ITC Part 85%",null,"ITC Part 85%",null,"ITC Part 85%",null,"ITC Part 85%",null,"ITC Part 85%",null,"ITC Part 85%",null,"ITC Part 85%",null,"ITC Part 85%",null,"ITC Part 85%",null,"ITC Part 85%",null,"ITC Part 85%",null,"ITC Part 85%",null,"ITC Part 85%",null,"ITC Part 85%",null,"ITC Part 85%",null,"ITC Part 85%",null,"ITC Part 85%",null,"ITC Part 85%",null,"ITC Part 85%",null,"ITC Part 85%",null,"ITC Part 85%",null,"ITC Part 85%",null,"ITC Part 85%",null,"ITC Part 85%",null,"ITC Part 85%",null,"ITC Part 85%",null,"ITC Part 85%",null,"ITC Part 85%",null,"ITC Part 85%",null,"ITC Part 85%",null,"ITC Part 85%",null,"ITC Part 85%",null,"ITC Part 85%",null,"ITC Part 85%",null,"ITC Part 85%",null,"ITC Part 85%",null,"ITC Part 85%",null,"ITC Part 85%",null,"ITC Part 85%",null,"ITC Part 85%",null,"ITC Part 85%",null,"ITC Part 85%",null,"ITC Part 85%",null,"ITC Part 85%",null,"ITC Part 85%",null,"ITC Part 85%",null,"ITC Part 85%",null,"ITC Part 85%",null,"ITC Part 85%",null,"ITC Part 85%",null,"ITC Part 85%",null,"ITC Part 85%",null,"ITC Part 85%",null,"ITC Part 85%",null,"ITC Part 85%",null,"ITC Part 85%",null,"ITC Part 85%",null,"ITC Part 85%",null,"ITC Part 85%",null,"ITC Part 85%",null,"ITC Part 85%",null,"ITC Part 85%",null,"ITC Part 85%",null,"ITC Part 85%",null,"ITC Part 85%",null,"ITC Part 85%",null,"ITC Part 85%",null,"ITC Part 85%",null,"ITC Part 85%",null,"ITC Part 85%",null,"ITC Part 85%",null,"ITC Part 85%",null,"ITC Part 85%",null,"ITC Part 85%",null,"ITC Part 85%",null,"ITC Part 85%",null,"ITC Part 85%",null,"ITC Part 85%",null,"ITC Part 85%",null,"ITC Part 85%",null,"ITC Part 85%",null,"ITC Part 85%",null,"ITC Part 85%",null,"ITC Part 85%",null,"ITC Part 85%",null,"ITC Part 85%",null,"ITC Part 85%",null,"ITC Part 85%",null,"ITC Part 85%",null,"ITC Part 85%",null,"ITC Part 85%",null,"ITC Part 85%",null,"ITC Part 85%",null,"ITC Part 85%",null,"ITC Part 85%",null,"ITC Part 85%",null,"ITC Part 85%",null,"ITC Part 85%",null,"ITC Part 85%",null,"ITC Part 85%",null,"ITC Part 85%",null,"ITC Part 85%",null,"ITC Part 85%",null,"ITC Part 85%",null,"ITC Part 85%",null,"ITC Part 85%",null,"ITC Part 85%",null,"ITC Part 85%",null,"ITC Part 85%",null,"ITC Part 85%",null,"ITC Part 85%",null,"ITC Part 85%",null,"ITC Part 85%",null,"ITC Part 85%",null,"ITC Part 85%",null,"ITC Part 85%",null,"ITC Part 85%",null,"ITC Part 85%",null,"ITC Part 85%",null,"ITC Part 85%",null,"ITC Part 85%",null,"ITC Part 85%",null,"ITC Part 85%",null,"ITC Part 85%",null,"ITC Part 85%",null,"ITC Part 85%",null,"ITC Part 85%",null,"ITC Part 85%",null,"ITC Part 85%",null,"ITC Part 85%",null,"ITC Part 85%",null,"ITC Part 85%",null,"ITC Part 85%",null,"ITC Part 85%",null,"ITC Part 85%",null,"ITC Part 85%",null,"ITC Part 85%",null,"ITC Part 85%",null,"ITC Part 85%",null,"ITC Part 85%",null,"ITC Part 85%",null,"ITC Part 85%",null,"ITC Part 85%",null,"ITC Part 85%",null,"ITC Part 85%",null,"ITC Part 85%",null,"ITC Part 85%",null,"ITC Part 85%",null,"ITC Part 85%",null,"ITC Part 85%",null,"ITC Part 85%",null,"ITC Part 85%",null,"ITC Part 85%",null,"ITC Part 85%",null,"ITC Part 85%",null,"ITC Part 85%",null,"ITC Part 85%",null,"ITC Part 85%",null,"ITC Part 85%",null,"ITC Part 85%",null,"ITC Part 85%",null,"ITC Part 85%",null,"ITC Part 85%",null,"ITC Part 85%",null,"ITC Part 85%",null,"ITC Part 85%",null,"ITC Part 85%",null,"ITC Part 85%",null,"ITC Part 85%",null,"ITC Part 85%",null,"ITC Part 85%",null,"ITC Part 85%",null,"ITC Part 85%",null,"ITC Part 85%",null,"ITC Part 85%",null,"ITC Part 85%",null,"ITC Part 85%",null,"ITC Part 85%",null,"ITC Part 85%",null,"ITC Part 85%",null,"ITC Part 85%",null,"ITC Part 85%",null,"ITC Part 85%",null,"ITC Part 85%",null,"ITC Part 85%",null,"ITC Part 85%",null,"ITC Part 85%",null,"ITC Part 85%",null,"ITC Part 85%",null,"ITC Part 85%",null,"ITC Part 85%",null,"ITC Part 85%",null,"ITC Part 85%",null,"ITC Part 85%",null,"ITC Part 85%",null,"ITC Part 85%",null,"ITC Part 85%",null,"ITC Part 85%",null,"ITC Part 85%",null,"ITC Part 85%",null,"ITC Part 85%",null,"ITC Part 85%",null,"ITC Part 85%",null,"ITC Part 85%",null,"ITC Part 85%",null,"ITC Part 85%",null,"ITC Part 85%",null,"ITC Part 85%",null,"ITC Part 85%",null,"ITC Part 85%",null,"ITC Part 85%",null,"ITC Part 85%",null,"ITC Part 85%",null,"ITC Part 85%",null,"ITC Part 85%",null,"ITC Part 85%",null,"ITC Part 85%",null,"ITC Part 85%",null,"ITC Part 85%",null,"ITC Part 85%",null,"ITC Part 85%",null,"ITC Part 85%",null,"ITC Part 85%",null,"ITC Part 85%",null,"ITC Part 85%",null,"ITC Part 85%",null,"ITC Part 85%",null,"ITC Part 85%",null,"ITC Part 85%",null,"ITC Part 85%",null,"ITC Part 85%",null,"ITC Part 85%",null,"ITC Part 85%",null,"ITC Part 85%",null,"ITC Part 85%",null,"ITC Part 85%",null,"ITC Part 85%",null,"ITC Part 85%",null,"ITC Part 85%",null,"ITC Part 85%",null,"ITC Part 85%",null,"ITC Part 85%",null,"ITC Part 85%",null,"ITC Part 85%",null,"ITC Part 85%",null,"ITC Part 85%",null,"ITC Part 85%",null,"ITC Part 85%",null,"ITC Part 85%",null,"ITC Part 85%",null,"ITC Part 85%",null,"ITC Part 85%",null,"ITC Part 85%",null,"ITC Part 85%",null,"ITC Part 85%",null,"ITC Part 85%",null,"ITC Part 85%",null,"ITC Part 85%",null,"ITC Part 85%",null,"ITC Part 85%",null,"ITC Part 85%",null,"ITC Part 85%",null,"ITC Part 85%",null,"ITC Part 85%",null,"ITC Part 85%",null,"ITC Part 85%",null,"ITC Part 85%",null,"ITC Part 85%",null,"ITC Part 85%",null,"ITC Part 85%",null,"ITC Part 85%",null,"ITC Part 85%",null,"ITC Part 85%",null,"ITC Part 85%",null,"ITC Part 85%",null,"ITC Part 85%",null,"ITC Part 85%",null,"ITC Part 85%",null,"ITC Part 85%",null,"ITC Part 85%",null,"ITC Part 85%",null,"ITC Part 85%",null,"ITC Part 85%",null,"ITC Part 85%",null,"ITC Part 85%",null,"ITC Part 85%",null,"ITC Part 85%",null,"ITC Part 85%",null,"ITC Part 85%",null,"ITC Part 85%",null,"ITC Part 85%",null,"ITC Part 85%",null,"ITC Part 85%",null,"ITC Part 85%",null,"ITC Part 85%",null,"ITC Part 85%",null,"ITC Part 85%",null,"ITC Part 85%",null,"ITC Part 85%",null,"ITC Part 85%",null,"ITC Part 85%",null,"ITC Part 85%",null,"ITC Part 85%",null,"ITC Part 85%",null,"ITC Part 85%",null,"ITC Part 85%",null,"ITC Part 85%",null,"ITC Part 85%",null,"ITC Part 85%",null,"ITC Part 85%",null,"ITC Part 85%",null,"ITC Part 85%",null,"ITC Part 85%",null,"ITC Part 85%",null,"ITC Part 85%",null,"ITC Part 85%",null,"ITC Part 85%",null,"ITC Part 85%",null,"ITC Part 85%",null,"ITC Part 85%",null,"ITC Part 85%",null,"ITC Part 85%",null,"ITC Part 85%",null,"ITC Part 85%",null,"ITC Part 85%",null,"ITC Part 85%",null,"ITC Part 85%",null,"ITC Part 85%",null,"ITC Part 85%",null,"ITC Part 85%",null,"ITC Part 85%",null,"ITC Part 85%",null,"ITC Part 85%",null,"ITC Part 85%",null,"ITC Part 85%",null,"ITC Part 85%",null,"ITC Part 85%",null,"ITC Part 85%",null,"ITC Part 85%",null,"ITC Part 85%",null,"ITC Part 85%",null,"ITC Part 85%",null,"ITC Part 85%",null,"ITC Part 85%",null,"ITC Part 85%",null,"ITC Part 85%",null,"ITC Part 85%",null,"ITC Part 85%",null,"ITC Part 85%",null,"ITC Part 85%",null,"ITC Part 85%",null,"ITC Part 85%",null,"ITC Part 85%",null,"ITC Part 85%",null,"ITC Part 85%",null,"ITC Part 85%",null,"ITC Part 85%",null,"ITC Part 85%",null,"ITC Part 85%",null,"ITC Part 85%",null,"ITC Part 85%",null,"ITC Part 85%",null,"ITC Part 85%",null,"ITC Part 85%",null,"ITC Part 85%",null,"ITC Part 85%",null,"ITC Part 85%",null,"ITC Part 85%",null,"ITC Part 85%",null,"ITC Part 85%",null,"ITC Part 85%",null,"ITC Part 85%",null,"ITC Part 85%",null,"ITC Part 85%",null,"ITC Part 85%",null,"ITC Part 85%",null,"ITC Part 85%",null,"ITC Part 85%",null,"ITC Part 85%",null,"ITC Part 85%",null,"ITC Part 85%",null,"ITC Part 85%",null,"ITC Part 85%",null,"ITC Part 85%",null,"ITC Part 85%",null,"ITC Part 85%",null,"ITC Part 85%",null,"ITC Part 85%",null,"ITC Part 85%",null,"ITC Part 85%",null,"ITC Part 85%",null,"ITC Part 85%",null,"ITC Part 85%",null,"ITC Part 85%",null,"ITC Part 85%",null,"ITC Part 85%",null,"ITC Part 85%",null,"ITC Part 85%",null,"ITC Part 85%",null,"ITC Part 85%",null,"ITC Part 85%",null,"ITC Part 85%",null,"ITC Part 85%",null,"ITC Part 85%",null,"ITC Part 85%",null,"ITC Part 85%",null,"ITC Part 85%",null,"ITC Part 85%",null,"ITC Part 85%",null,"ITC Part 85%",null,"ITC Part 85%",null,"ITC Part 85%",null,"ITC Part 85%",null,"ITC Part 85%",null,"ITC Part 85%",null,"ITC Part 85%",null,"ITC Part 85%",null,"ITC Part 85%",null,"ITC Part 85%",null,"ITC Part 85%",null,"ITC Part 85%",null,"ITC Part 85%",null,"ITC Part 85%",null,"ITC Part 85%",null,"ITC Part 85%",null,"ITC Part 85%",null,"ITC Part 85%",null,"ITC Part 85%",null,"ITC Part 85%",null,"ITC Part 85%",null,"ITC Part 85%",null,"ITC Part 85%",null,"ITC Part 85%",null,"ITC Part 85%",null,"ITC Part 85%",null,"ITC Part 85%",null,"ITC Part 85%",null,"ITC Part 85%",null,"ITC Part 85%",null,"ITC Part 85%",null,"ITC Part 85%",null,"ITC Part 85%",null,"ITC Part 85%",null,"ITC Part 85%",null,"ITC Part 85%",null,"ITC Part 85%",null,"ITC Part 85%",null,"ITC Part 85%",null,"ITC Part 85%",null,"ITC Part 85%",null,"ITC Part 85%",null,"ITC Part 85%",null,"ITC Part 85%",null,"ITC Part 85%",null,"ITC Part 85%",null,"ITC Part 85%",null,"ITC Part 85%",null,"ITC Part 85%",null,"ITC Part 85%",null,"ITC Part 85%",null,"ITC Part 85%",null,"ITC Part 85%",null,"ITC Part 85%",null,"ITC Part 85%",null,"ITC Part 85%",null,"ITC Part 85%",null,"ITC Part 85%",null,"ITC Part 85%",null,"ITC Part 85%",null,"ITC Part 85%",null,"ITC Part 85%",null,"ITC Part 85%",null,"ITC Part 85%",null,"ITC Part 85%",null,"ITC Part 85%",null,"ITC Part 85%",null,"ITC Part 85%",null,"ITC Part 85%",null,"ITC Part 85%",null,"ITC Part 85%",null,"ITC Part 85%",null,"ITC Part 85%",null,"ITC Part 85%",null,"ITC Part 85%",null,"ITC Part 85%",null,"ITC Part 85%",null,"ITC Part 85%",null,"ITC Part 85%",null,"ITC Part 85%",null,"ITC Part 85%",null,"ITC Part 85%",null,"ITC Part 85%",null,"ITC Part 85%",null,"ITC Part 85%",null,"ITC Part 85%",null,"ITC Part 85%",null,"ITC Part 85%",null,"ITC Part 85%",null,"ITC Part 85%",null,"ITC Part 85%",null,"ITC Part 85%",null,"ITC Part 85%",null,"ITC Part 85%",null,"ITC Part 85%",null,"ITC Part 85%",null,"ITC Part 85%",null,"ITC Part 85%",null,"ITC Part 85%",null,"ITC Part 85%",null,"ITC Part 85%",null,"ITC Part 85%",null,"ITC Part 85%",null,"ITC Part 85%",null,"ITC Part 85%",null,"ITC Part 85%",null,"ITC Part 85%",null,"ITC Part 85%",null,"ITC Part 85%",null,"ITC Part 85%",null,"ITC Part 85%",null,"ITC Part 85%",null,"ITC Part 85%",null,"ITC Part 85%",null,"ITC Part 85%",null,"ITC Part 85%",null,"ITC Part 85%",null,"ITC Part 85%",null,"ITC Part 85%",null,"ITC Part 85%",null,"ITC Part 85%",null,"ITC Part 85%",null,"ITC Part 85%",null,"ITC Part 85%",null,"ITC Part 85%",null,"ITC Part 85%",null,"ITC Part 85%",null,"ITC Part 85%",null,"ITC Part 85%",null,"ITC Part 85%",null,"ITC Part 85%",null,"ITC Part 85%",null,"ITC Part 85%",null,"ITC Part 85%",null,"ITC Part 85%",null,"ITC Part 85%",null,"ITC Part 85%",null,"ITC Part 85%",null,"ITC Part 85%",null,"ITC Part 85%",null,"ITC Part 85%",null,"ITC Part 85%",null,"ITC Part 85%",null,"ITC Part 85%",null,"ITC Part 85%",null,"ITC Part 85%",null,"ITC Part 85%",null,"ITC Part 85%",null,"ITC Part 85%",null,"ITC Part 85%",null,"ITC Part 85%",null,"ITC Part 85%",null,"ITC Part 85%",null,"ITC Part 85%",null,"ITC Part 85%",null,"ITC Part 85%",null,"ITC Part 85%",null,"ITC Part 85%",null,"ITC Part 85%",null,"ITC Part 85%",null,"ITC Part 85%",null,"ITC Part 85%",null,"ITC Part 85%",null,"ITC Part 85%",null,"ITC Part 85%",null,"ITC Part 85%",null,"ITC Part 85%",null,"ITC Part 85%",null,"ITC Part 85%",null,"ITC Part 85%",null,"ITC Part 85%",null,"ITC Part 85%",null,"ITC Part 85%",null,"ITC Part 85%",null,"ITC Part 85%",null,"ITC Part 85%",null,"ITC Part 85%",null,"ITC Part 85%",null,"ITC Part 85%",null,"ITC Part 85%",null,"ITC Part 85%",null,"ITC Part 85%",null,"ITC Part 85%",null,"ITC Part 85%",null,"ITC Part 85%",null,"ITC Part 85%",null,"ITC Part 85%",null,"ITC Part 85%",null,"ITC Part 85%",null,"ITC Part 85%",null,"ITC Part 85%",null,"ITC Part 85%",null,"ITC Part 85%",null,"ITC Part 85%",null,"ITC Part 85%",null,"ITC Part 85%",null,"ITC Part 85%",null,"ITC Part 85%",null,"ITC Part 85%",null,"ITC Part 85%",null,"ITC Part 85%",null,"ITC Part 85%",null,"ITC Part 85%",null,"ITC Part 85%",null,"ITC Part 85%",null,"ITC Part 85%",null,"ITC Part 85%",null,"ITC Part 85%",null,"ITC Part 85%",null,"ITC Part 85%",null,"ITC Part 85%",null,"ITC Part 85%",null,"ITC Part 85%",null,"ITC Part 85%",null,"ITC Part 85%",null,"ITC Part 85%",null,"ITC Part 85%",null,"ITC Part 85%",null,"ITC Part 85%",null,"ITC Part 85%",null,"ITC Part 85%",null,"ITC Part 85%",null,"ITC Part 85%",null,"ITC Part 85%",null,"ITC Part 85%",null,"ITC Part 85%",null,"ITC Part 85%",null,"ITC Part 85%",null,"ITC Part 85%",null,"ITC Part 85%",null,"ITC Part 85%",null,"ITC Part 85%",null,"ITC Part 85%",null,"ITC Part 85%",null,"ITC Part 85%",null,"ITC Part 85%",null,"ITC Part 85%",null,"ITC Part 85%",null,"ITC Part 85%",null,"ITC Part 85%",null,"ITC Part 85%",null,"ITC Part 85%",null,"ITC Part 85%",null,"ITC Part 85%",null,"ITC Part 85%",null,"ITC Part 85%",null,"ITC Part 85%",null,"ITC Part 85%",null,"ITC Part 85%",null,"ITC Part 85%",null,"ITC Part 85%",null,"ITC Part 85%",null,"ITC Part 85%",null,"ITC Part 85%",null,"ITC Part 85%",null,"ITC Part 85%",null,"ITC Part 85%",null,"ITC Part 85%",null,"ITC Part 85%",null,"ITC Part 85%",null,"ITC Part 85%",null,"ITC Part 85%",null,"ITC Part 85%",null,"ITC Part 85%",null,"ITC Part 85%",null,"ITC Part 85%",null,"ITC Part 85%",null,"ITC Part 85%",null,"ITC Part 85%",null,"ITC Part 85%",null,"ITC Part 85%",null,"ITC Part 85%",null,"ITC Part 85%",null,"ITC Part 85%",null,"ITC Part 85%",null,"ITC Part 85%",null,"ITC Part 85%",null,"ITC Part 85%",null,"ITC Part 85%",null,"ITC Part 85%",null,"ITC Part 85%",null,"ITC Part 85%",null,"ITC Part 85%",null,"ITC Part 85%",null,"ITC Part 85%",null,"ITC Part 85%",null,"ITC Part 85%",null,"ITC Part 85%",null,"ITC Part 85%",null,"ITC Part 85%",null,"ITC Part 85%",null,"ITC Part 85%",null,"ITC Part 85%",null,"ITC Part 85%",null,"ITC Part 85%",null,"ITC Part 85%",null,"ITC Part 85%",null,"ITC Part 85%",null,"ITC Part 85%",null,"ITC Part 85%",null,"ITC Part 85%",null,"ITC Part 85%",null,"ITC Part 85%",null,"ITC Part 85%",null,"ITC Part 85%",null,"ITC Part 85%",null,"ITC Part 85%",null,"ITC Part 85%",null,"ITC Part 85%",null,"ITC Part 85%",null,"ITC Part 85%",null,"ITC Part 85%",null,"ITC Part 85%",null,"ITC Part 85%",null,"ITC Part 85%",null,"ITC Part 85%",null,"ITC Part 85%",null,"ITC Part 85%",null,"ITC Part 85%",null,"ITC Part 85%",null,"ITC Part 85%",null,"ITC Part 85%",null,"ITC Part 85%",null,"ITC Part 85%",null,"ITC Part 85%",null,"ITC Part 85%",null,"ITC Part 85%",null,"ITC Part 85%",null,"ITC Part 85%",null,"ITC Part 85%",null,"ITC Part 85%",null,"ITC Part 85%",null,"ITC Part 85%",null,"ITC Part 85%",null,"ITC Part 85%",null,"ITC Part 85%",null,"ITC Part 85%",null,"ITC Part 85%",null,"ITC Part 85%",null,"ITC Part 85%",null,"ITC Part 85%",null,"ITC Part 85%",null,"ITC Part 85%",null,"ITC Part 85%",null,"ITC Part 85%",null,"ITC Part 85%",null,"ITC Part 85%",null,"ITC Part 85%",null,"ITC Part 85%",null,"ITC Part 85%",null,"ITC Part 85%",null,"ITC Part 85%",null,"ITC Part 85%",null,"ITC Part 85%",null,"ITC Part 85%",null,"ITC Part 85%",null,"ITC Part 85%",null,"ITC Part 85%",null,"ITC Part 85%",null,"ITC Part 85%",null,"ITC Part 85%",null,"ITC Part 85%",null,"ITC Part 85%",null,"ITC Part 85%",null,"ITC Part 85%",null,"ITC Part 85%",null,"ITC Part 85%",null,"ITC Part 85%",null,"ITC Part 85%",null,"ITC Part 85%",null,"ITC Part 85%",null,"ITC Part 85%",null,"ITC Part 85%",null,"ITC Part 85%",null,"ITC Part 85%",null,"ITC Part 85%",null,"ITC Part 85%",null,"ITC Part 85%",null,"ITC Part 85%",null,"ITC Part 85%",null,"ITC Part 85%",null,"ITC Part 85%",null,"ITC Part 85%",null,"ITC Part 85%",null,"ITC Part 85%",null,"ITC Part 85%",null,"ITC Part 85%",null,"ITC Part 85%",null,"ITC Part 85%",null,"ITC Part 85%",null,"ITC Part 85%",null,"ITC Part 85%",null,"ITC Part 85%",null,"ITC Part 85%",null,"ITC Part 85%",null,"ITC Part 85%",null,"ITC Part 85%",null,"ITC Part 85%",null,"ITC Part 85%",null,"ITC Part 85%",null,"ITC Part 85%",null,"ITC Part 85%",null,"ITC Part 85%",null,"ITC Part 85%",null,"ITC Part 85%",null,"ITC Part 85%",null,"ITC Part 85%",null,"ITC Part 85%",null,"ITC Part 85%",null,"ITC Part 85%",null,"ITC Part 85%",null,"ITC Part 85%",null,"ITC Part 85%",null,"ITC Part 85%",null,"ITC Part 85%",null,"ITC Part 85%",null,"ITC Part 85%",null,"ITC Part 85%",null,"ITC Part 85%",null,"ITC Part 85%",null,"ITC Part 85%",null,"ITC Part 85%",null,"ITC Part 85%",null,"ITC Part 85%",null,"ITC Part 85%",null,"ITC Part 85%",null,"ITC Part 85%",null,"ITC Part 85%",null,"ITC Part 85%",null,"ITC Part 85%",null,"ITC Part 85%",null,"ITC Part 85%",null,"ITC Part 85%",null,"ITC Part 85%",null,"ITC Part 85%",null,"ITC Part 85%",null,"ITC Part 85%",null,"ITC Part 85%",null,"ITC Part 85%",null,"ITC Part 85%",null,"ITC Part 85%",null,"ITC Part 85%",null,"ITC Part 85%",null,"ITC Part 85%",null,"ITC Part 85%",null,"ITC Part 85%",null,"ITC Part 85%",null,"ITC Part 85%",null,"ITC Part 85%",null,"ITC Part 85%",null,"ITC Part 85%",null,"ITC Part 85%",null,"ITC Part 85%",null,"ITC Part 85%",null,"ITC Part 85%",null,"ITC Part 85%",null,"ITC Part 85%",null,"ITC Part 85%",null,"ITC Part 85%",null,"ITC Part 85%",null,"ITC Part 85%",null,"ITC Part 85%",null,"ITC Part 85%",null,"ITC Part 85%",null,"ITC Part 85%",null,"ITC Part 85%",null,"ITC Part 85%",null,"ITC Part 85%",null,"ITC Part 85%",null,"ITC Part 85%",null,"ITC Part 85%",null,"ITC Part 85%",null,"ITC Part 85%",null,"ITC Part 85%",null,"ITC Part 85%",null,"ITC Part 85%",null,"ITC Part 85%",null,"ITC Part 85%",null,"ITC Part 85%",null,"ITC Part 85%",null,"ITC Part 85%",null,"ITC Part 85%",null,"ITC Part 85%",null,"ITC Part 85%",null,"ITC Part 85%",null,"ITC Part 85%",null,"ITC Part 85%",null,"ITC Part 85%",null,"ITC Part 85%",null,"ITC Part 85%",null,"ITC Part 85%",null,"ITC Part 85%",null,"ITC Part 85%",null,"ITC Part 85%",null,"ITC Part 85%",null,"ITC Part 85%",null,"ITC Part 85%",null,"ITC Part 85%",null,"ITC Part 85%",null,"ITC Part 85%",null,"ITC Part 85%",null,"ITC Part 85%",null,"ITC Part 85%",null,"ITC Part 85%",null,"ITC Part 85%",null,"ITC Part 85%",null,"ITC Part 85%",null,"ITC Part 85%",null,"ITC Part 85%",null,"ITC Part 85%",null,"ITC Part 85%",null,"ITC Part 85%",null,"ITC Part 85%",null,"ITC Part 85%",null,"ITC Part 85%",null,"ITC Part 85%",null,"ITC Part 85%",null,"ITC Part 85%",null,"ITC Part 85%",null,"ITC Part 85%",null,"ITC Part 85%",null,"ITC Part 85%",null,"ITC Part 85%",null,"ITC Part 85%",null,"ITC Part 85%",null,"ITC Part 85%",null,"ITC Part 85%",null,"ITC Part 85%",null,"ITC Part 85%",null,"ITC Part 85%",null,"ITC Part 85%",null,"ITC Part 85%",null,"ITC Part 85%",null,"ITC Part 85%",null,"ITC Part 85%",null,"ITC Part 85%",null,"ITC Part 85%",null,"ITC Part 85%",null,"ITC Part 85%",null,"ITC Part 85%",null,"ITC Part 85%",null,"ITC Part 85%",null,"ITC Part 85%",null,"ITC Part 85%",null,"ITC Part 85%",null,"ITC Part 85%",null,"ITC Part 85%",null,"ITC Part 85%",null,"ITC Part 85%",null,"ITC Part 85%",null,"ITC Part 85%",null,"ITC Part 85%",null,"ITC Part 85%",null,"ITC Part 85%",null,"ITC Part 85%",null,"ITC Part 85%",null,"ITC Part 85%",null,"ITC Part 85%",null,"ITC Part 85%",null,"ITC Part 85%",null,"ITC Part 85%",null,"ITC Part 85%",null,"ITC Part 85%",null,"ITC Part 85%",null,"ITC Part 85%",null,"ITC Part 85%",null,"ITC Part 85%",null,"ITC Part 85%",null,"ITC Part 85%",null,"ITC Part 85%",null,"ITC Part 85%",null,"ITC Part 85%",null,"ITC Part 85%",null,"ITC Part 85%",null,"ITC Part 85%",null,"ITC Part 85%",null,"ITC Part 85%",null,"ITC Part 85%",null,"ITC Part 85%",null,"ITC Part 85%",null,"ITC Part 85%",null,"ITC Part 85%",null,"ITC Part 85%",null,"ITC Part 85%",null,"ITC Part 85%",null,"ITC Part 85%",null,"ITC Part 85%",null,"ITC Part 85%",null,"ITC Part 85%",null,"ITC Part 85%",null,"ITC Part 85%",null,"ITC Part 85%",null,"ITC Part 85%",null,"ITC Part 85%",null,"ITC Part 85%",null,"ITC Part 85%",null,"ITC Part 85%",null,"ITC Part 85%",null,"ITC Part 85%",null,"ITC Part 85%",null,"ITC Part 85%",null,"ITC Part 85%",null,"ITC Part 85%",null,"ITC Part 85%",null,"ITC Part 85%",null,"ITC Part 85%",null,"ITC Part 85%",null,"ITC Part 85%",null,"ITC Part 85%",null,"ITC Part 85%",null,"ITC Part 85%",null,"ITC Part 85%",null,"ITC Part 85%",null,"ITC Part 85%",null,"ITC Part 85%",null,"ITC Part 85%",null,"ITC Part 85%",null,"ITC Part 85%",null,"ITC Part 85%",null,"ITC Part 85%",null,"ITC Part 85%",null,"ITC Part 85%",null,"ITC Part 85%",null,"ITC Part 85%",null,"ITC Part 85%",null,"ITC Part 85%",null,"ITC Part 85%",null,"ITC Part 85%",null,"ITC Part 85%",null,"ITC Part 85%",null,"ITC Part 85%",null,"ITC Part 85%",null,"ITC Part 85%",null,"ITC Part 85%",null,"ITC Part 85%",null,"ITC Part 85%",null,"ITC Part 85%",null,"ITC Part 85%",null,"ITC Part 85%",null,"ITC Part 85%",null,"ITC Part 85%",null,"ITC Part 85%",null,"ITC Part 85%",null,"ITC Part 85%",null,"ITC Part 85%",null,"ITC Part 85%",null,"ITC Part 85%",null,"ITC Part 85%",null,"ITC Part 85%",null,"ITC Part 85%",null,"ITC Part 85%",null,"ITC Part 85%",null,"ITC Part 85%",null,"ITC Part 85%",null,"ITC Part 85%",null,"ITC Part 85%",null,"ITC Part 85%",null,"ITC Part 85%",null,"ITC Part 85%",null,"ITC Part 85%",null,"ITC Part 85%",null,"ITC Part 85%",null,"ITC Part 85%",null,"ITC Part 85%",null,"ITC Part 85%",null,"ITC Part 85%",null,"ITC Part 85%",null,"ITC Part 85%",null,"ITC Part 85%",null,"ITC Part 85%",null,"ITC Part 85%",null,"ITC Part 85%",null,"ITC Part 85%",null,"ITC Part 85%",null,"ITC Part 85%",null,"ITC Part 85%",null,"ITC Part 85%",null,"ITC Part 85%",null,"ITC Part 85%",null,"ITC Part 85%",null,"ITC Part 85%",null,"ITC Part 85%",null,"ITC Part 85%",null,"ITC Part 85%",null,"ITC Part 85%",null,"ITC Part 85%",null,"ITC Part 85%",null,"ITC Part 85%",null,"ITC Part 85%",null,"ITC Part 85%",null,"ITC Part 85%",null,"ITC Part 85%",null,"ITC Part 85%",null,"ITC Part 85%",null,"ITC Part 85%",null,"ITC Part 85%",null,"ITC Part 85%",null,"ITC Part 85%",null,"ITC Part 85%",null,"ITC Part 85%",null,"ITC Part 85%",null,"ITC Part 85%",null,"ITC Part 85%",null,"ITC Part 85%",null,"ITC Part 85%",null,"ITC Part 85%",null,"ITC Part 85%",null,"ITC Part 85%",null,"ITC Part 85%",null,"ITC Part 85%",null,"ITC Part 85%",null,"ITC Part 85%",null,"ITC Part 85%",null,"ITC Part 85%",null,"ITC Part 85%",null,"ITC Part 85%",null,"ITC Part 85%",null,"ITC Part 85%",null,"ITC Part 85%",null,"ITC Part 85%",null,"ITC Part 85%",null,"ITC Part 85%",null,"ITC Part 85%",null,"ITC Part 85%",null,"ITC Part 85%",null,"ITC Part 85%",null,"ITC Part 85%",null,"ITC Part 85%",null,"ITC Part 85%",null,"ITC Part 85%",null,"ITC Part 85%",null,"ITC Part 85%",null,"ITC Part 85%",null,"ITC Part 85%",null,"ITC Part 85%",null,"ITC Part 85%",null,"ITC Part 85%",null,"ITC Part 85%",null,"ITC Part 85%",null,"ITC Part 85%",null,"ITC Part 85%",null,"ITC Part 85%",null,"ITC Part 85%",null,"ITC Part 85%",null,"ITC Part 85%",null,"ITC Part 85%",null,"ITC Part 85%",null,"ITC Part 85%",null,"ITC Part 85%",null,"ITC Part 85%",null,"ITC Part 85%",null,"ITC Part 85%",null,"ITC Part 85%",null,"ITC Part 85%",null,"ITC Part 85%",null,"ITC Part 85%",null,"ITC Part 85%",null,"ITC Part 85%",null,"ITC Part 85%",null,"ITC Part 85%",null,"ITC Part 85%",null,"ITC Part 85%",null,"ITC Part 85%",null,"ITC Part 85%",null,"ITC Part 85%",null,"ITC Part 85%",null,"ITC Part 85%",null,"ITC Part 85%",null,"ITC Part 85%",null,"ITC Part 85%",null,"ITC Part 85%",null,"ITC Part 85%",null,"ITC Part 85%",null,"ITC Part 85%",null,"ITC Part 85%",null,"ITC Part 85%",null,"ITC Part 85%",null,"ITC Part 85%",null,"ITC Part 85%",null,"ITC Part 85%",null,"ITC Part 85%",null,"ITC Part 85%",null,"ITC Part 85%",null,"ITC Part 85%",null,"ITC Part 85%",null,"ITC Part 85%",null,"ITC Part 85%",null,"ITC Part 85%",null,"ITC Part 85%",null,"ITC Part 85%",null,"ITC Part 85%",null,"ITC Part 85%",null,"ITC Part 85%",null,"ITC Part 85%",null,"ITC Part 85%",null,"ITC Part 85%",null,"ITC Part 85%",null,"ITC Part 85%",null,"ITC Part 85%",null,"ITC Part 85%",null,"ITC Part 85%",null,"ITC Part 85%",null,"ITC Part 85%",null,"ITC Part 85%",null,"ITC Part 85%",null,"ITC Part 85%",null,"ITC Part 85%",null,"ITC Part 85%",null,"ITC Part 85%",null,"ITC Part 85%",null,"ITC Part 85%",null,"ITC Part 85%",null,"ITC Part 85%",null,"ITC Part 85%",null,"ITC Part 85%",null,"ITC Part 85%",null,"ITC Part 85%",null,"ITC Part 85%",null,"ITC Part 85%",null,"ITC Part 85%",null,"ITC Part 85%",null,"ITC Part 85%",null,"ITC Part 85%",null,"ITC Part 85%",null,"ITC Part 85%",null,"ITC Part 85%",null,"ITC Part 85%",null,"ITC Part 85%",null,"ITC Part 85%",null,"ITC Part 85%",null,"ITC Part 85%",null,"ITC Part 85%",null,"ITC Part 85%",null,"ITC Part 85%",null,"ITC Part 85%",null,"ITC Part 85%",null,"ITC Part 85%",null,"ITC Part 85%",null,"ITC Part 85%",null,"ITC Part 85%",null,"ITC Part 85%",null,"ITC Part 85%",null,"ITC Part 85%",null,"ITC Part 85%",null,"ITC Part 85%",null,"ITC Part 85%",null,"ITC Part 85%",null,"ITC Part 85%",null,"ITC Part 85%",null,"ITC Part 85%",null,"ITC Part 85%",null,"ITC Part 85%",null,"ITC Part 85%",null,"ITC Part 85%",null,"ITC Part 85%",null,"ITC Part 85%",null,"ITC Part 85%",null,"ITC Part 85%",null,"ITC Part 85%",null,"ITC Part 85%",null,"ITC Part 85%",null,"ITC Part 85%",null,"ITC Part 85%",null,"ITC Part 85%",null,"ITC Part 85%",null,"ITC Part 85%",null,"ITC Part 85%",null,"ITC Part 85%",null,"ITC Part 85%",null,"ITC Part 85%",null,"ITC Part 85%",null,"ITC Part 85%",null,"ITC Part 85%",null,"ITC Part 85%",null,"ITC Part 85%",null,"ITC Part 85%",null,"ITC Part 85%",null,"ITC Part 85%",null,"ITC Part 85%",null,"ITC Part 85%",null,"ITC Part 85%",null,"ITC Part 85%",null,"ITC Part 85%",null,"ITC Part 85%",null,"ITC Part 85%",null,"ITC Part 85%",null,"ITC Part 85%",null,"ITC Part 85%",null,"ITC Part 85%",null,"ITC Part 85%",null,"ITC Part 85%",null,"ITC Part 85%",null,"ITC Part 85%",null,"ITC Part 85%",null,"ITC Part 85%",null,"ITC Part 85%",null,"ITC Part 85%",null,"ITC Part 85%",null,"ITC Part 85%",null,"ITC Part 85%",null,"ITC Part 85%",null,"ITC Part 85%",null,"ITC Part 85%",null,"ITC Part 85%",null,"ITC Part 85%",null,"ITC Part 85%",null,"ITC Part 85%",null,"ITC Part 85%",null,"ITC Part 85%",null,"ITC Part 85%",null,"ITC Part 85%",null,"ITC Part 85%",null,"ITC Part 85%",null,"ITC Part 85%",null,"ITC Part 85%",null,"ITC Part 85%",null,"ITC Part 85%",null,"ITC Part 85%",null,"ITC Part 85%",null,"ITC Part 85%",null,"ITC Part 85%",null,"ITC Part 85%",null,"ITC Part 85%",null,"ITC Part 85%",null,"ITC Part 85%",null,"ITC Part 85%",null,"ITC Part 85%",null,"ITC Part 85%",null,"ITC Part 85%",null,"ITC Part 85%",null,"ITC Part 85%",null,"ITC Part 85%",null,"ITC Part 85%",null,"ITC Part 85%",null,"ITC Part 85%",null,"ITC Part 85%",null,"ITC Part 85%",null,"ITC Part 85%",null,"ITC Part 85%",null,"ITC Part 85%",null,"ITC Part 85%",null,"ITC Part 85%",null,"ITC Part 85%",null,"ITC Part 85%",null,"ITC Part 85%",null,"ITC Part 85%",null,"ITC Part 85%",null,"ITC Part 85%",null,"ITC Part 85%",null,"ITC Part 85%",null,"ITC Part 85%",null,"ITC Part 85%",null,"ITC Part 85%",null,"ITC Part 85%",null,"ITC Part 85%",null,"ITC Part 85%",null,"ITC Part 85%",null,"ITC Part 85%",null,"ITC Part 85%",null,"ITC Part 85%",null,"ITC Part 85%",null,"ITC Part 85%",null,"ITC Part 85%",null,"ITC Part 85%",null,"ITC Part 85%",null,"ITC Part 85%",null,"ITC Part 85%",null,"ITC Part 85%",null,"ITC Part 85%",null,"ITC Part 85%",null,"ITC Part 85%",null,"ITC Part 85%",null,"ITC Part 85%",null,"ITC Part 85%",null,"ITC Part 85%",null,"ITC Part 85%",null,"ITC Part 85%",null,"ITC Part 85%",null,"ITC Part 85%",null,"ITC Part 85%",null,"ITC Part 85%",null,"ITC Part 85%",null,"ITC Part 85%",null,"ITC Part 85%",null,"ITC Part 85%",null,"ITC Part 85%",null,"ITC Part 85%",null,"ITC Part 85%",null,"ITC Part 85%",null,"ITC Part 85%",null,"ITC Part 85%",null,"ITC Part 85%",null,"ITC Part 85%",null,"ITC Part 85%",null,"ITC Part 85%",null,"ITC Part 85%",null,"ITC Part 85%",null,"ITC Part 85%",null,"ITC Part 85%",null,"ITC Part 85%",null,"ITC Part 85%",null,"ITC Part 85%",null,"ITC Part 85%",null,"ITC Part 85%",null,"ITC Part 85%",null,"ITC Part 85%",null,"ITC Part 85%",null,"ITC Part 85%",null,"ITC Part 85%",null,"ITC Part 85%",null,"ITC Part 85%",null,"ITC Part 85%",null,"ITC Part 85%",null,"ITC Part 85%",null,"ITC Part 85%",null,"ITC Part 85%",null,"ITC Part 85%",null,"ITC Part 85%",null,"ITC Part 85%",null,"ITC Part 85%",null,"ITC Part 85%",null,"ITC Part 85%",null,"ITC Part 85%",null,"ITC Part 85%",null,"ITC Part 85%",null,"ITC Part 85%",null,"ITC Part 85%",null,"ITC Part 85%",null,"ITC Part 85%",null,"ITC Part 85%",null,"ITC Part 85%",null,"ITC Part 85%",null,"ITC Part 85%",null,"ITC Part 85%",null,"ITC Part 85%",null,"ITC Part 85%",null,"ITC Part 85%",null,"ITC Part 85%",null,"ITC Part 85%",null,"ITC Part 85%",null,"ITC Part 85%",null,"ITC Part 85%",null,"ITC Part 85%",null,"ITC Part 85%",null,"ITC Part 85%",null,"ITC Part 85%",null,"ITC Part 85%",null,"ITC Part 85%",null,"ITC Part 85%",null,"ITC Part 85%",null,"ITC Part 85%",null,"ITC Part 85%",null,"ITC Part 85%",null,"ITC Part 85%",null,"ITC Part 85%",null,"ITC Part 85%",null,"ITC Part 85%",null,"ITC Part 85%",null,"ITC Part 85%",null,"ITC Part 85%",null,"ITC Part 85%",null,"ITC Part 85%",null,"ITC Part 85%",null,"ITC Part 85%",null,"ITC Part 85%",null,"ITC Part 85%",null,"ITC Part 85%",null,"ITC Part 85%",null,"ITC Part 85%",null,"ITC Part 85%",null,"ITC Part 85%",null,"ITC Part 85%",null,"ITC Part 85%",null,"ITC Part 85%",null,"ITC Part 85%",null,"ITC Part 85%",null,"ITC Part 85%",null,"ITC Part 85%",null,"ITC Part 85%",null,"ITC Part 85%",null,"ITC Part 85%",null,"ITC Part 85%",null,"ITC Part 85%",null,"ITC Part 85%",null,"ITC Part 85%",null,"ITC Part 85%",null,"ITC Part 85%",null,"ITC Part 85%",null,"ITC Part 85%",null,"ITC Part 85%",null,"ITC Part 85%",null,"ITC Part 85%",null,"ITC Part 85%",null,"ITC Part 85%",null,"ITC Part 85%",null,"ITC Part 85%",null,"ITC Part 85%",null,"ITC Part 85%",null,"ITC Part 85%",null,"ITC Part 85%",null,"ITC Part 85%",null,"ITC Part 85%",null,"ITC Part 85%",null,"ITC Part 85%",null,"ITC Part 85%",null,"ITC Part 85%",null,"ITC Part 85%",null,"ITC Part 85%",null,"ITC Part 85%",null,"ITC Part 85%",null,"ITC Part 85%",null,"ITC Part 85%",null,"ITC Part 85%",null,"ITC Part 85%",null,"ITC Part 85%",null,"ITC Part 85%",null,"ITC Part 85%",null,"ITC Part 85%",null,"ITC Part 85%",null,"ITC Part 85%",null,"ITC Part 85%",null,"ITC Part 85%",null,"ITC Part 85%",null,"ITC Part 85%",null,"ITC Part 85%",null,"ITC Part 85%",null,"ITC Part 85%",null,"ITC Part 85%",null,"ITC Part 85%",null,"ITC Part 85%",null,"ITC Part 85%",null,"ITC Part 85%",null,"ITC Part 85%",null,"ITC Part 85%",null,"ITC Part 85%",null,"ITC Part 85%",null,"ITC Part 85%",null,"ITC Part 85%",null,"ITC Part 85%",null,"ITC Part 85%",null,"ITC Part 85%",null,"ITC Part 85%",null,"ITC Part 85%",null,"ITC Part 85%",null,"ITC Part 85%",null,"ITC Part 85%",null,"ITC Part 85%",null,"ITC Part 85%",null,"ITC Part 85%",null,"ITC Part 85%",null,"ITC Part 85%",null,"ITC Part 85%",null,"ITC Part 85%",null,"ITC Part 85%",null,"ITC Part 85%",null,"ITC Part 85%",null,"ITC Part 85%",null,"ITC Part 85%",null,"ITC Part 85%",null,"ITC Part 85%",null,"ITC Part 85%",null,"ITC Part 85%",null,"ITC Part 85%",null,"ITC Part 85%",null,"ITC Part 85%",null,"ITC Part 85%",null,"ITC Part 85%",null,"ITC Part 85%",null,"ITC Part 85%",null,"ITC Part 85%",null,"ITC Part 85%",null,"ITC Part 85%",null,"ITC Part 85%",null,"ITC Part 85%",null,"ITC Part 85%",null,"ITC Part 85%",null,"ITC Part 85%",null,"ITC Part 85%",null,"ITC Part 85%",null,"ITC Part 85%",null,"ITC Part 85%",null,"ITC Part 85%",null,"ITC Part 85%",null,"ITC Part 85%",null,"ITC Part 85%",null,"ITC Part 85%",null,"ITC Part 85%",null,"ITC Part 85%",null,"ITC Part 85%",null,"ITC Part 85%",null,"ITC Part 85%",null,"ITC Part 85%",null,"ITC Part 85%",null,"ITC Part 85%",null,"ITC Part 85%",null,"ITC Part 85%",null,"ITC Part 85%",null,"ITC Part 85%",null,"ITC Part 85%",null,"ITC Part 85%",null,"ITC Part 85%",null,"ITC Part 85%",null,"ITC Part 85%",null,"ITC Part 85%",null,"ITC Part 85%",null,"ITC Part 85%",null,"ITC Part 85%",null,"ITC Part 85%",null,"ITC Part 85%",null,"ITC Part 85%",null,"ITC Part 85%",null,"ITC Part 85%",null,"ITC Part 85%",null,"ITC Part 85%",null,"ITC Part 85%",null,"ITC Part 85%",null,"ITC Part 85%",null,"ITC Part 85%",null,"ITC Part 85%",null,"ITC Part 85%",null,"ITC Part 85%",null,"ITC Part 85%",null,"ITC Part 85%",null,"ITC Part 85%",null,"ITC Part 85%",null,"ITC Part 85%",null,"ITC Part 85%",null,"ITC Part 85%",null,"ITC Part 85%",null,"ITC Part 85%",null,"ITC Part 85%",null,"ITC Part 85%",null,"ITC Part 85%",null,"ITC Part 85%",null,"ITC Part 85%",null,"ITC Part 85%",null,"ITC Part 85%",null,"ITC Part 85%",null,"ITC Part 85%",null,"ITC Part 85%",null,"ITC Part 85%",null,"ITC Part 85%",null,"ITC Part 85%",null,"ITC Part 85%",null,"ITC Part 85%",null,"ITC Part 85%",null,"ITC Part 85%",null,"ITC Part 85%",null,"ITC Part 85%",null,"ITC Part 85%",null,"ITC Part 85%",null,"ITC Part 85%",null,"ITC Part 85%",null,"ITC Part 85%",null,"ITC Part 85%",null,"ITC Part 85%",null,"ITC Part 85%",null,"ITC Part 85%",null,"ITC Part 85%",null,"ITC Part 85%",null,"ITC Part 85%",null,"ITC Part 85%",null,"ITC Part 85%",null,"ITC Part 85%",null,"ITC Part 85%",null,"ITC Part 85%",null,"ITC Part 85%",null,"ITC Part 85%",null,"ITC Part 85%",null,"ITC Part 85%",null,"ITC Part 85%",null,"ITC Part 85%",null,"ITC Part 85%",null,"ITC Part 85%",null,"ITC Part 85%",null,"ITC Part 85%",null,"ITC Part 85%",null,"ITC Part 85%",null,"ITC Part 85%",null,"ITC Part 85%",null,"ITC Part 85%",null,"ITC Part 85%",null,"ITC Part 85%",null,"ITC Part 85%",null,"ITC Part 85%",null,"ITC Part 85%",null,"ITC Part 85%",null,"ITC Part 85%",null,"ITC Part 85%",null,"ITC Part 85%",null,"ITC Part 85%",null,"ITC Part 85%",null,"ITC Part 85%",null,"ITC Part 85%",null,"ITC Part 85%",null,"ITC Part 85%",null,"ITC Part 85%",null,"ITC Part 85%",null,"ITC Part 85%",null,"ITC Part 85%",null,"ITC Part 85%",null,"ITC Part 85%",null,"ITC Part 85%",null,"ITC Part 85%",null,"ITC Part 85%",null,"ITC Part 85%",null,"ITC Part 85%",null,"ITC Part 85%",null,"ITC Part 85%",null,"ITC Part 85%",null,"ITC Part 85%",null,"ITC Part 85%",null,"ITC Part 85%",null,"ITC Part 85%",null,"ITC Part 85%",null,"ITC Part 85%",null,"ITC Part 85%",null,"ITC Part 85%",null,"ITC Part 85%",null,"ITC Part 85%",null,"ITC Part 85%",null,"ITC Part 85%",null,"ITC Part 85%",null,"ITC Part 85%",null,"ITC Part 85%",null,"ITC Part 85%",null,"ITC Part 85%",null,"ITC Part 85%",null,"ITC Part 85%",null,"ITC Part 85%",null,"ITC Part 85%",null,"ITC Part 85%",null,"ITC Part 85%",null,"ITC Part 85%",null,"ITC Part 85%",null,"ITC Part 85%",null,"ITC Part 85%",null,"ITC Part 85%",null,"ITC Part 85%",null,"ITC Part 85%",null,"ITC Part 85%",null,"ITC Part 85%",null,"ITC Part 85%",null,"ITC Part 85%",null,"ITC Part 85%",null,"ITC Part 85%",null,"ITC Part 85%",null,"ITC Part 85%",null,"ITC Part 85%",null,"ITC Part 85%",null,"ITC Part 85%",null,"ITC Part 85%",null,"ITC Part 85%",null,"ITC Part 85%",null,"ITC Part 85%",null,"ITC Part 85%",null,"ITC Part 85%",null,"ITC Part 85%",null,"ITC Part 85%",null,"ITC Part 85%",null,"ITC Part 85%",null,"ITC Part 85%",null,"ITC Part 85%",null,"ITC Part 85%",null,"ITC Part 85%",null,"ITC Part 85%",null,"ITC Part 85%",null,"ITC Part 85%",null,"ITC Part 85%",null,"ITC Part 85%",null,"ITC Part 85%",null,"ITC Part 85%",null,"ITC Part 85%",null,"ITC Part 85%",null,"ITC Part 85%",null,"ITC Part 85%",null,"ITC Part 85%",null,"ITC Part 85%",null,"ITC Part 85%",null,"ITC Part 85%",null,"ITC Part 85%",null,"ITC Part 85%",null,"ITC Part 85%",null,"ITC Part 85%",null,"ITC Part 85%",null,"ITC Part 85%",null,"ITC Part 85%",null,"ITC Part 85%",null,"ITC Part 85%",null,"ITC Part 85%",null,"ITC Part 85%",null,"ITC Part 85%",null,"ITC Part 85%",null,"ITC Part 85%",null,"ITC Part 85%",null,"ITC Part 85%",null,"ITC Part 85%",null,"ITC Part 85%",null,"ITC Part 85%",null,"ITC Part 85%",null,"ITC Part 85%",null,"ITC Part 85%",null,"ITC Part 85%",null,"ITC Part 85%",null,"ITC Part 85%",null,"ITC Part 85%",null,"ITC Part 85%",null,"ITC Part 85%",null,"ITC Part 85%",null,"ITC Part 85%",null,"ITC Part 85%",null,"ITC Part 85%",null,"ITC Part 85%",null,"ITC Part 85%",null,"ITC Part 85%",null,"ITC Part 85%",null,"ITC Part 85%",null,"ITC Part 85%",null,"ITC Part 85%",null,"ITC Part 85%",null,"ITC Part 85%",null,"ITC Part 85%",null,"ITC Part 85%",null,"ITC Part 85%",null,"ITC Part 85%",null,"ITC Part 85%",null,"ITC Part 85%",null,"ITC Part 85%",null,"ITC Part 85%",null,"ITC Part 85%",null,"ITC Part 85%",null,"ITC Part 85%",null,"ITC Part 85%",null,"ITC Part 85%",null,"ITC Part 85%",null,"ITC Part 85%",null,"ITC Part 85%",null,"ITC Part 85%",null,"ITC Part 85%",null,"ITC Part 85%",null,"ITC Part 85%",null,"ITC Part 85%",null,"ITC Part 85%",null,"ITC Part 85%",null,"ITC Part 85%",null,"ITC Part 85%",null,"ITC Part 85%",null,"ITC Part 85%",null,"ITC Part 85%",null,"ITC Part 85%",null,"ITC Part 85%",null,"ITC Part 85%",null,"ITC Part 85%",null,"ITC Part 85%",null,"ITC Part 85%",null,"ITC Part 85%",null,"ITC Part 85%",null,"ITC Part 85%",null,"ITC Part 85%",null,"ITC Part 85%",null,"ITC Part 85%",null,"ITC Part 85%",null,"ITC Part 85%",null,"ITC Part 85%",null,"ITC Part 85%",null,"ITC Part 85%",null,"ITC Part 85%",null,"ITC Part 85%",null,"ITC Part 85%",null,"ITC Part 85%",null,"ITC Part 85%",null,"ITC Part 85%",null,"ITC Part 85%",null,"ITC Part 85%",null,"ITC Part 85%",null,"ITC Part 85%",null,"ITC Part 85%",null,"ITC Part 85%",null,"ITC Part 85%",null,"ITC Part 85%",null,"ITC Part 85%",null,"ITC Part 85%",null,"ITC Part 85%",null,"ITC Part 85%",null,"ITC Part 85%",null,"ITC Part 85%",null,"ITC Part 85%",null,"ITC Part 85%",null,"ITC Part 85%",null,"ITC Part 85%",null,"ITC Part 85%",null,"ITC Part 85%",null,"ITC Part 85%",null,"ITC Part 85%",null,"ITC Part 85%",null,"ITC Part 85%",null,"ITC Part 85%",null,"ITC Part 85%",null,"ITC Part 85%",null,"ITC Part 85%",null,"ITC Part 85%",null,"ITC Part 85%",null,"ITC Part 85%",null,"ITC Part 85%",null,"ITC Part 85%",null,"ITC Part 85%",null,"ITC Part 85%",null,"ITC Part 85%",null,"ITC Part 85%",null,"ITC Part 85%",null,"ITC Part 85%",null,"ITC Part 85%",null,"ITC Part 85%",null,"ITC Part 85%",null,"ITC Part 85%",null,"ITC Part 85%",null,"ITC Part 85%",null,"ITC Part 85%",null,"ITC Part 85%",null,"ITC Part 85%",null,"ITC Part 85%",null,"ITC Part 85%",null,"ITC Part 85%",null,"ITC Part 85%",null,"ITC Part 85%",null,"ITC Part 85%",null,"ITC Part 85%",null,"ITC Part 85%",null,"ITC Part 85%",null,"ITC Part 85%",null,"ITC Part 85%",null,"ITC Part 85%",null,"ITC Part 85%",null,"ITC Part 85%",null,"ITC Part 85%",null,"ITC Part 85%",null,"ITC Part 85%",null,"ITC Part 85%",null,"ITC Part 85%",null,"ITC Part 85%",null,"ITC Part 85%",null,"ITC Part 85%",null,"ITC Part 85%",null,"ITC Part 85%",null,"ITC Part 85%",null,"ITC Part 85%",null,"ITC Part 85%",null,"ITC Part 85%",null,"ITC Part 85%",null,"ITC Part 85%",null,"ITC Part 85%",null,"ITC Part 85%",null,"ITC Part 85%",null,"ITC Part 85%",null,"ITC Part 85%",null,"ITC Part 85%",null,"ITC Part 85%",null,"ITC Part 85%",null,"ITC Part 85%",null,"ITC Part 85%",null,"ITC Part 85%",null,"ITC Part 85%",null,"ITC Part 85%",null,"ITC Part 85%",null,"ITC Part 85%",null,"ITC Part 85%",null,"ITC Part 85%",null,"ITC Part 85%",null,"ITC Part 85%",null,"ITC Part 85%",null,"ITC Part 85%",null,"ITC Part 85%",null,"ITC Part 85%",null,"ITC Part 85%",null,"ITC Part 85%",null,"ITC Part 85%",null,"ITC Part 85%",null,"ITC Part 85%",null,"ITC Part 85%",null,"ITC Part 85%",null,"ITC Part 85%",null,"ITC Part 85%",null,"ITC Part 85%",null,"ITC Part 85%",null,"ITC Part 85%",null,"ITC Part 85%",null,"ITC Part 85%",null,"ITC Part 85%",null,"ITC Part 85%",null,"ITC Part 85%",null,"ITC Part 85%",null,"ITC Part 85%",null,"ITC Part 85%",null,"ITC Part 85%",null,"ITC Part 85%",null,"ITC Part 85%",null,"ITC Part 85%",null,"ITC Part 85%",null,"ITC Part 85%",null,"ITC Part 85%",null,"ITC Part 85%",null,"ITC Part 85%",null,"ITC Part 85%",null,"ITC Part 85%",null,"ITC Part 85%",null,"ITC Part 85%",null,"ITC Part 85%",null,"ITC Part 85%",null,"ITC Part 85%",null,"ITC Part 85%",null,"ITC Part 85%",null,"ITC Part 85%",null,"ITC Part 85%",null,"ITC Part 85%",null,"ITC Part 85%",null,"ITC Part 85%",null,"ITC Part 85%",null,"ITC Part 85%",null,"ITC Part 85%",null,"ITC Part 85%",null,"ITC Part 85%",null,"ITC Part 85%",null,"ITC Part 85%",null,"ITC Part 85%",null,"ITC Part 85%",null,"ITC Part 85%",null,"ITC Part 85%",null,"ITC Part 85%",null,"ITC Part 85%",null,"ITC Part 85%",null,"ITC Part 85%",null,"ITC Part 85%",null,"ITC Part 85%",null,"ITC Part 85%",null,"ITC Part 85%",null,"ITC Part 85%",null,"ITC Part 85%",null,"ITC Part 85%",null,"ITC Part 85%",null,"ITC Part 85%",null,"ITC Part 85%",null,"ITC Part 85%",null,"ITC Part 85%",null,"ITC Part 85%",null,"ITC Part 85%",null,"ITC Part 85%",null,"ITC Part 85%",null,"ITC Part 85%",null,"ITC Part 85%",null,"ITC Part 85%",null,"ITC Part 85%",null,"ITC Part 85%",null,"ITC Part 85%",null,"ITC Part 85%",null,"ITC Part 85%",null,"ITC Part 85%",null,"ITC Part 85%",null,"ITC Part 85%",null,"ITC Part 85%",null,"ITC Part 85%",null,"ITC Part 85%",null,"ITC Part 85%",null,"ITC Part 85%",null,"ITC Part 85%",null,"ITC Part 85%",null,"ITC Part 85%",null,"ITC Part 85%",null,"ITC Part 85%",null,"ITC Part 85%",null,"ITC Part 85%",null,"ITC Part 85%",null,"ITC Part 85%",null,"ITC Part 85%",null,"ITC Part 85%",null,"ITC Part 85%",null,"ITC Part 85%",null,"ITC Part 85%",null,"ITC Part 85%",null,"ITC Part 85%",null,"ITC Part 85%",null,"ITC Part 85%",null,"ITC Part 85%",null,"ITC Part 85%",null,"ITC Part 85%",null,"ITC Part 85%",null,"ITC Part 85%",null,"ITC Part 85%",null,"ITC Part 85%",null,"ITC Part 85%",null,"ITC Part 85%",null,"ITC Part 85%",null,"ITC Part 85%",null,"ITC Part 85%",null,"ITC Part 85%",null,"ITC Part 85%",null,"ITC Part 85%",null,"ITC Part 85%",null,"ITC Part 85%",null,"ITC Part 85%",null,"ITC Part 85%",null,"ITC Part 85%",null,"ITC Part 85%",null,"ITC Part 85%",null,"ITC Part 85%",null,"ITC Part 85%",null,"ITC Part 85%",null,"ITC Part 85%",null,"ITC Part 85%",null,"ITC Part 85%",null,"ITC Part 85%",null,"ITC Part 85%",null,"ITC Part 85%",null,"ITC Part 85%",null,"ITC Part 85%",null,"ITC Part 85%",null,"ITC Part 85%",null,"ITC Part 85%",null,"ITC Part 85%",null,"ITC Part 85%",null,"ITC Part 85%",null,"ITC Part 85%",null,"ITC Part 85%",null,"ITC Part 85%",null,"ITC Part 85%",null,"ITC Part 85%",null,"ITC Part 85%",null,"ITC Part 85%",null,"ITC Part 85%",null,"ITC Part 85%",null,"ITC Part 85%",null,"ITC Part 85%",null,"ITC Part 85%",null,"ITC Part 85%",null,"ITC Part 85%",null,"ITC Part 85%",null,"ITC Part 85%",null,"ITC Part 85%",null,"ITC Part 85%",null,"ITC Part 85%",null,"ITC Part 85%",null,"ITC Part 85%",null,"ITC Part 85%",null,"ITC Part 85%",null,"ITC Part 85%",null,"ITC Part 85%",null,"ITC Part 85%",null,"ITC Part 85%",null,"ITC Part 85%",null,"ITC Part 85%",null,"ITC Part 85%",null,"ITC Part 85%",null,"ITC Part 85%",null,"ITC Part 85%",null,"ITC Part 85%",null,"ITC Part 85%",null,"ITC Part 85%",null,"ITC Part 85%",null,"ITC Part 85%",null,"ITC Part 85%",null,"ITC Part 85%",null,"ITC Part 85%",null,"ITC Part 85%",null,"ITC Part 85%",null,"ITC Part 85%",null,"ITC Part 85%",null,"ITC Part 85%",null,"ITC Part 85%",null,"ITC Part 85%",null,"ITC Part 85%",null,"ITC Part 85%",null,"ITC Part 85%",null,"ITC Part 85%",null,"ITC Part 85%",null,"ITC Part 85%",null,"ITC Part 85%",null,"ITC Part 85%",null,"ITC Part 85%",null,"ITC Part 85%",null,"ITC Part 85%",null,"ITC Part 85%",null,"ITC Part 85%",null,"ITC Part 85%",null,"ITC Part 85%",null,"ITC Part 85%",null,"ITC Part 85%",null,"ITC Part 85%",null,"ITC Part 85%",null,"ITC Part 85%",null,"ITC Part 85%",null,"ITC Part 85%",null,"ITC Part 85%",null,"ITC Part 85%",null,"ITC Part 85%",null,"ITC Part 85%",null,"ITC Part 85%",null,"ITC Part 85%",null,"ITC Part 85%",null,"ITC Part 85%",null,"ITC Part 85%",null,"ITC Part 85%",null,"ITC Part 85%",null,"ITC Part 85%",null,"ITC Part 85%",null,"ITC Part 85%",null,"ITC Part 85%",null,"ITC Part 85%",null,"ITC Part 85%",null,"ITC Part 85%",null,"ITC Part 85%",null,"ITC Part 85%",null,"ITC Part 85%",null,"ITC Part 85%",null,"ITC Part 85%",null,"ITC Part 85%",null,"ITC Part 85%",null,"ITC Part 85%",null,"ITC Part 85%",null,"ITC Part 85%",null,"ITC Part 85%",null,"ITC Part 85%",null,"ITC Part 85%",null,"ITC Part 85%",null,"ITC Part 85%",null,"ITC Part 85%",null,"ITC Part 85%",null,"ITC Part 85%",null,"ITC Part 85%",null,"ITC Part 85%",null,"ITC Part 85%",null,"ITC Part 85%",null,"ITC Part 85%",null,"ITC Part 85%",null,"ITC Part 85%",null,"ITC Part 85%",null,"ITC Part 85%",null,"ITC Part 85%",null,"ITC Part 85%",null,"ITC Part 85%",null,"ITC Part 85%",null,"ITC Part 85%",null,"ITC Part 85%",null,"ITC Part 85%",null,"ITC Part 85%",null,"ITC Part 85%",null,"ITC Part 85%",null,"ITC Part 85%",null,"ITC Part 85%",null,"ITC Part 85%",null,"ITC Part 85%",null,"ITC Part 85%",null,"ITC Part 85%",null,"ITC Part 85%",null,"ITC Part 85%",null,"ITC Part 85%",null,"ITC Part 85%",null,"ITC Part 85%",null,"ITC Part 85%",null,"ITC Part 85%",null,"ITC Part 85%",null,"ITC Part 85%",null,"ITC Part 85%",null,"ITC Part 85%",null,"ITC Part 85%",null,"ITC Part 85%",null,"ITC Part 85%",null,"ITC Part 85%",null,"ITC Part 85%",null,"ITC Part 85%",null,"ITC Part 85%",null,"ITC Part 85%",null,"ITC Part 85%",null,"ITC Part 85%",null,"ITC Part 85%",null,"ITC Part 85%",null,"ITC Part 85%",null,"ITC Part 85%",null,"ITC Part 85%",null,"ITC Part 85%",null,"ITC Part 85%",null,"ITC Part 85%",null,"ITC Part 85%",null,"ITC Part 85%",null,"ITC Part 85%",null,"ITC Part 85%",null,"ITC Part 85%",null,"ITC Part 85%",null,"ITC Part 85%",null,"ITC Part 85%",null,"ITC Part 85%",null,"ITC Part 85%",null,"ITC Part 85%",null,"ITC Part 85%",null,"ITC Part 85%",null,"ITC Part 85%",null,"ITC Part 85%",null,"ITC Part 85%",null,"ITC Part 85%",null,"ITC Part 85%",null,"ITC Part 85%",null,"ITC Part 85%",null,"ITC Part 85%",null,"ITC Part 85%",null,"ITC Part 85%",null,"ITC Part 85%",null,"ITC Part 85%",null,"ITC Part 85%",null,"ITC Part 85%",null,"ITC Part 85%",null,"ITC Part 85%",null,"ITC Part 85%",null,"ITC Part 85%",null,"ITC Part 85%",null,"ITC Part 85%",null,"ITC Part 85%",null,"ITC Part 85%",null,"ITC Part 85%",null,"ITC Part 85%",null,"ITC Part 85%",null,"ITC Part 85%",null,"ITC Part 85%",null,"ITC Part 85%",null,"ITC Part 85%",null,"ITC Part 85%",null,"ITC Part 85%",null,"ITC Part 85%",null,"ITC Part 85%",null,"ITC Part 85%",null,"ITC Part 85%",null,"ITC Part 85%",null,"ITC Part 85%",null,"ITC Part 85%",null,"ITC Part 85%",null,"ITC Part 85%",null,"ITC Part 85%",null,"ITC Part 85%",null,"ITC Part 85%",null,"ITC Part 85%",null,"ITC Part 85%",null,"ITC Part 85%",null,"ITC Part 85%",null,"ITC Part 85%",null,"ITC Part 85%",null,"ITC Part 85%",null,"ITC Part 85%",null,"ITC Part 85%",null,"ITC Part 85%",null,"ITC Part 85%",null,"ITC Part 85%",null,"ITC Part 85%",null,"ITC Part 85%",null,"ITC Part 85%",null,"ITC Part 85%",null,"ITC Part 85%",null,"ITC Part 85%",null,"ITC Part 85%",null,"ITC Part 85%",null,"ITC Part 85%",null,"ITC Part 85%",null,"ITC Part 85%",null,"ITC Part 85%",null,"ITC Part 85%",null,"ITC Part 85%",null,"ITC Part 85%",null,"ITC Part 85%",null,"ITC Part 85%",null,"ITC Part 85%",null,"ITC Part 85%",null,"ITC Part 85%",null,"ITC Part 85%",null,"ITC Part 85%",null,"ITC Part 85%",null,"ITC Part 85%",null,"ITC Part 85%",null,"ITC Part 85%",null,"ITC Part 85%",null,"ITC Part 85%",null,"ITC Part 85%",null,"ITC Part 85%",null,"ITC Part 85%",null,"ITC Part 85%",null,"ITC Part 85%",null,"ITC Part 85%",null,"ITC Part 85%",null,"ITC Part 85%",null,"ITC Part 85%",null,"ITC Part 85%",null,"ITC Part 85%",null,"ITC Part 85%",null,"ITC Part 85%",null,"ITC Part 85%",null,"ITC Part 85%",null,"ITC Part 85%",null,"ITC Part 85%",null,"ITC Part 85%",null,"ITC Part 85%",null,"ITC Part 85%",null,"ITC Part 85%",null,"ITC Part 85%",null,"ITC Part 85%",null,"ITC Part 85%",null,"ITC Part 85%",null,"ITC Part 85%",null,"ITC Part 85%",null,"ITC Part 85%",null,"ITC Part 85%",null,"ITC Part 85%",null,"ITC Part 85%",null,"ITC Part 85%",null,"ITC Part 85%",null,"ITC Part 85%",null,"ITC Part 85%",null,"ITC Part 85%",null,"ITC Part 85%",null,"ITC Part 85%",null,"ITC Part 85%",null,"ITC Part 85%",null,"ITC Part 85%",null,"ITC Part 85%",null,"ITC Part 85%",null,"ITC Part 85%",null,"ITC Part 85%",null,"ITC Part 85%",null,"ITC Part 85%",null,"ITC Part 85%",null,"ITC Part 85%",null,"ITC Part 85%",null,"ITC Part 85%",null,"ITC Part 85%",null,"ITC Part 85%",null,"ITC Part 85%",null,"ITC Part 85%",null,"ITC Part 85%",null,"ITC Part 85%",null,"ITC Part 85%",null,"ITC Part 85%",null,"ITC Part 85%",null,"ITC Part 85%",null,"ITC Part 85%",null,"ITC Part 85%",null,"ITC Part 85%",null,"ITC Part 85%",null,"ITC Part 85%",null,"ITC Part 85%",null,"ITC Part 85%",null,"ITC Part 85%",null,"ITC Part 85%",null,"ITC Part 85%",null,"ITC Part 85%",null,"ITC Part 85%",null,"ITC Part 85%",null,"ITC Part 85%",null,"ITC Part 85%",null,"ITC Part 85%",null,"ITC Part 85%",null,"ITC Part 85%",null,"ITC Part 85%",null,"ITC Part 85%",null,"ITC Part 85%",null,"ITC Part 85%",null,"ITC Part 85%",null,"ITC Part 85%",null,"ITC Part 85%",null,"ITC Part 85%",null,"ITC Part 85%",null,"ITC Part 85%",null,"ITC Part 85%",null,"ITC Part 85%",null,"ITC Part 85%",null,"ITC Part 85%",null,"ITC Part 85%",null,"ITC Part 85%",null,"ITC Part 85%",null,"ITC Part 85%",null,"ITC Part 85%",null,"ITC Part 85%",null,"ITC Part 85%",null,"ITC Part 85%",null,"ITC Part 85%",null,"ITC Part 85%",null,"ITC Part 85%",null,"ITC Part 85%",null,"ITC Part 85%",null,"ITC Part 85%",null,"ITC Part 85%",null,"ITC Part 85%",null,"ITC Part 85%",null,"ITC Part 85%",null,"ITC Part 85%",null,"ITC Part 85%",null,"ITC Part 85%",null,"ITC Part 85%",null,"ITC Part 85%",null,"ITC Part 85%",null,"ITC Part 85%",null,"ITC Part 85%",null,"ITC Part 85%",null,"ITC Part 85%",null,"ITC Part 85%",null,"ITC Part 85%",null,"ITC Part 85%",null,"ITC Part 85%",null,"ITC Part 85%",null,"ITC Part 85%",null,"ITC Part 85%",null,"ITC Part 85%",null,"ITC Part 85%",null,"ITC Part 85%",null,"ITC Part 85%",null,"ITC Part 85%",null,"ITC Part 85%",null,"ITC Part 85%",null,"ITC Part 85%",null,"ITC Part 85%",null,"ITC Part 85%",null,"ITC Part 85%",null,"ITC Part 85%",null,"ITC Part 85%",null,"ITC Part 85%",null,"ITC Part 85%",null,"ITC Part 85%",null,"ITC Part 85%",null,"ITC Part 85%",null,"ITC Part 85%",null,"ITC Part 85%",null,"ITC Part 85%",null,"ITC Part 85%",null,"ITC Part 85%",null,"ITC Part 85%",null,"ITC Part 85%",null,"ITC Part 85%",null,"ITC Part 85%",null,"ITC Part 85%",null,"ITC Part 85%",null,"ITC Part 85%",null,"ITC Part 85%",null,"ITC Part 85%",null,"ITC Part 85%",null,"ITC Part 85%",null,"ITC Part 85%",null,"ITC Part 85%",null,"ITC Part 85%",null,"ITC Part 85%",null,"ITC Part 85%",null,"ITC Part 85%",null,"ITC Part 85%",null,"ITC Part 85%",null,"ITC Part 85%",null,"ITC Part 85%",null,"ITC Part 85%",null,"ITC Part 85%",null,"ITC Part 85%",null,"ITC Part 85%",null,"ITC Part 85%",null,"ITC Part 85%",null,"ITC Part 85%",null,"ITC Part 85%",null,"ITC Part 85%",null,"ITC Part 85%",null,"ITC Part 85%",null,"ITC Part 85%",null,"ITC Part 85%",null,"ITC Part 85%",null,"ITC Part 85%",null,"ITC Part 85%",null,"ITC Part 85%",null,"ITC Part 85%",null,"ITC Part 85%",null,"ITC Part 85%",null,"ITC Part 85%",null,"ITC Part 85%",null,"ITC Part 85%",null,"ITC Part 85%",null,"ITC Part 85%",null,"ITC Part 85%",null,"ITC Part 85%",null,"ITC Part 85%",null,"ITC Part 85%",null,"ITC Part 85%",null,"ITC Part 85%",null,"ITC Part 85%",null,"ITC Part 85%",null,"ITC Part 85%",null,"ITC Part 85%",null,"ITC Part 85%",null,"ITC Part 85%",null,"ITC Part 85%",null,"ITC Part 85%",null,"ITC Part 85%",null,"ITC Part 85%",null,"ITC Part 85%",null,"ITC Part 85%",null,"ITC Part 85%",null,"ITC Part 85%",null,"ITC Part 85%",null,"ITC Part 85%",null,"ITC Part 85%",null,"ITC Part 85%",null,"ITC Part 85%",null,"ITC Part 85%",null,"ITC Part 85%",null,"ITC Part 85%",null,"ITC Part 85%",null,"ITC Part 85%",null,"ITC Part 85%",null,"ITC Part 85%",null,"ITC Part 85%",null,"ITC Part 85%",null,"ITC Part 85%",null,"ITC Part 85%",null,"ITC Part 85%",null,"ITC Part 85%",null,"ITC Part 85%",null,"ITC Part 85%",null,"ITC Part 85%",null,"ITC Part 85%",null,"ITC Part 85%",null,"ITC Part 85%",null,"ITC Part 85%",null,"ITC Part 85%",null,"ITC Part 85%",null,"ITC Part 85%",null,"ITC Part 85%",null,"ITC Part 85%",null,"ITC Part 85%",null,"ITC Part 85%",null,"ITC Part 85%",null,"ITC Part 85%",null,"ITC Part 85%",null,"ITC Part 85%",null,"ITC Part 85%",null,"ITC Part 85%",null,"ITC Part 85%",null,"ITC Part 85%",null,"ITC Part 85%",null,"ITC Part 85%",null,"ITC Part 85%",null,"ITC Part 85%",null,"ITC Part 85%",null,"ITC Part 85%",null,"ITC Part 85%",null,"ITC Part 85%",null,"ITC Part 85%",null,"ITC Part 85%",null,"ITC Part 85%",null,"ITC Part 85%",null,"ITC Part 85%",null,"ITC Part 85%",null,"ITC Part 85%",null,"ITC Part 85%",null,"ITC Part 85%",null,"ITC Part 85%",null,"ITC Part 85%",null,"ITC Part 85%",null,"ITC Part 85%",null,"ITC Part 85%",null,"ITC Part 85%",null,"ITC Part 85%",null,"ITC Part 85%",null,"ITC Part 85%",null,"ITC Part 85%",null,"ITC Part 85%",null,"ITC Part 85%",null,"ITC Part 85%",null,"ITC Part 85%",null,"ITC Part 85%",null,"ITC Part 85%",null,"ITC Part 85%",null,"ITC Part 85%",null,"ITC Part 85%",null,"ITC Part 85%",null,"ITC Part 85%",null,"ITC Part 85%",null,"ITC Part 85%",null,"ITC Part 85%",null,"ITC Part 85%",null,"ITC Part 85%",null,"ITC Part 85%",null,"ITC Part 85%",null,"ITC Part 85%",null,"ITC Part 85%",null,"ITC Part 85%",null,"ITC Part 85%",null,"ITC Part 85%",null,"ITC Part 85%",null,"ITC Part 85%",null,"ITC Part 85%",null,"ITC Part 85%",null,"ITC Part 85%",null,"ITC Part 85%",null,"ITC Part 85%",null,"ITC Part 85%",null,"ITC Part 85%",null,"ITC Part 85%",null,"ITC Part 85%",null,"ITC Part 85%",null,"ITC Part 85%",null,"ITC Part 85%",null,"ITC Part 85%",null,"ITC Part 85%",null,"ITC Part 85%",null,"ITC Part 85%",null,"ITC Part 85%",null,"ITC Part 85%",null,"ITC Part 85%",null,"ITC Part 85%",null,"ITC Part 85%",null,"ITC Part 85%",null,"ITC Part 85%",null,"ITC Part 85%",null,"ITC Part 85%",null,"ITC Part 85%",null,"ITC Part 85%",null,"ITC Part 85%",null,"ITC Part 85%",null,"ITC Part 85%",null,"ITC Part 85%",null,"ITC Part 85%",null,"ITC Part 85%",null,"ITC Part 85%",null,"ITC Part 85%",null,"ITC Part 85%",null,"ITC Part 85%",null,"ITC Part 85%",null,"ITC Part 85%",null,"ITC Part 85%",null,"ITC Part 85%",null,"ITC Part 85%",null,"ITC Part 85%",null,"ITC Part 85%",null,"ITC Part 85%",null,"ITC Part 85%",null,"ITC Part 85%",null,"ITC Part 85%",null,"ITC Part 85%",null,"ITC Part 85%",null,"ITC Part 85%",null,"ITC Part 85%",null,"ITC Part 85%",null,"ITC Part 85%",null,"ITC Part 85%",null,"ITC Part 85%",null,"ITC Part 85%",null,"ITC Part 85%",null,"ITC Part 85%",null,"ITC Part 85%",null,"ITC Part 85%",null,"ITC Part 85%",null,"ITC Part 85%",null,"ITC Part 85%",null,"ITC Part 85%",null,"ITC Part 85%",null,"ITC Part 85%",null,"ITC Part 85%",null,"ITC Part 85%",null,"ITC Part 85%",null,"ITC Part 85%",null,"ITC Part 85%",null,"ITC Part 85%",null,"ITC Part 85%",null,"ITC Part 85%",null,"ITC Part 85%",null,"ITC Part 85%",null,"ITC Part 85%",null,"ITC Part 85%",null,"ITC Part 85%",null,"ITC Part 85%",null,"ITC Part 85%",null,"ITC Part 85%",null,"ITC Part 85%",null,"ITC Part 85%",null,"ITC Part 85%",null,"ITC Part 85%",null,"ITC Part 85%",null,"ITC Part 85%",null,"ITC Part 85%",null,"ITC Part 85%",null,"ITC Part 85%",null,"ITC Part 85%",null,"ITC Part 85%",null,"ITC Part 85%",null,"ITC Part 85%",null,"ITC Part 85%",null,"ITC Part 85%",null,"ITC Part 85%",null,"ITC Part 85%",null,"ITC Part 85%",null,"ITC Part 85%",null,"ITC Part 85%",null,"ITC Part 85%",null,"ITC Part 85%",null,"ITC Part 85%",null,"ITC Part 85%",null,"ITC Part 85%",null,"ITC Part 85%",null,"ITC Part 85%",null,"ITC Part 85%",null,"ITC Part 85%",null,"ITC Part 85%",null,"ITC Part 85%",null,"ITC Part 85%",null,"ITC Part 85%",null,"ITC Part 85%",null,"ITC Part 85%",null,"ITC Part 85%",null,"ITC Part 85%",null,"ITC Part 85%",null,"ITC Part 85%",null,"ITC Part 85%",null,"ITC Part 85%",null,"ITC Part 85%",null,"ITC Part 85%",null,"ITC Part 85%",null,"ITC Part 85%",null,"ITC Part 85%",null,"ITC Part 85%",null,"ITC Part 85%",null,"ITC Part 85%",null,"ITC Part 85%",null,"ITC Part 85%",null,"ITC Part 85%",null,"ITC Part 85%",null,"ITC Part 85%",null,"ITC Part 85%",null,"ITC Part 85%",null,"ITC Part 85%",null,"ITC Part 85%",null,"ITC Part 85%",null,"ITC Part 85%",null,"ITC Part 85%",null,"ITC Part 85%",null,"ITC Part 85%",null,"ITC Part 85%",null,"ITC Part 85%",null,"ITC Part 85%",null,"ITC Part 85%",null,"ITC Part 85%",null,"ITC Part 85%",null,"ITC Part 85%",null,"ITC Part 85%",null,"ITC Part 85%",null,"ITC Part 85%",null,"ITC Part 85%",null,"ITC Part 85%",null,"ITC Part 85%",null,"ITC Part 85%",null,"ITC Part 85%",null,"ITC Part 85%",null,"ITC Part 85%",null,"ITC Part 85%",null,"ITC Part 85%",null,"ITC Part 85%",null,"ITC Part 85%",null,"ITC Part 85%",null,"ITC Part 85%",null,"ITC Part 85%",null,"ITC Part 85%",null,"ITC Part 85%",null,"ITC Part 85%",null,"ITC Part 85%",null,"ITC Part 85%",null,"ITC Part 85%",null,"ITC Part 85%",null,"ITC Part 85%",null,"ITC Part 85%",null,"ITC Part 85%",null,"ITC Part 85%",null,"ITC Part 85%",null,"ITC Part 85%",null,"ITC Part 85%",null,"ITC Part 85%",null,"ITC Part 85%",null,"ITC Part 85%",null,"ITC Part 85%",null,"ITC Part 85%",null,"ITC Part 85%",null,"ITC Part 85%",null,"ITC Part 85%",null,"ITC Part 85%",null,"ITC Part 85%",null,"ITC Part 85%",null,"ITC Part 85%",null,"ITC Part 85%",null,"ITC Part 85%",null,"ITC Part 85%",null,"ITC Part 85%",null,"ITC Part 85%",null,"ITC Part 85%",null,"ITC Part 85%",null,"ITC Part 85%",null,"ITC Part 85%",null,"ITC Part 85%",null,"ITC Part 85%",null,"ITC Part 85%",null,"ITC Part 85%",null,"ITC Part 85%",null,"ITC Part 85%",null,"ITC Part 85%",null,"ITC Part 85%",null,"ITC Part 85%",null,"ITC Part 85%",null,"ITC Part 85%",null,"ITC Part 85%",null,"ITC Part 85%",null,"ITC Part 85%",null,"ITC Part 85%",null,"ITC Part 85%",null,"ITC Part 85%",null,"ITC Part 85%",null,"ITC Part 85%",null,"ITC Part 85%",null,"ITC Part 85%",null,"ITC Part 85%",null,"ITC Part 85%",null,"ITC Part 85%",null,"ITC Part 85%",null,"ITC Part 85%",null,"ITC Part 85%",null,"ITC Part 85%",null,"ITC Part 85%",null,"ITC Part 85%",null,"ITC Part 85%",null,"ITC Part 85%",null,"ITC Part 85%",null,"ITC Part 85%",null,"ITC Part 85%",null,"ITC Part 85%",null,"ITC Part 85%",null,"ITC Part 85%",null,"ITC Part 85%",null,"ITC Part 85%",null,"ITC Part 85%",null,"ITC Part 85%",null,"ITC Part 85%",null,"ITC Part 85%",null,"ITC Part 85%",null,"ITC Part 85%",null,"ITC Part 85%",null,"ITC Part 85%",null,"ITC Part 85%",null,"ITC Part 85%",null,"ITC Part 85%",null,"ITC Part 85%",null,"ITC Part 85%",null,"ITC Part 85%",null,"ITC Part 85%",null,"ITC Part 85%",null,"ITC Part 85%",null,"ITC Part 85%",null,"ITC Part 85%",null,"ITC Part 85%",null,"ITC Part 85%",null,"ITC Part 85%",null,"ITC Part 85%",null,"ITC Part 85%",null,"ITC Part 85%",null,"ITC Part 85%",null,"ITC Part 85%",null,"ITC Part 85%",null,"ITC Part 85%",null,"ITC Part 85%",null,"ITC Part 85%",null,"ITC Part 85%",null,"ITC Part 85%",null,"ITC Part 85%",null,"ITC Part 85%",null,"ITC Part 85%",null,"ITC Part 85%",null,"ITC Part 85%",null,"ITC Part 85%",null,"ITC Part 85%",null,"ITC Part 85%",null,"ITC Part 85%",null,"ITC Part 85%",null,"ITC Part 85%",null,"ITC Part 85%",null,"ITC Part 85%",null,"ITC Part 85%",null,"ITC Part 85%",null,"ITC Part 85%",null,"ITC Part 85%",null,"ITC Part 85%",null,"ITC Part 85%",null,"ITC Part 85%",null,"ITC Part 85%",null,"ITC Part 85%",null,"ITC Part 85%",null,"ITC Part 85%",null,"ITC Part 85%",null,"ITC Part 85%",null,"ITC Part 85%",null,"ITC Part 85%",null,"ITC Part 85%",null,"ITC Part 85%",null,"ITC Part 85%",null,"ITC Part 85%",null,"ITC Part 85%",null,"ITC Part 85%",null,"ITC Part 85%",null,"ITC Part 85%",null,"ITC Part 85%",null,"ITC Part 85%",null,"ITC Part 85%",null,"ITC Part 85%",null,"ITC Part 85%",null,"ITC Part 85%",null,"ITC Part 85%",null,"ITC Part 85%",null,"ITC Part 85%",null,"ITC Part 85%",null,"ITC Part 85%",null,"ITC Part 85%",null,"ITC Part 85%",null,"ITC Part 85%",null,"ITC Part 85%",null,"ITC Part 85%",null,"ITC Part 85%",null,"ITC Part 85%",null,"ITC Part 85%",null,"ITC Part 85%",null,"ITC Part 85%",null,"ITC Part 85%",null,"ITC Part 85%",null,"ITC Part 85%",null,"ITC Part 85%",null,"ITC Part 85%",null,"ITC Part 85%",null,"ITC Part 85%",null,"ITC Part 85%",null,"ITC Part 85%",null,"ITC Part 85%",null,"ITC Part 85%",null,"ITC Part 85%",null,"ITC Part 85%",null,"ITC Part 85%",null,"ITC Part 85%",null,"ITC Part 85%",null,"ITC Part 85%",null,"ITC Part 85%",null,"ITC Part 85%",null,"ITC Part 85%",null,"ITC Part 85%",null,"ITC Part 85%",null,"ITC Part 85%",null,"ITC Part 85%",null,"ITC Part 85%",null,"ITC Part 85%",null,"ITC Part 85%",null,"ITC Part 85%",null,"ITC Part 85%",null,"ITC Part 85%",null,"ITC Part 85%",null,"ITC Part 85%",null,"ITC Part 85%",null,"ITC Part 85%",null,"ITC Part 85%",null,"ITC Part 85%",null,"ITC Part 85%",null,"ITC Part 85%",null,"ITC Part 85%",null,"ITC Part 85%",null,"ITC Part 85%",null,"ITC Part 85%",null,"ITC Part 85%",null,"ITC Part 85%",null,"ITC Part 85%",null,"ITC Part 85%",null,"ITC Part 85%",null,"ITC Part 85%",null,"ITC Part 85%",null,"ITC Part 85%",null,"ITC Part 85%",null,"ITC Part 85%",null,"ITC Part 85%",null,"ITC Part 85%",null,"ITC Part 85%",null,"ITC Part 85%",null,"ITC Part 85%",null,"ITC Part 85%",null,"ITC Part 85%",null,"ITC Part 85%",null,"ITC Part 85%",null,"ITC Part 85%",null,"ITC Part 85%",null,"ITC Part 85%",null,"ITC Part 85%",null,"ITC Part 85%",null,"ITC Part 85%",null,"ITC Part 85%",null,"ITC Part 85%",null,"ITC Part 85%",null,"ITC Part 85%",null,"ITC Part 85%",null,"ITC Part 85%",null,"ITC Part 85%",null,"ITC Part 85%",null,"ITC Part 85%",null,"ITC Part 85%",null,"ITC Part 85%",null,"ITC Part 85%",null,"ITC Part 85%",null,"ITC Part 85%",null,"ITC Part 85%",null,"ITC Part 85%",null,"ITC Part 85%",null,"ITC Part 85%",null,"ITC Part 85%",null,"ITC Part 85%",null,"ITC Part 85%",null,"ITC Part 85%",null,"ITC Part 85%",null,"ITC Part 85%",null,"ITC Part 85%",null,"ITC Part 85%",null,"ITC Part 85%",null,"ITC Part 85%",null,"ITC Part 85%",null,"ITC Part 85%",null,"ITC Part 85%",null,"ITC Part 85%",null,"ITC Part 85%",null,"ITC Part 85%",null,"ITC Part 85%",null,"ITC Part 85%",null,"ITC Part 85%",null,"ITC Part 85%",null,"ITC Part 85%",null,"ITC Part 85%",null,"ITC Part 85%",null,"ITC Part 85%",null,"ITC Part 85%",null,"ITC Part 85%",null,"ITC Part 85%",null,"ITC Part 85%",null,"ITC Part 85%",null,"ITC Part 85%",null,"ITC Part 85%",null,"ITC Part 85%",null,"ITC Part 85%",null,"ITC Part 85%",null,"ITC Part 85%",null,"ITC Part 85%",null,"ITC Part 85%",null,"ITC Part 85%",null,"ITC Part 85%",null,"ITC Part 85%",null,"ITC Part 85%",null,"ITC Part 85%",null,"ITC Part 85%",null,"ITC Part 85%",null,"ITC Part 85%",null,"ITC Part 85%",null,"ITC Part 85%",null,"ITC Part 85%",null,"ITC Part 85%",null,"ITC Part 85%",null,"ITC Part 85%",null,"ITC Part 85%",null,"ITC Part 85%",null,"ITC Part 85%",null,"ITC Part 85%",null,"ITC Part 85%",null,"ITC Part 85%",null,"ITC Part 85%",null,"ITC Part 85%",null,"ITC Part 85%",null,"ITC Part 85%",null,"ITC Part 85%",null,"ITC Part 85%",null,"ITC Part 85%",null,"ITC Part 85%",null,"ITC Part 85%",null,"ITC Part 85%",null,"ITC Part 85%",null,"ITC Part 85%",null,"ITC Part 85%",null,"ITC Part 85%",null,"ITC Part 85%",null,"ITC Part 85%",null,"ITC Part 85%",null,"ITC Part 85%",null,"ITC Part 85%",null,"ITC Part 85%",null,"ITC Part 85%",null,"ITC Part 85%",null,"ITC Part 85%",null,"ITC Part 85%",null,"ITC Part 85%",null,"ITC Part 85%",null,"ITC Part 85%",null,"ITC Part 85%",null,"ITC Part 85%",null,"ITC Part 85%",null,"ITC Part 85%",null,"ITC Part 85%",null,"ITC Part 85%",null,"ITC Part 85%",null,"ITC Part 85%",null,"ITC Part 85%",null,"ITC Part 85%",null,"ITC Part 85%",null,"ITC Part 85%",null,"ITC Part 85%",null,"ITC Part 85%",null,"ITC Part 85%",null,"ITC Part 85%",null,"ITC Part 85%",null,"ITC Part 85%",null,"ITC Part 85%",null,"ITC Part 85%",null,"ITC Part 85%",null,"ITC Part 85%",null,"ITC Part 85%",null,"ITC Part 85%",null,"ITC Part 85%",null,"ITC Part 85%",null,"ITC Part 85%",null,"ITC Part 85%",null,"ITC Part 85%",null,"ITC Part 85%",null,"ITC Part 85%",null,"ITC Part 85%",null,"ITC Part 85%",null,"ITC Part 85%",null,"ITC Part 85%",null,"ITC Part 85%",null,"ITC Part 85%",null,"ITC Part 85%",null,"ITC Part 85%",null,"ITC Part 85%",null,"ITC Part 85%",null,"ITC Part 85%",null,"ITC Part 85%",null,"ITC Part 85%",null,"ITC Part 85%",null,"ITC Part 85%",null,"ITC Part 85%",null,"ITC Part 85%",null,"ITC Part 85%",null,"ITC Part 85%",null,"ITC Part 85%",null,"ITC Part 85%",null,"ITC Part 85%",null,"ITC Part 85%",null,"ITC Part 85%",null,"ITC Part 85%",null,"ITC Part 85%",null,"ITC Part 85%",null,"ITC Part 85%",null,"ITC Part 85%",null,"ITC Part 85%",null,"ITC Part 85%",null,"ITC Part 85%",null,"ITC Part 85%",null,"ITC Part 85%",null,"ITC Part 85%",null,"ITC Part 85%",null,"ITC Part 85%",null,"ITC Part 85%",null,"ITC Part 85%",null,"ITC Part 85%",null,"ITC Part 85%",null,"ITC Part 85%",null,"ITC Part 85%",null,"ITC Part 85%",null,"ITC Part 85%",null,"ITC Part 85%",null,"ITC Part 85%",null,"ITC Part 85%",null,"ITC Part 85%",null,"ITC Part 85%",null,"ITC Part 85%",null,"ITC Part 85%",null,"ITC Part 85%",null,"ITC Part 85%",null,"ITC Part 85%",null,"ITC Part 85%",null,"ITC Part 85%",null,"ITC Part 85%",null,"ITC Part 85%",null,"ITC Part 85%",null,"ITC Part 85%",null,"ITC Part 85%",null,"ITC Part 85%",null,"ITC Part 85%",null,"ITC Part 85%",null,"ITC Part 85%",null,"ITC Part 85%",null,"ITC Part 85%",null,"ITC Part 85%",null,"ITC Part 85%",null,"ITC Part 85%",null,"ITC Part 85%",null,"ITC Part 85%",null,"ITC Part 85%",null,"ITC Part 85%",null,"ITC Part 85%",null,"ITC Part 85%",null,"ITC Part 85%",null,"ITC Part 85%",null,"ITC Part 85%",null,"ITC Part 85%",null,"ITC Part 85%",null,"ITC Part 85%",null,"ITC Part 85%",null,"ITC Part 85%",null,"ITC Part 85%",null,"ITC Part 85%",null,"ITC Part 85%",null,"ITC Part 85%",null,"ITC Part 85%",null,"ITC Part 85%",null,"ITC Part 85%",null,"ITC Part 85%",null,"ITC Part 85%",null,"ITC Part 85%",null,"ITC Part 85%",null,"ITC Part 85%",null,"ITC Part 85%",null,"ITC Part 85%",null,"ITC Part 85%",null,"ITC Part 85%",null,"ITC Part 85%",null,"ITC Part 85%",null,"ITC Part 85%",null,"ITC Part 85%",null,"ITC Part 85%",null,"ITC Part 85%",null,"ITC Part 85%",null,"ITC Part 85%",null,"ITC Part 85%",null,"ITC Part 85%",null,"ITC Part 85%",null,"ITC Part 85%",null,"ITC Part 85%",null,"ITC Part 85%",null,"ITC Part 85%",null,"ITC Part 85%",null,"ITC Part 85%",null,"ITC Part 85%",null,"ITC Part 85%",null,"ITC Part 85%",null,"ITC Part 85%",null,"ITC Part 85%",null,"ITC Part 85%",null,"ITC Part 85%",null,"ITC Part 85%",null,"ITC Part 85%",null,"ITC Part 85%",null,"ITC Part 85%",null,"ITC Part 85%",null,"ITC Part 85%",null,"ITC Part 85%",null,"ITC Part 85%",null,"ITC Part 85%",null,"ITC Part 85%",null,"ITC Part 85%",null,"ITC Part 85%",null,"ITC Part 85%",null,"ITC Part 85%",null,"ITC Part 85%",null,"ITC Part 85%",null,"ITC Part 85%",null,"ITC Part 85%",null,"ITC Part 85%",null,"ITC Part 85%",null,"ITC Part 85%",null,"ITC Part 85%",null,"ITC Part 85%",null,"ITC Part 85%",null,"ITC Part 85%",null,"ITC Part 85%",null,"ITC Part 85%",null,"ITC Part 85%",null,"ITC Part 85%",null,"ITC Part 85%",null,"ITC Part 85%",null,"ITC Part 85%",null,"ITC Part 85%",null,"ITC Part 85%",null,"ITC Part 85%",null,"ITC Part 85%",null,"ITC Part 85%",null,"ITC Part 85%",null,"ITC Part 85%",null,"ITC Part 85%",null,"ITC Part 85%",null,"ITC Part 85%",null,"ITC Part 85%",null,"ITC Part 85%",null,"ITC Part 85%",null,"ITC Part 85%",null,"ITC Part 85%",null,"ITC Part 85%",null,"ITC Part 85%",null,"ITC Part 85%",null,"ITC Part 85%",null,"ITC Part 85%",null,"ITC Part 85%",null,"ITC Part 85%",null,"ITC Part 85%",null,"ITC Part 85%",null,"ITC Part 85%",null,"ITC Part 85%",null,"ITC Part 85%",null,"ITC Part 85%",null,"ITC Part 85%",null,"ITC Part 85%",null,"ITC Part 85%",null,"ITC Part 85%",null,"ITC Part 85%",null,"ITC Part 85%",null,"ITC Part 85%",null,"ITC Part 85%",null,"ITC Part 85%",null,"ITC Part 85%",null,"ITC Part 85%",null,"ITC Part 85%",null,"ITC Part 85%",null,"ITC Part 85%",null,"ITC Part 85%",null,"ITC Part 85%",null,"ITC Part 85%",null,"ITC Part 85%",null,"ITC Part 85%",null,"ITC Part 85%",null,"ITC Part 85%",null,"ITC Part 85%",null,"ITC Part 85%",null,"ITC Part 85%",null,"ITC Part 85%",null,"ITC Part 85%",null,"ITC Part 85%",null,"ITC Part 85%",null,"ITC Part 85%",null,"ITC Part 85%",null,"ITC Part 85%",null,"ITC Part 85%",null,"ITC Part 85%",null,"ITC Part 85%",null,"ITC Part 85%",null,"ITC Part 85%",null,"ITC Part 85%",null,"ITC Part 85%",null,"ITC Part 85%",null,"ITC Part 85%",null,"ITC Part 85%",null,"ITC Part 85%",null,"ITC Part 85%",null,"ITC Part 85%",null,"ITC Part 85%",null,"ITC Part 85%",null,"ITC Part 85%",null,"ITC Part 85%",null,"ITC Part 85%",null,"ITC Part 85%",null,"ITC Part 85%",null,"ITC Part 85%",null,"ITC Part 85%",null,"ITC Part 85%",null,"ITC Part 85%",null,"ITC Part 85%",null,"ITC Part 85%",null,"ITC Part 85%",null,"ITC Part 85%",null,"ITC Part 85%",null,"ITC Part 85%",null,"ITC Part 85%",null,"ITC Part 85%",null,"ITC Part 85%",null,"ITC Part 85%",null,"ITC Part 85%",null,"ITC Part 85%",null,"ITC Part 85%",null,"ITC Part 85%",null,"ITC Part 85%",null,"ITC Part 85%",null,"ITC Part 85%",null,"ITC Part 85%",null,"ITC Part 85%",null,"ITC Part 85%",null,"ITC Part 85%",null,"ITC Part 85%",null,"ITC Part 85%",null,"ITC Part 85%",null,"ITC Part 85%",null,"ITC Part 85%",null,"ITC Part 85%",null,"ITC Part 85%",null,"ITC Part 85%",null,"ITC Part 85%",null,"ITC Part 85%",null,"ITC Part 85%",null,"ITC Part 85%",null,"ITC Part 85%",null,"ITC Part 85%",null,"ITC Part 85%",null,"ITC Part 85%",null,"ITC Part 85%",null,"ITC Part 85%",null,"ITC Part 85%",null,"ITC Part 85%",null,"ITC Part 85%",null,"ITC Part 85%",null,"ITC Part 85%",null,"ITC Part 85%",null,"ITC Part 85%",null,"ITC Part 85%",null,"ITC Part 85%",null,"ITC Part 85%",null,"ITC Part 85%",null,"ITC Part 85%",null,"ITC Part 85%",null,"ITC Part 85%",null,"ITC Part 85%",null,"ITC Part 85%",null,"ITC Part 85%",null,"ITC Part 85%",null,"ITC Part 85%",null,"ITC Part 85%",null,"ITC Part 85%",null,"ITC Part 85%",null,"ITC Part 85%",null,"ITC Part 85%",null,"ITC Part 85%",null,"ITC Part 85%",null,"ITC Part 85%",null,"ITC Part 85%",null,"ITC Part 85%",null,"ITC Part 85%",null,"ITC Part 85%",null,"ITC Part 85%",null,"ITC Part 85%",null,"ITC Part 85%",null,"ITC Part 85%",null,"ITC Part 85%",null,"ITC Part 85%",null,"ITC Part 85%",null,"ITC Part 85%",null,"ITC Part 85%",null,"ITC Part 85%",null,"ITC Part 85%",null,"ITC Part 85%",null,"ITC Part 85%",null,"ITC Part 85%",null,"ITC Part 85%",null,"ITC Part 85%",null,"ITC Part 85%",null,"ITC Part 85%",null,"ITC Part 85%",null,"ITC Part 85%",null,"ITC Part 85%",null,"ITC Part 85%",null,"ITC Part 85%",null,"ITC Part 85%",null,"ITC Part 85%",null,"ITC Part 85%",null,"ITC Part 85%",null,"ITC Part 85%",null,"ITC Part 85%",null,"ITC Part 85%",null,"ITC Part 85%",null,"ITC Part 85%",null,"ITC Part 85%",null,"ITC Part 85%",null,"ITC Part 85%",null,"ITC Part 85%",null,"ITC Part 85%",null,"ITC Part 85%",null,"ITC Part 85%",null,"ITC Part 85%",null,"ITC Part 85%",null,"ITC Part 85%",null,"ITC Part 85%",null,"ITC Part 85%",null,"ITC Part 85%",null,"ITC Part 85%",null,"ITC Part 85%",null,"ITC Part 85%",null,"ITC Part 85%",null,"ITC Part 85%",null,"ITC Part 85%",null,"ITC Part 85%",null,"ITC Part 85%",null,"ITC Part 85%",null,"ITC Part 85%",null,"ITC Part 85%",null,"ITC Part 85%",null,"ITC Part 85%",null,"ITC Part 85%",null,"ITC Part 85%",null,"ITC Part 85%",null,"ITC Part 85%",null,"ITC Part 85%",null,"ITC Part 85%",null,"ITC Part 85%",null,"ITC Part 85%",null,"ITC Part 85%",null,"ITC Part 85%",null,"ITC Part 85%",null,"ITC Part 85%",null,"ITC Part 85%",null,"ITC Part 85%",null,"ITC Part 85%",null,"ITC Part 85%",null,"ITC Part 85%",null,"ITC Part 85%",null,"ITC Part 85%",null,"ITC Part 85%",null,"ITC Part 85%",null,"ITC Part 85%",null,"ITC Part 85%",null,"ITC Part 85%",null,"ITC Part 85%",null,"ITC Part 85%",null,"ITC Part 85%",null,"ITC Part 85%",null,"ITC Part 85%",null,"ITC Part 85%",null,"ITC Part 85%",null,"ITC Part 85%",null,"ITC Part 85%",null,"ITC Part 85%",null,"ITC Part 85%",null,"ITC Part 85%",null,"ITC Part 85%",null,"ITC Part 85%",null,"ITC Part 85%",null,"ITC Part 85%",null,"ITC Part 85%",null,"ITC Part 85%",null,"ITC Part 85%",null,"ITC Part 85%",null,"ITC Part 85%",null,"ITC Part 85%",null,"ITC Part 85%",null,"ITC Part 85%",null,"ITC Part 85%",null,"ITC Part 85%",null,"ITC Part 85%",null,"ITC Part 85%",null,"ITC Part 85%",null,"ITC Part 85%",null,"ITC Part 85%",null,"ITC Part 85%",null,"ITC Part 85%",null,"ITC Part 85%",null,"ITC Part 85%",null,"ITC Part 85%",null,"ITC Part 85%",null,"ITC Part 85%",null,"ITC Part 85%",null,"ITC Part 85%",null,"ITC Part 85%",null,"ITC Part 85%",null,"ITC Part 85%",null,"ITC Part 85%",null,"ITC Part 85%",null,"ITC Part 85%",null,"ITC Part 85%",null,"ITC Part 85%",null,"ITC Part 85%",null,"ITC Part 85%",null,"ITC Part 85%",null,"ITC Part 85%",null,"ITC Part 85%",null,"ITC Part 85%",null,"ITC Part 85%",null,"ITC Part 85%",null,"ITC Part 85%",null,"ITC Part 85%",null,"ITC Part 85%",null,"ITC Part 85%",null,"ITC Part 85%",null,"ITC Part 85%",null,"ITC Part 85%",null,"ITC Part 85%",null,"ITC Part 85%",null,"ITC Part 85%",null,"ITC Part 85%",null,"ITC Part 85%",null,"ITC Part 85%",null,"ITC Part 85%",null,"ITC Part 85%",null,"ITC Part 85%",null,"ITC Part 85%",null,"ITC Part 85%",null,"ITC Part 85%",null,"ITC Part 85%",null,"ITC Part 85%",null,"ITC Part 85%",null,"ITC Part 85%",null,"ITC Part 85%",null,"ITC Part 85%",null,"ITC Part 85%",null,"ITC Part 85%",null,"ITC Part 85%",null,"ITC Part 85%",null,"ITC Part 85%",null,"ITC Part 85%",null,"ITC Part 85%",null,"ITC Part 85%",null,"ITC Part 85%",null,"ITC Part 85%",null,"ITC Part 85%",null,"ITC Part 85%",null,"ITC Part 85%",null,"ITC Part 85%",null,"ITC Part 85%",null,"ITC Part 85%",null,"ITC Part 85%",null,"ITC Part 85%",null,"ITC Part 85%",null,"ITC Part 85%",null,"ITC Part 85%",null,"ITC Part 85%",null,"ITC Part 85%",null,"ITC Part 85%",null,"ITC Part 85%",null,"ITC Part 85%",null,"ITC Part 85%",null,"ITC Part 85%",null,"ITC Part 85%",null,"ITC Part 85%",null,"ITC Part 85%",null,"ITC Part 85%",null,"ITC Part 85%",null,"ITC Part 85%",null,"ITC Part 85%",null,"ITC Part 85%",null,"ITC Part 85%",null,"ITC Part 85%",null,"ITC Part 85%",null,"ITC Part 85%",null,"ITC Part 85%",null,"ITC Part 85%",null,"ITC Part 85%",null,"ITC Part 85%",null,"ITC Part 85%",null,"ITC Part 85%",null,"ITC Part 85%",null,"ITC Part 85%",null,"ITC Part 85%",null,"ITC Part 85%",null,"ITC Part 85%",null,"ITC Part 85%",null,"ITC Part 85%",null,"ITC Part 85%",null,"ITC Part 85%",null,"ITC Part 85%",null,"ITC Part 85%",null,"ITC Part 85%",null,"ITC Part 85%",null,"ITC Part 85%",null,"ITC Part 85%",null,"ITC Part 85%",null,"ITC Part 85%",null,"ITC Part 85%",null,"ITC Part 85%",null,"ITC Part 85%",null,"ITC Part 85%",null,"ITC Part 85%",null,"ITC Part 85%",null,"ITC Part 85%",null,"ITC Part 85%",null,"ITC Part 85%",null,"ITC Part 85%",null,"ITC Part 85%",null,"ITC Part 85%",null,"ITC Part 85%",null,"ITC Part 85%",null,"ITC Part 85%",null,"ITC Part 85%",null,"ITC Part 85%",null,"ITC Part 85%",null,"ITC Part 85%",null,"ITC Part 85%",null,"ITC Part 85%",null,"ITC Part 85%",null,"ITC Part 85%",null,"ITC Part 85%",null,"ITC Part 85%",null,"ITC Part 85%",null,"ITC Part 85%",null,"ITC Part 85%",null,"ITC Part 85%",null,"ITC Part 85%",null,"ITC Part 85%",null,"ITC Part 85%",null,"ITC Part 85%",null,"ITC Part 85%",null,"ITC Part 85%",null,"ITC Part 85%",null,"ITC Part 85%",null,"ITC Part 85%",null,"ITC Part 85%",null,"ITC Part 85%",null,"ITC Part 85%",null,"ITC Part 85%",null,"ITC Part 85%",null,"ITC Part 85%",null,"ITC Part 85%",null,"ITC Part 85%",null,"ITC Part 85%",null,"ITC Part 85%",null,"ITC Part 85%",null,"ITC Part 85%",null,"ITC Part 85%",null,"ITC Part 85%",null,"ITC Part 85%",null,"ITC Part 85%",null,"ITC Part 85%",null,"ITC Part 85%",null,"ITC Part 85%",null,"ITC Part 85%",null,"ITC Part 85%",null,"ITC Part 85%",null,"ITC Part 85%",null,"ITC Part 85%",null,"ITC Part 85%",null,"ITC Part 85%",null,"ITC Part 85%",null,"ITC Part 85%",null,"ITC Part 85%",null,"ITC Part 85%",null,"ITC Part 85%",null,"ITC Part 85%",null,"ITC Part 85%",null,"ITC Part 85%",null,"ITC Part 85%",null,"ITC Part 85%",null,"ITC Part 85%",null,"ITC Part 85%",null,"ITC Part 85%",null,"ITC Part 85%",null,"ITC Part 85%",null,"ITC Part 85%",null,"ITC Part 85%",null,"ITC Part 85%",null,"ITC Part 85%",null,"ITC Part 85%",null,"ITC Part 85%",null,"ITC Part 85%",null,"ITC Part 85%",null,"ITC Part 85%",null,"ITC Part 85%",null,"ITC Part 85%",null,"ITC Part 85%",null,"ITC Part 85%",null,"ITC Part 85%",null,"ITC Part 85%",null,"ITC Part 85%",null,"ITC Part 85%",null,"ITC Part 85%",null,"ITC Part 85%",null,"ITC Part 85%",null,"ITC Part 85%",null,"ITC Part 85%",null,"ITC Part 85%",null,"ITC Part 85%",null,"ITC Part 85%",null,"ITC Part 85%",null,"ITC Part 85%",null,"ITC Part 85%",null,"ITC Part 85%",null,"ITC Part 85%",null,"ITC Part 85%",null,"ITC Part 85%",null,"ITC Part 85%",null,"ITC Part 85%",null,"ITC Part 85%",null,"ITC Part 85%",null,"ITC Part 85%",null,"ITC Part 85%",null,"ITC Part 85%",null,"ITC Part 85%",null,"ITC Part 85%",null,"ITC Part 85%",null,"ITC Part 85%",null,"ITC Part 85%",null,"ITC Part 85%",null,"ITC Part 85%",null,"ITC Part 85%",null,"ITC Part 85%",null,"ITC Part 85%",null,"ITC Part 85%",null,"ITC Part 85%",null,"ITC Part 85%",null,"ITC Part 85%",null,"ITC Part 85%",null,"ITC Part 85%",null,"ITC Part 85%",null,"ITC Part 85%",null,"ITC Part 85%",null,"ITC Part 85%",null,"ITC Part 85%",null,"ITC Part 85%",null,"ITC Part 85%",null,"ITC Part 85%",null,"ITC Part 85%",null,"ITC Part 85%",null,"ITC Part 85%",null,"ITC Part 85%",null,"ITC Part 85%",null,"ITC Part 85%",null,"ITC Part 85%",null,"ITC Part 85%",null,"ITC Part 85%",null,"ITC Part 85%",null,"ITC Part 85%",null,"ITC Part 85%",null,"ITC Part 85%",null,"ITC Part 85%",null,"ITC Part 85%",null,"ITC Part 85%",null,"ITC Part 85%",null,"ITC Part 85%",null,"ITC Part 85%",null,"ITC Part 85%",null,"ITC Part 85%",null,"ITC Part 85%",null,"ITC Part 85%",null,"ITC Part 85%",null,"ITC Part 85%",null,"ITC Part 85%",null,"ITC Part 85%",null,"ITC Part 85%",null,"ITC Part 85%",null,"ITC Part 85%",null,"ITC Part 85%",null,"ITC Part 85%",null,"ITC Part 85%",null,"ITC Part 85%",null,"ITC Part 85%",null,"ITC Part 85%",null,"ITC Part 85%",null,"ITC Part 85%",null,"ITC Part 85%",null,"ITC Part 85%",null,"ITC Part 85%",null,"ITC Part 85%",null,"ITC Part 85%",null,"ITC Part 85%",null,"ITC Part 85%",null,"ITC Part 85%",null,"ITC Part 85%",null,"ITC Part 85%",null,"ITC Part 85%",null,"ITC Part 85%",null,"ITC Part 85%",null,"ITC Part 85%",null,"ITC Part 85%",null,"ITC Part 85%",null,"ITC Part 85%",null,"ITC Part 85%",null,"ITC Part 85%",null,"ITC Part 85%",null,"ITC Part 85%",null,"ITC Part 85%",null,"ITC Part 85%",null,"ITC Part 85%",null,"ITC Part 85%",null,"ITC Part 85%",null,"ITC Part 85%",null,"ITC Part 85%",null,"ITC Part 85%",null,"ITC Part 85%",null,"ITC Part 85%",null,"ITC Part 85%",null,"ITC Part 85%",null,"ITC Part 85%",null,"ITC Part 85%",null,"ITC Part 85%",null,"ITC Part 85%",null,"ITC Part 85%",null,"ITC Part 85%",null,"ITC Part 85%",null,"ITC Part 85%",null,"ITC Part 85%",null,"ITC Part 85%",null,"ITC Part 85%",null,"ITC Part 85%",null,"ITC Part 85%",null,"ITC Part 85%",null,"ITC Part 85%",null,"ITC Part 85%",null,"ITC Part 85%",null,"ITC Part 85%",null,"ITC Part 85%",null,"ITC Part 85%",null,"ITC Part 85%",null,"ITC Part 85%",null,"ITC Part 85%",null,"ITC Part 85%",null,"ITC Part 85%",null,"ITC Part 85%",null,"ITC Part 85%",null,"ITC Part 85%",null,"ITC Part 85%",null,"ITC Part 85%",null,"ITC Part 85%",null,"ITC Part 85%",null,"ITC Part 85%",null,"ITC Part 85%",null,"ITC Part 85%",null,"ITC Part 85%",null,"ITC Part 85%",null,"ITC Part 85%",null,"ITC Part 85%",null,"ITC Part 85%",null,"ITC Part 85%",null,"ITC Part 85%",null,"ITC Part 85%",null,"ITC Part 85%",null,"ITC Part 85%",null,"ITC Part 85%",null,"ITC Part 85%",null,"ITC Part 85%",null,"ITC Part 85%",null,"ITC Part 85%",null,"ITC Part 85%",null,"ITC Part 85%",null,"ITC Part 85%",null,"ITC Part 85%",null,"ITC Part 85%",null,"ITC Part 85%",null,"ITC Part 85%",null,"ITC Part 85%",null,"ITC Part 85%",null,"ITC Part 85%",null,"ITC Part 85%",null,"ITC Part 85%",null,"ITC Part 85%",null,"ITC Part 85%",null,"ITC Part 85%",null,"ITC Part 85%",null,"ITC Part 85%",null,"ITC Part 85%",null,"ITC Part 85%",null,"ITC Part 85%",null,"ITC Part 85%",null,"ITC Part 85%",null,"ITC Part 85%",null,"ITC Part 85%",null,"ITC Part 85%",null,"ITC Part 85%",null,"ITC Part 85%",null,"ITC Part 85%",null,"ITC Part 85%",null,"ITC Part 85%",null,"ITC Part 85%",null,"ITC Part 85%",null,"ITC Part 85%",null,"ITC Part 85%",null,"ITC Part 85%",null,"ITC Part 85%",null,"ITC Part 85%",null,"ITC Part 85%",null,"ITC Part 85%",null,"ITC Part 85%",null,"ITC Part 85%",null,"ITC Part 85%",null,"ITC Part 85%",null,"ITC Part 85%",null,"ITC Part 85%",null,"ITC Part 85%",null,"ITC Part 85%",null,"ITC Part 85%",null,"ITC Part 85%",null,"ITC Part 85%",null,"ITC Part 85%",null,"ITC Part 85%",null,"ITC Part 85%",null,"ITC Part 85%",null,"ITC Part 85%",null,"ITC Part 85%",null,"ITC Part 85%",null,"ITC Part 85%",null,"ITC Part 85%",null,"ITC Part 85%",null,"ITC Part 85%",null,"ITC Part 85%",null,"ITC Part 85%",null,"ITC Part 85%",null,"ITC Part 85%",null,"ITC Part 85%",null,"ITC Part 85%",null,"ITC Part 85%",null,"ITC Part 85%",null,"ITC Part 85%",null,"ITC Part 85%",null,"ITC Part 85%",null,"ITC Part 85%",null,"ITC Part 85%",null,"ITC Part 85%",null,"ITC Part 85%",null,"ITC Part 85%",null,"ITC Part 85%",null,"ITC Part 85%",null,"ITC Part 85%",null,"ITC Part 85%",null,"ITC Part 85%",null,"ITC Part 85%",null,"ITC Part 85%",null,"ITC Part 85%",null,"ITC Part 85%",null,"ITC Part 85%",null,"ITC Part 85%",null,"ITC Part 85%",null,"ITC Part 85%",null,"ITC Part 85%",null,"ITC Part 85%",null,"ITC Part 85%",null,"ITC Part 85%",null,"ITC Part 85%",null,"ITC Part 85%",null,"ITC Part 85%",null,"ITC Part 85%",null,"ITC Part 85%",null,"ITC Part 85%",null,"ITC Part 85%",null,"ITC Part 85%",null,"ITC Part 85%",null,"ITC Part 85%",null,"ITC Part 85%",null,"ITC Part 85%",null,"ITC Part 85%",null,"ITC Part 85%",null,"ITC Part 85%",null,"ITC Part 85%",null,"ITC Part 85%",null,"ITC Part 85%",null,"ITC Part 85%",null,"ITC Part 85%",null,"ITC Part 85%",null,"ITC Part 85%",null,"ITC Part 85%",null,"ITC Part 85%",null,"ITC Part 85%",null,"ITC Part 85%",null,"ITC Part 85%",null,"ITC Part 85%",null,"ITC Part 85%",null,"ITC Part 85%",null,"ITC Part 85%",null,"ITC Part 85%",null,"ITC Part 85%",null,"ITC Part 85%",null,"ITC Part 85%",null,"ITC Part 85%",null,"ITC Part 85%",null,"ITC Part 85%",null,"ITC Part 85%",null,"ITC Part 85%",null,"ITC Part 85%",null,"ITC Part 85%",null,"ITC Part 85%",null,"ITC Part 85%",null,"ITC Part 85%",null,"ITC Part 85%",null,"ITC Part 85%",null,"ITC Part 85%",null,"ITC Part 85%",null,"ITC Part 85%",null,"ITC Part 85%",null,"ITC Part 85%",null,"ITC Part 85%",null,"ITC Part 85%",null,"ITC Part 85%",null,"ITC Part 85%",null,"ITC Part 85%",null,"ITC Part 85%",null,"ITC Part 85%",null,"ITC Part 85%",null,"ITC Part 85%",null,"ITC Part 85%",null,"ITC Part 85%",null,"ITC Part 85%",null,"ITC Part 85%",null,"ITC Part 85%",null,"ITC Part 85%",null,"ITC Part 85%",null,"ITC Part 85%",null,"ITC Part 85%",null,"ITC Part 85%",null,"ITC Part 85%",null,"ITC Part 85%",null,"ITC Part 85%",null,"ITC Part 85%",null,"ITC Part 85%",null,"ITC Part 85%",null,"ITC Part 85%",null,"ITC Part 85%",null,"ITC Part 85%",null,"ITC Part 85%",null,"ITC Part 85%",null,"ITC Part 85%",null,"ITC Part 85%",null,"ITC Part 85%",null,"ITC Part 85%",null,"ITC Part 85%",null,"ITC Part 85%",null,"ITC Part 85%",null,"ITC Part 85%",null,"ITC Part 85%",null,"ITC Part 85%",null,"ITC Part 85%",null,"ITC Part 85%",null,"ITC Part 85%",null,"ITC Part 85%",null,"ITC Part 85%",null,"ITC Part 85%",null,"ITC Part 85%",null,"ITC Part 85%",null,"ITC Part 85%",null,"ITC Part 85%",null,"ITC Part 85%",null,"ITC Part 85%",null,"ITC Part 85%",null,"ITC Part 85%",null,"ITC Part 85%",null,"ITC Part 85%",null,"ITC Part 85%",null,"ITC Part 85%",null,"ITC Part 85%",null,"ITC Part 85%",null,"ITC Part 85%",null,"ITC Part 85%",null,"ITC Part 85%",null,"ITC Part 85%",null,"ITC Part 85%",null,"ITC Part 85%",null,"ITC Part 85%",null,"ITC Part 85%",null,"ITC Part 85%",null,"ITC Part 85%",null,"ITC Part 85%",null,"ITC Part 85%",null,"ITC Part 85%",null,"ITC Part 85%",null,"ITC Part 85%",null,"ITC Part 85%",null,"ITC Part 85%",null,"ITC Part 85%",null,"ITC Part 85%",null,"ITC Part 85%",null,"ITC Part 85%",null,"ITC Part 85%",null,"ITC Part 85%",null,"ITC Part 85%",null,"ITC Part 85%",null,"ITC Part 85%",null,"ITC Part 85%",null,"ITC Part 85%",null,"ITC Part 85%",null,"ITC Part 85%",null,"ITC Part 85%",null,"ITC Part 85%",null,"ITC Part 85%",null,"ITC Part 85%",null,"ITC Part 85%",null,"ITC Part 85%",null,"ITC Part 85%",null,"ITC Part 85%",null,"ITC Part 85%",null,"ITC Part 85%",null,"ITC Part 85%",null,"ITC Part 85%",null,"ITC Part 85%",null,"ITC Part 85%",null,"ITC Part 85%",null,"ITC Part 85%",null,"ITC Part 85%",null,"ITC Part 85%",null,"ITC Part 85%",null,"ITC Part 85%",null,"ITC Part 85%",null,"ITC Part 85%",null,"ITC Part 85%",null,"ITC Part 85%",null,"ITC Part 85%",null,"ITC Part 85%",null,"ITC Part 85%",null,"ITC Part 85%",null,"ITC Part 85%",null,"ITC Part 85%",null,"ITC Part 85%",null,"ITC Part 85%",null,"ITC Part 85%",null,"ITC Part 85%",null,"ITC Part 85%",null,"ITC Part 85%",null,"ITC Part 85%",null,"ITC Part 85%",null,"ITC Part 85%",null,"ITC Part 85%",null,"ITC Part 85%",null,"ITC Part 85%",null,"ITC Part 85%",null,"ITC Part 85%",null,"ITC Part 85%",null,"ITC Part 85%",null,"ITC Part 85%",null,"ITC Part 85%",null,"ITC Part 85%",null,"ITC Part 85%",null,"ITC Part 85%",null,"ITC Part 85%",null,"ITC Part 85%",null,"ITC Part 85%",null,"ITC Part 85%",null,"ITC Part 85%",null,"ITC Part 85%",null,"ITC Part 85%",null,"ITC Part 85%",null,"ITC Part 85%",null,"ITC Part 85%",null,"ITC Part 85%",null,"ITC Part 85%",null,"ITC Part 85%",null,"ITC Part 85%",null,"ITC Part 85%",null,"ITC Part 85%",null,"ITC Part 85%",null,"ITC Part 85%",null,"ITC Part 85%",null,"ITC Part 85%",null,"ITC Part 85%",null,"ITC Part 85%",null,"ITC Part 85%",null,"ITC Part 85%",null,"ITC Part 85%",null,"ITC Part 85%",null,"ITC Part 85%",null,"ITC Part 85%",null,"ITC Part 85%",null,"ITC Part 85%",null,"ITC Part 85%",null,"ITC Part 85%",null,"ITC Part 85%",null,"ITC Part 85%",null,"ITC Part 85%",null,"ITC Part 85%",null,"ITC Part 85%",null,"ITC Part 85%",null,"ITC Part 85%",null,"ITC Part 85%",null,"ITC Part 85%",null,"ITC Part 85%",null,"ITC Part 85%",null,"ITC Part 85%",null,"ITC Part 85%",null,"ITC Part 85%",null,"ITC Part 85%",null,"ITC Part 85%",null,"ITC Part 85%",null,"ITC Part 85%",null,"ITC Part 85%",null,"ITC Part 85%",null,"ITC Part 85%",null,"ITC Part 85%",null,"ITC Part 85%",null,"ITC Part 85%",null,"ITC Part 85%",null,"ITC Part 85%",null,"ITC Part 85%",null,"ITC Part 85%",null,"ITC Part 85%",null,"ITC Part 85%",null,"ITC Part 85%",null,"ITC Part 85%",null,"ITC Part 85%",null,"ITC Part 85%",null,"ITC Part 85%",null,"ITC Part 85%",null,"ITC Part 85%",null,"ITC Part 85%",null,"ITC Part 85%",null,"ITC Part 85%",null,"ITC Part 85%",null,"ITC Part 85%",null,"ITC Part 85%",null,"ITC Part 85%",null,"ITC Part 85%",null,"ITC Part 85%",null,"ITC Part 85%",null,"ITC Part 85%",null,"ITC Part 85%",null,"ITC Part 85%",null,"ITC Part 85%",null,"ITC Part 85%",null,"ITC Part 85%",null,"ITC Part 85%",null,"ITC Part 85%",null,"ITC Part 85%",null,"ITC Part 85%",null,"ITC Part 85%",null,"ITC Part 85%",null,"ITC Part 85%",null,"ITC Part 85%",null,"ITC Part 85%",null,"ITC Part 85%",null,"ITC Part 85%",null,"ITC Part 85%",null,"ITC Part 85%",null,"ITC Part 85%",null,"ITC Part 85%",null,"ITC Part 85%",null,"ITC Part 85%",null,"ITC Part 85%",null,"ITC Part 85%",null,"ITC Part 85%",null,"ITC Part 85%",null,"ITC Part 85%",null,"ITC Part 85%",null,"ITC Part 85%",null,"ITC Part 85%",null,"ITC Part 85%",null,"ITC Part 85%",null,"ITC Part 85%",null,"ITC Part 85%",null,"ITC Part 85%",null,"ITC Part 85%",null,"ITC Part 85%",null,"ITC Part 85%",null,"ITC Part 85%",null,"ITC Part 85%",null,"ITC Part 85%",null,"ITC Part 85%",null,"ITC Part 85%",null,"ITC Part 85%",null,"ITC Part 85%",null,"ITC Part 85%",null,"ITC Part 85%",null,"ITC Part 85%",null,"ITC Part 85%",null,"ITC Part 85%",null,"ITC Part 85%",null,"ITC Part 85%",null,"ITC Part 85%",null,"ITC Part 85%",null,"ITC Part 85%",null,"ITC Part 85%",null,"ITC Part 85%",null,"ITC Part 85%",null,"ITC Part 85%",null,"ITC Part 85%",null,"ITC Part 85%",null,"ITC Part 85%",null,"ITC Part 85%",null,"ITC Part 85%",null,"ITC Part 85%",null,"ITC Part 85%",null,"ITC Part 85%",null,"ITC Part 85%",null,"ITC Part 85%",null,"ITC Part 85%",null,"ITC Part 85%",null,"ITC Part 85%",null,"ITC Part 85%",null,"ITC Part 85%",null,"ITC Part 85%",null,"ITC Part 85%",null,"ITC Part 85%",null,"ITC Part 85%",null,"ITC Part 85%",null,"ITC Part 85%",null,"ITC Part 85%",null,"ITC Part 85%",null,"ITC Part 85%",null,"ITC Part 85%",null,"ITC Part 85%",null,"ITC Part 85%",null,"ITC Part 85%",null,"ITC Part 85%",null,"ITC Part 85%",null,"ITC Part 85%",null,"ITC Part 85%",null,"ITC Part 85%",null,"ITC Part 85%",null,"ITC Part 85%",null,"ITC Part 85%",null,"ITC Part 85%",null,"ITC Part 85%",null,"ITC Part 85%",null,"ITC Part 85%",null,"ITC Part 85%",null,"ITC Part 85%",null,"ITC Part 85%",null,"ITC Part 85%",null,"ITC Part 85%",null,"ITC Part 85%",null,"ITC Part 85%",null,"ITC Part 85%",null,"ITC Part 85%",null,"ITC Part 85%",null,"ITC Part 85%",null,"ITC Part 85%",null,"ITC Part 85%",null,"ITC Part 85%",null,"ITC Part 85%",null,"ITC Part 85%",null,"ITC Part 85%",null,"ITC Part 85%",null,"ITC Part 85%",null,"ITC Part 85%",null,"ITC Part 85%",null,"ITC Part 85%",null,"ITC Part 85%",null,"ITC Part 85%",null,"ITC Part 85%",null,"ITC Part 85%",null,"ITC Part 85%",null,"ITC Part 85%",null,"ITC Part 85%",null,"ITC Part 85%",null,"ITC Part 85%",null,"ITC Part 85%",null,"ITC Part 85%",null,"ITC Part 85%",null,"ITC Part 85%",null,"ITC Part 85%",null,"ITC Part 85%",null,"ITC Part 85%",null,"ITC Part 85%",null,"ITC Part 85%",null,"ITC Part 85%",null,"ITC Part 85%",null,"ITC Part 85%",null,"ITC Part 85%",null,"ITC Part 85%",null,"ITC Part 85%",null,"ITC Part 85%",null,"ITC Part 85%",null,"ITC Part 85%",null,"ITC Part 85%",null,"ITC Part 85%",null,"ITC Part 85%",null,"ITC Part 85%",null,"ITC Part 85%",null,"ITC Part 85%",null,"ITC Part 85%",null,"ITC Part 85%",null,"ITC Part 85%",null,"ITC Part 85%",null,"ITC Part 85%",null,"ITC Part 85%",null,"ITC Part 85%",null,"ITC Part 85%",null,"ITC Part 85%",null,"ITC Part 85%",null,"ITC Part 85%",null,"ITC Part 85%",null,"ITC Part 85%",null,"ITC Part 85%",null,"ITC Part 85%",null,"ITC Part 85%",null,"ITC Part 85%",null,"ITC Part 85%",null,"ITC Part 85%",null,"ITC Part 85%",null,"ITC Part 85%",null,"ITC Part 85%",null,"ITC Part 85%",null,"ITC Part 85%",null,"ITC Part 85%",null,"ITC Part 85%",null,"ITC Part 85%",null,"ITC Part 85%",null,"ITC Part 85%",null,"ITC Part 85%",null,"ITC Part 85%",null,"ITC Part 85%",null,"ITC Part 85%",null,"ITC Part 85%",null,"ITC Part 85%",null,"ITC Part 85%",null,"ITC Part 85%",null,"ITC Part 85%",null,"ITC Part 85%",null,"ITC Part 85%",null,"ITC Part 85%",null,"ITC Part 85%",null,"ITC Part 85%",null,"ITC Part 85%",null,"ITC Part 85%",null,"ITC Part 85%",null,"ITC Part 85%",null,"ITC Part 85%",null,"ITC Part 85%",null,"ITC Part 85%",null,"ITC Part 85%",null,"ITC Part 85%",null,"ITC Part 85%",null,"ITC Part 85%",null,"ITC Part 85%",null,"ITC Part 85%",null,"ITC Part 85%",null,"ITC Part 85%",null,"ITC Part 85%",null,"ITC Part 85%",null,"ITC Part 85%",null,"ITC Part 85%",null,"ITC Part 85%",null,"ITC Part 85%",null,"ITC Part 85%",null,"ITC Part 85%",null,"ITC Part 85%",null,"ITC Part 85%",null,"ITC Part 85%",null,"ITC Part 85%",null,"ITC Part 85%",null,"ITC Part 85%",null,"ITC Part 85%",null,"ITC Part 85%",null,"ITC Part 85%",null,"ITC Part 85%",null,"ITC Part 85%",null,"ITC Part 85%",null,"ITC Part 85%",null,"ITC Part 85%",null,"ITC Part 85%",null,"ITC Part 85%",null,"ITC Part 85%",null,"ITC Part 85%",null,"ITC Part 85%",null,"ITC Part 85%",null,"ITC Part 85%",null,"ITC Part 85%",null,"ITC Part 85%",null,"ITC Part 85%",null,"ITC Part 85%",null,"ITC Part 85%",null,"ITC Part 85%",null,"ITC Part 85%",null,"ITC Part 85%",null,"ITC Part 85%",null,"ITC Part 85%",null,"ITC Part 85%",null,"ITC Part 85%",null,"ITC Part 85%",null,"ITC Part 85%",null,"ITC Part 85%",null,"ITC Part 85%",null,"ITC Part 85%",null,"ITC Part 85%",null,"ITC Part 85%",null,"ITC Part 85%",null,"ITC Part 85%",null,"ITC Part 85%",null,"ITC Part 85%",null,"ITC Part 85%",null,"ITC Part 85%",null,"ITC Part 85%",null,"ITC Part 85%",null,"ITC Part 85%",null,"ITC Part 85%",null,"ITC Part 85%",null,"ITC Part 85%",null,"ITC Part 85%",null,"ITC Part 85%",null,"ITC Part 85%",null,"ITC Part 85%",null,"ITC Part 85%",null,"ITC Part 85%",null,"ITC Part 85%",null,"ITC Part 85%",null,"ITC Part 85%",null,"ITC Part 85%",null,"ITC Part 85%",null,"ITC Part 85%",null,"ITC Part 85%",null,"ITC Part 85%",null,"ITC Part 85%",null,"ITC Part 85%",null,"ITC Part 85%",null,"ITC Part 85%",null,"ITC Part 85%",null,"ITC Part 85%",null,"ITC Part 85%",null,"ITC Part 85%",null,"ITC Part 85%",null,"ITC Part 85%",null,"ITC Part 85%",null,"ITC Part 85%",null,"ITC Part 85%",null,"ITC Part 85%",null,"ITC Part 85%",null,"ITC Part 85%",null,"ITC Part 85%",null,"ITC Part 85%",null,"ITC Part 85%",null,"ITC Part 85%",null,"ITC Part 85%",null,"ITC Part 85%",null,"ITC Part 85%",null,"ITC Part 85%",null,"ITC Part 85%",null,"ITC Part 85%",null,"ITC Part 85%",null,"ITC Part 85%",null,"ITC Part 85%",null,"ITC Part 85%",null,"ITC Part 85%",null,"ITC Part 85%",null,"ITC Part 85%",null,"ITC Part 85%",null,"ITC Part 85%",null,"ITC Part 85%",null,"ITC Part 85%",null,"ITC Part 85%",null,"ITC Part 85%",null,"ITC Part 85%",null,"ITC Part 85%",null,"ITC Part 85%",null,"ITC Part 85%",null,"ITC Part 85%",null,"ITC Part 85%",null,"ITC Part 85%",null,"ITC Part 85%",null,"ITC Part 85%",null,"ITC Part 85%",null,"ITC Part 85%",null,"ITC Part 85%",null,"ITC Part 85%",null,"ITC Part 85%",null,"ITC Part 85%",null,"ITC Part 85%",null,"ITC Part 85%",null,"ITC Part 85%",null,"ITC Part 85%",null,"ITC Part 85%",null,"ITC Part 85%",null,"ITC Part 85%",null,"ITC Part 85%",null,"ITC Part 85%",null,"ITC Part 85%",null,"ITC Part 85%",null,"ITC Part 85%",null,"ITC Part 85%",null,"ITC Part 85%",null,"ITC Part 85%",null,"ITC Part 85%",null,"ITC Part 85%",null,"ITC Part 85%",null,"ITC Part 85%",null,"ITC Part 85%",null,"ITC Part 85%",null,"ITC Part 85%",null,"ITC Part 85%",null,"ITC Part 85%",null,"ITC Part 85%",null,"ITC Part 85%",null,"ITC Part 85%",null,"ITC Part 85%",null,"ITC Part 85%",null,"ITC Part 85%",null,"ITC Part 85%",null,"ITC Part 85%",null,"ITC Part 85%",null,"ITC Part 85%",null,"ITC Part 85%",null,"ITC Part 85%",null,"ITC Part 85%",null,"ITC Part 85%",null,"ITC Part 85%",null,"ITC Part 85%",null,"ITC Part 85%",null,"ITC Part 85%",null,"ITC Part 85%",null,"ITC Part 85%",null,"ITC Part 85%",null,"ITC Part 85%",null,"ITC Part 85%",null,"ITC Part 85%",null,"ITC Part 85%",null,"ITC Part 85%",null,"ITC Part 85%",null,"ITC Part 85%",null,"ITC Part 85%",null,"ITC Part 85%",null,"ITC Part 85%",null,"ITC Part 85%",null,"ITC Part 85%",null,"ITC Part 85%",null,"ITC Part 85%",null,"ITC Part 85%",null,"ITC Part 85%",null,"ITC Part 85%",null,"ITC Part 85%",null,"ITC Part 85%",null,"ITC Part 85%",null,"ITC Part 85%",null,"ITC Part 85%",null,"ITC Part 85%",null,"ITC Part 85%",null,"ITC Part 85%",null,"ITC Part 85%",null,"ITC Part 85%",null,"ITC Part 85%",null,"ITC Part 85%",null,"ITC Part 85%",null,"ITC Part 85%",null,"ITC Part 85%",null,"ITC Part 85%",null,"ITC Part 85%",null,"ITC Part 85%",null,"ITC Part 85%",null,"ITC Part 85%",null,"ITC Part 85%",null,"ITC Part 85%",null,"ITC Part 85%",null,"ITC Part 85%",null,"ITC Part 85%",null,"ITC Part 85%",null,"ITC Part 85%",null,"ITC Part 85%",null,"ITC Part 85%",null,"ITC Part 85%",null,"ITC Part 85%",null,"ITC Part 85%",null,"ITC Part 85%",null,"ITC Part 85%",null,"ITC Part 85%",null,"ITC Part 85%",null,"ITC Part 85%",null,"ITC Part 85%",null,"ITC Part 85%",null,"ITC Part 85%",null,"ITC Part 85%",null,"ITC Part 85%",null,"ITC Part 85%",null,"ITC Part 85%",null,"ITC Part 85%",null,"ITC Part 85%",null,"ITC Part 85%",null,"ITC Part 85%",null,"ITC Part 85%",null,"ITC Part 85%",null,"ITC Part 85%",null,"ITC Part 85%",null,"ITC Part 85%",null,"ITC Part 85%",null,"ITC Part 85%",null,"ITC Part 85%",null,"ITC Part 85%",null,"ITC Part 85%",null,"ITC Part 85%",null,"ITC Part 85%",null,"ITC Part 85%",null,"ITC Part 85%",null,"ITC Part 85%",null,"ITC Part 85%",null,"ITC Part 85%",null,"ITC Part 85%",null,"ITC Part 85%",null,"ITC Part 85%",null,"ITC Part 85%",null,"ITC Part 85%",null,"ITC Part 85%",null,"ITC Part 85%",null,"ITC Part 85%",null,"ITC Part 85%",null,"ITC Part 85%",null,"ITC Part 85%",null,"ITC Part 85%",null,"ITC Part 85%",null,"ITC Part 85%",null,"ITC Part 85%",null,"ITC Part 85%",null,"ITC Part 85%",null,"ITC Part 85%",null,"ITC Part 85%",null,"ITC Part 85%",null,"ITC Part 85%",null,"ITC Part 85%",null,"ITC Part 85%",null,"ITC Part 85%",null,"ITC Part 85%",null,"ITC Part 85%",null,"ITC Part 85%",null,"ITC Part 85%",null,"ITC Part 85%",null,"ITC Part 85%",null,"ITC Part 85%",null,"ITC Part 85%",null,"ITC Part 85%",null,"ITC Part 85%",null,"ITC Part 85%",null,"ITC Part 85%",null,"ITC Part 85%",null,"ITC Part 85%",null,"ITC Part 85%",null,"ITC Part 85%",null,"ITC Part 85%",null,"ITC Part 85%",null,"ITC Part 85%",null,"ITC Part 85%",null,"ITC Part 85%",null,"ITC Part 85%",null,"ITC Part 85%",null,"ITC Part 85%",null,"ITC Part 85%",null,"ITC Part 85%",null,"ITC Part 85%",null,"ITC Part 85%",null,"ITC Part 85%",null,"ITC Part 85%",null,"ITC Part 85%",null,"ITC Part 85%",null,"ITC Part 85%",null,"ITC Part 85%",null,"ITC Part 85%",null,"ITC Part 85%",null,"ITC Part 85%",null,"ITC Part 85%",null,"ITC Part 85%",null,"ITC Part 85%",null,"ITC Part 85%",null,"ITC Part 85%",null,"ITC Part 85%",null,"ITC Part 85%",null,"ITC Part 85%",null,"ITC Part 85%",null,"ITC Part 85%",null,"ITC Part 85%",null,"ITC Part 85%",null,"ITC Part 85%",null,"ITC Part 85%",null,"ITC Part 85%",null,"ITC Part 85%",null,"ITC Part 85%",null,"ITC Part 85%",null,"ITC Part 85%",null,"ITC Part 85%",null,"ITC Part 85%",null,"ITC Part 85%",null,"ITC Part 85%",null,"ITC Part 85%",null,"ITC Part 85%",null,"ITC Part 85%",null,"ITC Part 85%",null,"ITC Part 85%",null,"ITC Part 85%",null,"ITC Part 85%",null,"ITC Part 85%",null,"ITC Part 85%",null,"ITC Part 85%",null,"ITC Part 85%",null,"ITC Part 85%",null,"ITC Part 85%",null,"ITC Part 85%",null,"ITC Part 85%",null,"ITC Part 85%",null,"ITC Part 85%",null,"ITC Part 85%",null,"ITC Part 85%",null,"ITC Part 85%",null,"ITC Part 85%",null,"ITC Part 85%",null,"ITC Part 85%",null,"ITC Part 85%",null,"ITC Part 85%",null,"ITC Part 85%",null,"ITC Part 85%",null,"ITC Part 85%",null,"ITC Part 85%",null,"ITC Part 85%",null,"ITC Part 85%",null,"ITC Part 85%",null,"ITC Part 85%",null,"ITC Part 85%",null,"ITC Part 85%",null,"ITC Part 85%",null,"ITC Part 85%",null,"ITC Part 85%",null,"ITC Part 85%",null,"ITC Part 85%",null,"ITC Part 85%",null,"ITC Part 85%",null,"ITC Part 85%",null,"ITC Part 85%",null,"ITC Part 85%",null,"ITC Part 85%",null,"ITC Part 85%",null,"ITC Part 85%",null,"ITC Part 85%",null,"ITC Part 85%",null,"ITC Part 85%",null,"ITC Part 85%",null,"ITC Part 85%",null,"ITC Part 85%",null,"ITC Part 85%",null,"ITC Part 85%",null,"ITC Part 85%",null,"ITC Part 85%",null,"ITC Part 85%",null,"ITC Part 85%",null,"ITC Part 85%",null,"ITC Part 85%",null,"ITC Part 85%",null,"ITC Part 85%",null,"ITC Part 85%",null,"ITC Part 85%",null,"ITC Part 85%",null,"ITC Part 85%",null,"ITC Part 85%",null,"ITC Part 85%",null,"ITC Part 85%",null,"ITC Part 85%",null,"ITC Part 85%",null,"ITC Part 85%",null,"ITC Part 85%",null,"ITC Part 85%",null,"ITC Part 85%",null,"ITC Part 85%",null,"ITC Part 85%",null,"ITC Part 85%",null,"ITC Part 85%",null,"ITC Part 85%",null,"ITC Part 85%",null,"ITC Part 85%",null,"ITC Part 85%",null,"ITC Part 85%",null,"ITC Part 85%",null,"ITC Part 85%",null,"ITC Part 85%",null,"ITC Part 85%",null,"ITC Part 85%",null,"ITC Part 85%",null,"ITC Part 85%",null,"ITC Part 85%",null,"ITC Part 85%",null,"ITC Part 85%",null,"ITC Part 85%",null,"ITC Part 85%",null,"ITC Part 85%",null,"ITC Part 85%",null,"ITC Part 85%",null,"ITC Part 85%",null,"ITC Part 85%",null,"ITC Part 85%",null,"ITC Part 85%",null,"ITC Part 85%",null,"ITC Part 85%",null,"ITC Part 85%",null,"ITC Part 85%",null,"ITC Part 85%",null,"ITC Part 85%",null,"ITC Part 85%",null,"ITC Part 85%",null,"ITC Part 85%",null,"ITC Part 85%",null,"ITC Part 85%",null,"ITC Part 85%",null,"ITC Part 85%",null,"ITC Part 85%",null,"ITC Part 85%",null,"ITC Part 85%",null,"ITC Part 85%",null,"ITC Part 85%",null,"ITC Part 85%",null,"ITC Part 85%",null,"ITC Part 85%",null,"ITC Part 85%",null,"ITC Part 85%",null,"ITC Part 85%",null,"ITC Part 85%",null,"ITC Part 85%",null,"ITC Part 85%",null,"ITC Part 85%",null,"ITC Part 85%",null,"ITC Part 85%",null,"ITC Part 85%",null,"ITC Part 85%",null,"ITC Part 85%",null,"ITC Part 85%",null,"ITC Part 85%",null,"ITC Part 85%",null,"ITC Part 85%",null,"ITC Part 85%",null,"ITC Part 85%",null,"ITC Part 85%",null,"ITC Part 85%",null,"ITC Part 85%",null,"ITC Part 85%",null,"ITC Part 85%",null,"ITC Part 85%",null,"ITC Part 85%",null,"ITC Part 85%",null,"ITC Part 85%",null,"ITC Part 85%",null,"ITC Part 85%",null,"ITC Part 85%",null,"ITC Part 85%",null,"ITC Part 85%",null,"ITC Part 85%",null,"ITC Part 85%",null,"ITC Part 85%",null,"ITC Part 85%",null,"ITC Part 85%",null,"ITC Part 85%",null,"ITC Part 85%",null,"ITC Part 85%",null,"ITC Part 85%",null,"ITC Part 85%",null,"ITC Part 85%",null,"ITC Part 85%",null,"ITC Part 85%",null,"ITC Part 85%",null,"ITC Part 85%",null,"ITC Part 85%",null,"ITC Part 85%",null,"ITC Part 85%",null,"ITC Part 85%",null,"ITC Part 85%",null,"ITC Part 85%",null,"ITC Part 85%",null,"ITC Part 85%",null,"ITC Part 85%",null,"ITC Part 85%",null,"ITC Part 85%",null,"ITC Part 85%",null,"ITC Part 85%",null,"ITC Part 85%",null,"ITC Part 85%",null,"ITC Part 85%",null,"ITC Part 85%",null,"ITC Part 85%",null,"ITC Part 85%",null,"ITC Part 85%",null,"ITC Part 85%",null,"ITC Part 85%",null,"ITC Part 85%",null,"ITC Part 85%",null,"ITC Part 85%",null,"ITC Part 85%",null,"ITC Part 85%",null,"ITC Part 85%",null,"ITC Part 85%",null,"ITC Part 85%",null,"ITC Part 85%",null,"ITC Part 85%",null,"ITC Part 85%",null,"ITC Part 85%",null,"ITC Part 85%",null,"ITC Part 85%",null,"ITC Part 85%",null,"ITC Part 85%",null,"ITC Part 85%",null,"ITC Part 85%",null,"ITC Part 85%",null,"ITC Part 85%",null,"ITC Part 85%",null,"ITC Part 85%",null,"ITC Part 85%",null,"ITC Part 85%",null,"ITC Part 85%",null,"ITC Part 85%",null,"ITC Part 85%",null,"ITC Part 85%",null,"ITC Part 85%",null,"ITC Part 85%",null,"ITC Part 85%",null,"ITC Part 85%",null,"ITC Part 85%",null,"ITC Part 85%",null,"ITC Part 85%",null,"ITC Part 85%",null,"ITC Part 85%",null,"ITC Part 85%",null,"ITC Part 85%",null,"ITC Part 85%",null,"ITC Part 85%",null,"ITC Part 85%",null,"ITC Part 85%",null,"ITC Part 85%",null,"ITC Part 85%",null,"ITC Part 85%",null,"ITC Part 85%",null,"ITC Part 85%",null,"ITC Part 85%",null,"ITC Part 85%",null,"ITC Part 85%",null,"ITC Part 85%",null,"ITC Part 85%",null,"ITC Part 85%",null,"ITC Part 85%",null,"ITC Part 85%",null,"ITC Part 85%",null,"ITC Part 85%",null,"ITC Part 85%",null,"ITC Part 85%",null,"ITC Part 85%",null,"ITC Part 85%",null,"ITC Part 85%",null,"ITC Part 85%",null,"ITC Part 85%",null,"ITC Part 85%",null,"ITC Part 85%",null,"ITC Part 85%",null,"ITC Part 85%",null,"ITC Part 85%",null,"ITC Part 85%",null,"ITC Part 85%",null,"ITC Part 85%",null,"ITC Part 85%",null,"ITC Part 85%",null,"ITC Part 85%",null,"ITC Part 85%",null,"ITC Part 85%",null,"ITC Part 85%",null,"ITC Part 85%",null,"ITC Part 85%",null,"ITC Part 85%",null,"ITC Part 85%",null,"ITC Part 85%",null,"ITC Part 85%",null,"ITC Part 85%",null,"ITC Part 85%",null,"ITC Part 85%",null,"ITC Part 85%",null,"ITC Part 85%",null,"ITC Part 85%",null,"ITC Part 85%",null,"ITC Part 85%",null,"ITC Part 85%",null,"ITC Part 85%",null,"ITC Part 85%",null,"ITC Part 85%",null,"ITC Part 85%",null,"ITC Part 85%",null,"ITC Part 85%",null,"ITC Part 85%",null,"ITC Part 85%",null,"ITC Part 85%",null,"ITC Part 85%",null,"ITC Part 85%",null,"ITC Part 85%",null,"ITC Part 85%",null,"ITC Part 85%",null,"ITC Part 85%",null,"ITC Part 85%",null,"ITC Part 85%",null,"ITC Part 85%",null,"ITC Part 85%",null,"ITC Part 85%",null,"ITC Part 85%",null,"ITC Part 85%",null,"ITC Part 85%",null,"ITC Part 85%",null,"ITC Part 85%",null,"ITC Part 85%",null,"ITC Part 85%",null,"ITC Part 85%",null,"ITC Part 85%",null,"ITC Part 85%",null,"ITC Part 85%",null,"ITC Part 85%",null,"ITC Part 85%",null,"ITC Part 85%",null,"ITC Part 85%",null,"ITC Part 85%",null,"ITC Part 85%",null,"ITC Part 85%",null,"ITC Part 85%",null,"ITC Part 85%",null,"ITC Part 85%",null,"ITC Part 85%",null,"ITC Part 85%",null,"ITC Part 85%",null,"ITC Part 85%",null,"ITC Part 85%",null,"ITC Part 85%",null,"ITC Part 85%",null,"ITC Part 85%",null,"ITC Part 85%",null,"ITC Part 85%",null,"ITC Part 85%",null,"ITC Part 85%",null,"ITC Part 85%",null,"ITC Part 85%",null,"ITC Part 85%",null,"ITC Part 85%",null,"ITC Part 85%",null,"ITC Part 85%",null,"ITC Part 85%",null,"ITC Part 85%",null,"ITC Part 85%",null,"ITC Part 85%",null,"ITC Part 85%",null,"ITC Part 85%",null,"ITC Part 85%",null,"ITC Part 85%",null,"ITC Part 85%",null,"ITC Part 85%",null,"ITC Part 85%",null,"ITC Part 85%",null,"ITC Part 85%",null,"ITC Part 85%",null,"ITC Part 85%",null,"ITC Part 85%",null,"ITC Part 85%",null,"ITC Part 85%",null,"ITC Part 85%",null,"ITC Part 85%",null,"ITC Part 85%",null,"ITC Part 85%",null,"ITC Part 85%",null,"ITC Part 85%",null,"ITC Part 85%",null,"ITC Part 85%",null,"ITC Part 85%",null,"ITC Part 85%",null,"ITC Part 85%",null,"ITC Part 85%",null,"ITC Part 85%",null,"ITC Part 85%",null,"ITC Part 85%",null,"ITC Part 85%",null,"ITC Part 85%",null,"ITC Part 85%",null,"ITC Part 85%",null,"ITC Part 85%",null,"ITC Part 85%",null,"ITC Part 85%",null,"ITC Part 85%",null,"ITC Part 85%",null,"ITC Part 85%",null,"ITC Part 85%",null,"ITC Part 85%",null,"ITC Part 85%",null,"ITC Part 85%",null,"ITC Part 85%",null,"ITC Part 85%",null,"ITC Part 85%",null,"ITC Part 85%",null,"ITC Part 85%",null,"ITC Part 85%",null,"ITC Part 85%",null,"ITC Part 85%",null,"ITC Part 85%",null,"ITC Part 85%",null,"ITC Part 85%",null,"ITC Part 85%",null,"ITC Part 85%",null,"ITC Part 85%",null,"ITC Part 85%",null,"ITC Part 85%",null,"ITC Part 85%",null,"ITC Part 85%",null,"ITC Part 85%",null,"ITC Part 85%",null,"ITC Part 85%",null,"ITC Part 85%",null,"ITC Part 85%",null,"ITC Part 85%",null,"ITC Part 85%",null,"ITC Part 85%",null,"ITC Part 85%",null,"ITC Part 85%",null,"ITC Part 85%",null,"ITC Part 85%",null,"ITC Part 85%",null,"ITC Part 85%",null,"ITC Part 85%",null,"ITC Part 85%",null,"ITC Part 85%",null,"ITC Part 85%",null,"ITC Part 85%",null,"ITC Part 85%",null,"ITC Part 85%",null,"ITC Part 85%",null,"ITC Part 85%",null,"ITC Part 85%",null,"ITC Part 85%",null,"ITC Part 85%",null,"ITC Part 85%",null,"ITC Part 85%",null,"ITC Part 85%",null,"ITC Part 85%",null,"ITC Part 85%",null,"ITC Part 85%",null,"ITC Part 85%",null,"ITC Part 85%",null,"ITC Part 85%",null,"ITC Part 85%",null,"ITC Part 85%",null,"ITC Part 85%",null,"ITC Part 85%",null,"ITC Part 85%",null,"ITC Part 85%",null,"ITC Part 85%",null,"ITC Part 85%",null,"ITC Part 85%",null,"ITC Part 85%",null,"ITC Part 85%",null,"ITC Part 85%",null,"ITC Part 85%",null,"ITC Part 85%",null,"ITC Part 85%",null,"ITC Part 85%",null,"ITC Part 85%",null,"ITC Part 85%",null,"ITC Part 85%",null,"ITC Part 85%",null,"ITC Part 85%",null,"ITC Part 85%",null,"ITC Part 85%",null,"ITC Part 85%",null,"ITC Part 85%",null,"ITC Part 85%",null,"ITC Part 85%",null,"ITC Part 85%",null,"ITC Part 85%",null,"ITC Part 85%",null,"ITC Part 85%",null,"ITC Part 85%",null,"ITC Part 85%",null,"ITC Part 85%",null,"ITC Part 85%",null,"ITC Part 85%",null,"ITC Part 85%",null,"ITC Part 85%",null,"ITC Part 85%",null,"ITC Part 85%",null,"ITC Part 85%",null,"ITC Part 85%",null,"ITC Part 85%",null,"ITC Part 85%",null,"ITC Part 85%",null,"ITC Part 85%",null,"ITC Part 85%",null,"ITC Part 85%",null,"ITC Part 85%",null,"ITC Part 85%",null,"ITC Part 85%",null,"ITC Part 85%",null,"ITC Part 85%",null,"ITC Part 85%",null,"ITC Part 85%",null,"ITC Part 85%",null,"ITC Part 85%",null,"ITC Part 85%",null,"ITC Part 85%",null,"ITC Part 85%",null,"ITC Part 85%",null,"ITC Part 85%",null,"ITC Part 85%",null,"ITC Part 85%",null,"ITC Part 85%",null,"ITC Part 85%",null,"ITC Part 85%",null,"ITC Part 85%",null,"ITC Part 85%",null,"ITC Part 85%",null,"ITC Part 85%",null,"ITC Part 85%",null,"ITC Part 85%",null,"ITC Part 85%",null,"ITC Part 85%",null,"ITC Part 85%",null,"ITC Part 85%",null,"ITC Part 85%",null,"ITC Part 85%",null,"ITC Part 85%",null,"ITC Part 85%",null,"ITC Part 85%",null,"ITC Part 85%",null,"ITC Part 85%",null,"ITC Part 85%",null,"ITC Part 85%",null,"ITC Part 85%",null,"ITC Part 85%",null,"ITC Part 85%",null,"ITC Part 85%",null,"ITC Part 85%",null,"ITC Part 85%",null,"ITC Part 85%",null,"ITC Part 85%",null,"ITC Part 85%",null,"ITC Part 85%",null,"ITC Part 85%",null,"ITC Part 85%",null,"ITC Part 85%",null,"ITC Part 85%",null,"ITC Part 85%",null,"ITC Part 85%",null,"ITC Part 85%",null,"ITC Part 85%",null,"ITC Part 85%",null,"ITC Part 85%",null,"ITC Part 85%",null,"ITC Part 85%",null,"ITC Part 85%",null,"ITC Part 85%",null,"ITC Part 85%",null,"ITC Part 85%",null,"ITC Part 85%",null,"ITC Part 85%",null,"ITC Part 85%",null,"ITC Part 85%",null,"ITC Part 85%",null,"ITC Part 85%",null,"ITC Part 85%",null,"ITC Part 85%",null,"ITC Part 85%",null,"ITC Part 85%",null,"ITC Part 85%",null,"ITC Part 85%",null,"ITC Part 85%",null,"ITC Part 85%",null,"ITC Part 85%",null,"ITC Part 85%",null,"ITC Part 85%",null,"ITC Part 85%",null,"ITC Part 85%",null,"ITC Part 85%",null,"ITC Part 85%",null,"ITC Part 85%",null,"ITC Part 85%",null,"ITC Part 85%",null,"ITC Part 85%",null,"ITC Part 85%",null,"ITC Part 85%",null,"ITC Part 85%",null,"ITC Part 85%",null,"ITC Part 85%",null,"ITC Part 85%",null,"ITC Part 85%",null,"ITC Part 85%",null,"ITC Part 85%",null,"ITC Part 85%",null,"ITC Part 85%",null,"ITC Part 85%",null,"ITC Part 85%",null,"ITC Part 85%",null,"ITC Part 85%",null,"ITC Part 85%",null,"ITC Part 85%",null,"ITC Part 85%",null,"ITC Part 85%",null,"ITC Part 85%",null,"ITC Part 85%",null,"ITC Part 85%",null,"ITC Part 85%",null,"ITC Part 85%",null,"ITC Part 85%",null,"ITC Part 85%",null,"ITC Part 85%",null,"ITC Part 85%",null,"ITC Part 85%",null,"ITC Part 85%",null,"ITC Part 85%",null,"ITC Part 85%",null,"ITC Part 85%",null,"ITC Part 85%",null,"ITC Part 85%",null,"ITC Part 85%",null,"ITC Part 85%",null,"ITC Part 85%",null,"ITC Part 85%",null,"ITC Part 85%",null,"ITC Part 85%",null,"ITC Part 85%",null,"ITC Part 85%",null,"ITC Part 85%",null,"ITC Part 85%",null,"ITC Part 85%",null,"ITC Part 85%",null,"ITC Part 85%",null,"ITC Part 85%",null,"ITC Part 85%",null,"ITC Part 85%",null,"ITC Part 85%",null,"ITC Part 85%",null,"ITC Part 85%",null,"ITC Part 85%",null,"ITC Part 85%",null,"ITC Part 85%",null,"ITC Part 85%",null,"ITC Part 85%",null,"ITC Part 85%",null,"ITC Part 85%",null,"ITC Part 85%",null,"ITC Part 85%",null,"ITC Part 85%",null,"ITC Part 85%",null,"ITC Part 85%",null,"ITC Part 85%",null,"ITC Part 85%",null,"ITC Part 85%",null,"ITC Part 85%",null,"ITC Part 85%",null,"ITC Part 85%",null,"ITC Part 85%",null,"ITC Part 85%",null,"ITC Part 85%",null,"ITC Part 85%",null,"ITC Part 85%",null,"ITC Part 85%",null,"ITC Part 85%",null,"ITC Part 85%",null,"ITC Part 85%",null,"ITC Part 85%",null,"ITC Part 85%",null,"ITC Part 85%",null,"ITC Part 85%",null,"ITC Part 85%",null,"ITC Part 85%",null,"ITC Part 85%",null,"ITC Part 85%",null,"ITC Part 85%",null,"ITC Part 85%",null,"ITC Part 85%",null,"ITC Part 85%",null,"ITC Part 85%",null,"ITC Part 85%",null,"ITC Part 85%",null,"ITC Part 85%",null,"ITC Part 85%",null,"ITC Part 85%",null,"ITC Part 85%",null,"ITC Part 85%",null,"ITC Part 85%",null,"ITC Part 85%",null,"ITC Part 85%",null,"ITC Part 85%",null,"ITC Part 85%",null,"ITC Part 85%",null,"ITC Part 85%",null,"ITC Part 85%",null,"ITC Part 85%",null,"ITC Part 85%",null,"ITC Part 85%",null,"ITC Part 85%",null,"ITC Part 85%",null,"ITC Part 85%",null,"ITC Part 85%",null,"ITC Part 85%",null,"ITC Part 85%",null,"ITC Part 85%",null,"ITC Part 85%",null,"ITC Part 85%",null,"ITC Part 85%",null,"ITC Part 85%",null,"ITC Part 85%",null,"ITC Part 85%",null,"ITC Part 85%",null,"ITC Part 85%",null,"ITC Part 85%",null,"ITC Part 85%",null,"ITC Part 85%",null,"ITC Part 85%",null,"ITC Part 85%",null,"ITC Part 85%",null,"ITC Part 85%",null,"ITC Part 85%",null,"ITC Part 85%",null,"ITC Part 85%",null,"ITC Part 85%",null,"ITC Part 85%",null,"ITC Part 85%",null,"ITC Part 85%",null,"ITC Part 85%",null,"ITC Part 85%",null,"ITC Part 85%",null,"ITC Part 85%",null,"ITC Part 85%",null,"ITC Part 85%",null,"ITC Part 85%",null,"ITC Part 85%",null,"ITC Part 85%",null,"ITC Part 85%",null,"ITC Part 85%",null,"ITC Part 85%",null,"ITC Part 85%",null,"ITC Part 85%",null,"ITC Part 85%",null,"ITC Part 85%",null,"ITC Part 85%",null,"ITC Part 85%",null,"ITC Part 85%",null,"ITC Part 85%",null,"ITC Part 85%",null,"ITC Part 85%",null,"ITC Part 85%",null,"ITC Part 85%",null,"ITC Part 85%",null,"ITC Part 85%",null,"ITC Part 85%",null,"ITC Part 85%",null,"ITC Part 85%",null,"ITC Part 85%",null,"ITC Part 85%",null,"ITC Part 85%",null,"ITC Part 85%",null,"ITC Part 85%",null,"ITC Part 85%",null,"ITC Part 85%",null,"ITC Part 85%",null,"ITC Part 85%",null,"ITC Part 85%",null,"ITC Part 85%",null,"ITC Part 85%",null,"ITC Part 85%",null,"ITC Part 85%",null,"ITC Part 85%",null,"ITC Part 85%",null,"ITC Part 85%",null,"ITC Part 85%",null,"ITC Part 85%",null,"ITC Part 85%",null,"ITC Part 85%",null,"ITC Part 85%",null,"ITC Part 85%",null,"ITC Part 85%",null,"ITC Part 85%",null,"ITC Part 85%",null,"ITC Part 85%",null,"ITC Part 85%",null,"ITC Part 85%",null,"ITC Part 85%",null,"ITC Part 85%",null,"ITC Part 85%",null,"ITC Part 85%",null,"ITC Part 85%",null,"ITC Part 85%",null,"ITC Part 85%",null,"ITC Part 85%",null,"ITC Part 85%",null,"ITC Part 85%",null,"ITC Part 85%",null,"ITC Part 85%",null,"ITC Part 85%",null,"ITC Part 85%",null,"ITC Part 85%",null,"ITC Part 85%",null,"ITC Part 85%",null,"ITC Part 85%",null,"ITC Part 85%",null,"ITC Part 85%",null,"ITC Part 85%",null,"ITC Part 85%",null,"ITC Part 85%",null,"ITC Part 85%",null,"ITC Part 85%",null,"ITC Part 85%",null,"ITC Part 85%",null,"ITC Part 85%",null,"ITC Part 85%",null,"ITC Part 85%",null,"ITC Part 85%",null,"ITC Part 85%",null,"ITC Part 85%",null,"ITC Part 85%",null,"ITC Part 85%",null,"ITC Part 85%",null,"ITC Part 85%",null,"ITC Part 85%",null,"ITC Part 85%",null,"ITC Part 85%",null,"ITC Part 85%",null,"ITC Part 85%",null,"ITC Part 85%",null,"ITC Part 85%",null,"ITC Part 85%",null,"ITC Part 85%",null,"ITC Part 85%",null,"ITC Part 85%",null,"ITC Part 85%",null,"ITC Part 85%",null,"ITC Part 85%",null,"ITC Part 85%",null,"ITC Part 85%",null,"ITC Part 85%",null,"ITC Part 85%",null,"ITC Part 85%",null,"ITC Part 85%",null,"ITC Part 85%",null,"ITC Part 85%",null,"ITC Part 85%",null,"ITC Part 85%",null,"ITC Part 85%",null,"ITC Part 85%",null,"ITC Part 85%",null,"ITC Part 85%",null,"ITC Part 85%",null,"ITC Part 85%",null,"ITC Part 85%",null,"ITC Part 85%",null,"ITC Part 85%",null,"ITC Part 85%",null,"ITC Part 85%",null,"ITC Part 85%",null,"ITC Part 85%",null,"ITC Part 85%",null,"ITC Part 85%",null,"ITC Part 85%",null,"ITC Part 85%",null,"ITC Part 85%",null,"ITC Part 85%",null,"ITC Part 85%",null,"ITC Part 85%",null,"ITC Part 85%",null,"ITC Part 85%",null,"ITC Part 85%",null,"ITC Part 85%",null,"ITC Part 85%",null,"ITC Part 85%",null,"ITC Part 85%",null,"ITC Part 85%",null,"ITC Part 85%",null,"ITC Part 85%",null,"ITC Part 85%",null,"ITC Part 85%",null,"ITC Part 85%",null,"ITC Part 85%",null,"ITC Part 85%",null,"ITC Part 85%",null,"ITC Part 85%",null,"ITC Part 85%",null,"ITC Part 85%",null,"ITC Part 85%",null,"ITC Part 85%",null,"ITC Part 85%",null,"ITC Part 85%",null,"ITC Part 85%",null,"ITC Part 85%",null,"ITC Part 85%",null,"ITC Part 85%",null,"ITC Part 85%",null,"ITC Part 85%",null,"ITC Part 85%",null,"ITC Part 85%",null,"ITC Part 85%",null,"ITC Part 85%",null,"ITC Part 85%",null,"ITC Part 85%",null,"ITC Part 85%",null,"ITC Part 85%",null,"ITC Part 85%",null,"ITC Part 85%",null,"ITC Part 85%",null,"ITC Part 85%",null,"ITC Part 85%",null,"ITC Part 85%",null,"ITC Part 85%",null,"ITC Part 85%",null,"ITC Part 85%",null,"ITC Part 85%",null,"ITC Part 85%",null,"ITC Part 85%",null,"ITC Part 85%",null,"ITC Part 85%",null,"ITC Part 85%",null,"ITC Part 85%",null,"ITC Part 85%",null,"ITC Part 85%",null,"ITC Part 85%",null,"ITC Part 85%",null,"ITC Part 85%",null,"ITC Part 85%",null,"ITC Part 85%",null,"ITC Part 85%",null,"ITC Part 85%",null,"ITC Part 85%",null,"ITC Part 85%",null,"ITC Part 85%",null,"ITC Part 85%",null,"ITC Part 85%",null,"ITC Part 85%",null,"ITC Part 85%",null,"ITC Part 85%",null,"ITC Part 85%",null,"ITC Part 85%",null,"ITC Part 85%",null,"ITC Part 85%",null,"ITC Part 85%",null,"ITC Part 85%",null,"ITC Part 85%",null,"ITC Part 85%",null,"ITC Part 85%",null,"ITC Part 85%",null,"ITC Part 85%",null,"ITC Part 85%",null,"ITC Part 85%",null,"ITC Part 85%",null,"ITC Part 85%",null,"ITC Part 85%",null,"ITC Part 85%",null,"ITC Part 85%",null,"ITC Part 85%",null,"ITC Part 85%",null,"ITC Part 85%",null,"ITC Part 85%",null,"ITC Part 85%",null,"ITC Part 85%",null,"ITC Part 85%",null,"ITC Part 85%",null,"ITC Part 85%",null,"ITC Part 85%",null,"ITC Part 85%",null,"ITC Part 85%",null,"ITC Part 85%",null,"ITC Part 85%",null,"ITC Part 85%",null,"ITC Part 85%",null,"ITC Part 85%",null,"ITC Part 85%",null,"ITC Part 85%",null,"ITC Part 85%",null,"ITC Part 85%",null,"ITC Part 85%",null,"ITC Part 85%",null,"ITC Part 85%",null,"ITC Part 85%",null,"ITC Part 85%",null,"ITC Part 85%",null,"ITC Part 85%",null,"ITC Part 85%",null,"ITC Part 85%",null,"ITC Part 85%",null,"ITC Part 85%",null,"ITC Part 85%",null,"ITC Part 85%",null,"ITC Part 85%",null,"ITC Part 85%",null,"ITC Part 85%",null,"ITC Part 85%",null,"ITC Part 85%",null,"ITC Part 85%",null,"ITC Part 85%",null,"ITC Part 85%",null,"ITC Part 85%",null,"ITC Part 85%",null,"ITC Part 85%",null,"ITC Part 85%",null,"ITC Part 85%",null,"ITC Part 85%",null,"ITC Part 85%",null,"ITC Part 85%",null,"ITC Part 85%",null,"ITC Part 85%",null,"ITC Part 85%",null,"ITC Part 85%",null,"ITC Part 85%",null,"ITC Part 85%",null,"ITC Part 85%",null,"ITC Part 85%",null,"ITC Part 85%",null,"ITC Part 85%",null,"ITC Part 85%",null,"ITC Part 85%",null,"ITC Part 85%",null,"ITC Part 85%",null,"ITC Part 85%",null,"ITC Part 85%",null,"ITC Part 85%",null,"ITC Part 85%",null,"ITC Part 85%",null,"ITC Part 85%",null,"ITC Part 85%",null,"ITC Part 85%",null,"ITC Part 85%",null,"ITC Part 85%",null,"ITC Part 85%",null,"ITC Part 85%",null,"ITC Part 85%",null,"ITC Part 85%",null,"ITC Part 85%",null,"ITC Part 85%",null,"ITC Part 85%",null,"ITC Part 85%",null,"ITC Part 85%",null,"ITC Part 85%",null,"ITC Part 85%",null,"ITC Part 85%",null,"ITC Part 85%",null,"ITC Part 85%",null,"ITC Part 85%",null,"ITC Part 85%",null,"ITC Part 85%",null,"ITC Part 85%",null,"ITC Part 85%",null,"ITC Part 85%",null,"ITC Part 85%",null,"ITC Part 85%",null,"ITC Part 85%",null,"ITC Part 85%",null,"ITC Part 85%",null,"ITC Part 85%",null,"ITC Part 85%",null,"ITC Part 85%",null,"ITC Part 85%",null,"ITC Part 85%",null,"ITC Part 85%",null,"ITC Part 85%",null,"ITC Part 85%",null,"ITC Part 85%",null,"ITC Part 85%",null,"ITC Part 85%",null,"ITC Part 85%",null,"ITC Part 85%",null,"ITC Part 85%",null,"ITC Part 85%",null,"ITC Part 85%",null,"ITC Part 85%",null,"ITC Part 85%",null,"ITC Part 85%",null,"ITC Part 85%",null,"ITC Part 85%",null,"ITC Part 85%",null,"ITC Part 85%",null,"ITC Part 85%",null,"ITC Part 85%",null,"ITC Part 85%",null,"ITC Part 85%",null,"ITC Part 85%",null,"ITC Part 85%",null,"ITC Part 85%"]
["Local Contribution (Kind/Cash) (15%)",null,{"$f":"C14*15%","v":{"v":0,"d":"0.00"}}]
[]
["GST 18% (On PPHF Contribution only)",null,{"$f":"C16*18%","v":{"v":0,"d":"0.00"}}]

{"sheet":"SCOPE OF WORK","index":1,"n_rows":8,"n_cols":2,"rows_kept":8,"merged":[[0,0,0,1]]}
["SCOPE OF WORK "]
["S.No","Description"]
[1,"Minor OT"]
[2,"Labour delivery room with Attached Toilet"]
[3,"Changing room with attached toilet"]
[4,"Female ward with water closet and Bathroom"]
[5,"Passage (back side)"]
[6,"Boundary wall, 47m"]

{"sheet":"WORK COST","index":2,"n_rows":18,"n_cols":4,"rows_kept":18,"merged":[[0,0,0,2]]}
["WORK COST"]
["S. No.","Work","Amount"]
[{"v":1,"d":"01"},"Earth Work ",{"$f":"'ABSTRACT OF GROUND FLOOR'!G7","v":{"v":0,"d":"0.00"}}]
[{"v":2,"d":"02"},"Concrete Work",{"$f":"'ABSTRACT OF GROUND FLOOR'!G12","v":{"v":0,"d":"0.00"}}]
[{"v":3,"d":"03"},"RCC Work",{"$f":"'ABSTRACT OF GROUND FLOOR'!G23","v":{"v":0,"d":"0.00"}}]
[{"v":4,"d":"04"},"Brick Work",{"$f":"'ABSTRACT OF GROUND FLOOR'!G27","v":{"v":0,"d":"0.00"}}]
[{"v":5,"d":"05"},"Wood and PVC Work",{"$f":"'ABSTRACT OF GROUND FLOOR'!G38","v":{"v":0,"d":"0.00"}}]
[{"v":6,"d":"06"},"Steel Work",{"$f":"'ABSTRACT OF GROUND FLOOR'!G45","v":{"v":0,"d":"0.00"}}]
[{"v":7,"d":"07"},"Flooring",{"$f":"'ABSTRACT OF GROUND FLOOR'!G47","v":{"v":0,"d":"0.00"}}]
[{"v":8,"d":"08"},"Finishing",{"$f":"'ABSTRACT OF GROUND FLOOR'!G57","v":{"v":0,"d":"0.00"}}]
[{"v":9,"d":"09"},"TOTAL A",{"$f":"SUM(C3:C10)","v":{"v":0,"d":"0.00"}}]
[10,"(B) Electrical Work Total (A) 08%",{"$f":"C11*8%","v":{"v":0,"d":"0.00"}}]
[11,"(C) Water Supply ",{"$f":"'ABSTRACT OF WATER SUPPLY'!G8","v":{"v":0,"d":"0.00"}}]
[12,"(D)Sanitary work",{"$f":"'ABSTRACT OF SANITARY WORKE'!G10","v":{"v":0,"d":"0.00"}}]
[13,"(E) Boundary Wall",{"$f":"'ABSTRACT OF BOUNDARY WALL'!G24","v":{"v":0,"d":"0.00"}}]
[14,"TOTAL (A+B+C+D)",{"$f":"SUM(C11:C15)","v":{"v":0,"d":"0.00"}}]
[15,"GST (18%)",{"$f":"'COST OF ABSTRACT'!C19:D19","v":{"v":0,"d":"0.00"}},0]
[16,"GRAND TOTAL",{"$f":"SUM(C16:C17)","v":{"v":0,"d":"0.00"}}]

{"sheet":"ABSTRACT OF GROUND FLOOR","index":3,"n_rows":58,"n_cols":7,"rows_kept":58,"merged":[[0,0,0,6],[1,0,1,6],[6,1,6,5],[11,1,11,5],[22,1,22,5],[26,1,26,5],[37,1,37,5],[44,1,44,5],[56,2,56,5],[57,2,57,5]]}
["WORK- P.H.C SUMAN NAGAR"]
["ABSTRACT OF COST"]
["SL. No.","DSR/SOR NO.\n2023","Description","Quantity","Unit","Rate","Amount"]
[null,"(A)","EARTH WORK"]
[1,"SOR MOTH 12-1-1-A-1 2019","Earth work in excavation of foundation of structures as per drawing and technical  specification, including setting out, construction of shoring and bracing, removal of  stumps and other deleterious matter, dressing of sides and bottom and backfilling with approved material.\n12-1-1 Ordinary soil",{"v":78.8,"d":"78.80"},"Cum",{"v":0,"d":"0.00"},{"$f":"D5*F5","v":{"v":0,"d":"0.00"}}]
[3,"SOR MORD 12-10-1","Supplying  and  filling  in  plinth  with  sand  under  floors, including      watering,ramming,      consolidating      and dressing complete.",{"v":23.5,"d":"23.50"},"Cum",{"v":0,"d":"0.00"},{"$f":"D6*F6","v":{"v":0,"d":"0.00"}}]
[null,"TOTAL",{"$nulls":4},{"$f":"SUM(G5:XFD6)","v":{"v":0,"d":"0.00"}}]
[null,"(B)","CONCRETE WORK"]
[4,"SOR MORD 11-4-1-2 2019","Providing  and  laying  in  position  cement  concrete  of specified  grade   excluding   the  cost  of  centering  and shuttering  -  All   work  up  to   plinth   level   1:4:8   (1 Cement    :    4    coarse    sand    :    8    graded    stone aggregate 40 mm nominal size).",25.01,"Cum",{"v":0,"d":"0.00"},{"$f":"D9*F9","v":{"v":0,"d":"0.00"}}]
[5,"DSR VOL 1 4.1","Providing    and    laying    damp-proof    course    40mm thick   with    cement   concrete   1:2:4   (1   cement   :   2 coarse   sand   :   4   graded   stone   aggregate  12.5mm nominal size).",26.42,"Sqm",{"v":0,"d":"0.00"},{"$f":"D10*F10","v":{"v":0,"d":"0.00"}}]
[6,"DSR VOL 1 4.17","Making   plinth  protection  50   mm  thick  of  cement concrete  1:3:6  (1  cement  :3  coarse  sand  :  6  graded stone  aggregate  20  mm  nominal  size)  over  75  mm bed  by  dry  brick  ballast  40  mm  nominal  size  well rammed and consolidated and grouted with fine sand including finishing the top smooth",26.42,"Sqm",{"v":0,"d":"0.00"},{"v":0,"d":"0.00"}]
[null,"TOTAL",{"$nulls":4},{"$f":"SUM(G9:G11)","v":{"v":0,"d":"0.00"}}]
[null,"(C)","REINFORCED CEMENT CONCRETE WORK"]
[7,"SOR MORD 12-8-C","Providing  concrete  for  plain/  reinforced  concrete  in open foundations complete as per drawings and technical specifications Clause 802, 803, 1202 & 1203, R.C.C grade M 20"]
[null,null,"1:1.5:3  (1  cement   :   1.5  coarse  sand  (zone-III):  3 graded stone aggregate 20 mm nominal size)",24.17,"Cum",{"v":0,"d":"0.00"},{"v":0,"d":"0.00"}]
[8,"SOR MORD 14-1-A-1-1-P 2019","Providing  and  laying  reinforced  cement  concrete  in superstructure as per drawing and  technical  specifications  Clauses  800,  1205.4  and 1205.5 ,R.C.C grade M 20, height upto 5m",38.25,"Cum",{"v":0,"d":"0.00"},{"v":0,"d":"0.00"}]
[9,"SOR MORD 11-8","Steel    reinforcement    for    R.C.C.    work    including straightening, cutting, bending, placing in position and binding   all   complete   upto   plinth   level.   Thermo- Mechanically Treated bars of grade Fe-500D or more",{"v":7222,"d":"7222.00"},"Kg",{"v":0,"d":"0.00"},{"$f":"D17*F17","v":{"v":0,"d":"0.00"}}]
[10,"DSR VOL1\n5.9","Centring and shuttering including strutting,ropping etc. and  removal of form for"]
["(a)","5.9.1","Foundations, footings, bases of columns, etc. for mass concrete.",{"v":40.8,"d":"40.80"},"Sqm",{"v":0,"d":"0.00"},{"v":0,"d":"0.00"}]
["(b)","5.9.6","Columns, Pillars, Piers, Abutments, Posts and Struts.",81.23,"Sqm",{"v":0,"d":"0.00"},{"v":0,"d":"0.00"}]
["(c)","5.9.5","Lintels, beams, plinth beams, girders, bressumers and cantilevers.",66.23,"Sqm",{"v":0,"d":"0.00"},{"v":0,"d":"0.00"}]
["(d)","5.9.3","Suspended   floors,   roofs,   landings,   balconies   and access platform.",{"v":183.9,"d":"183.90"},"Sqm",{"v":0,"d":"0.00"},{"v":0,"d":"0.00"}]
[null,"TOTAL",{"$nulls":4},{"$f":"SUM(G15:G22)","v":{"v":0,"d":"0.00"}}]
[null,"(D)","BRICK WORK"]
[11,"SOR MORD 11-5-1 2019","Brick  masonry  work  in  cement  mortar  in  foundation complete excluding pointing and plastering as  per  drawing  and  technical specifications Clauses 600, 1202 & 1203",18.91,"Cum",{"v":0,"d":"0.00"},{"v":0,"d":"0.00"}]
[12,"SOR MORD 13-1-2","Brick  masonry work  in  cement  mortar  in substructure complete excepting pointing and    plastering,    as    per    drawing    and    technical specification Clauses 602, 603, 604,\n1202 & 1204",59.74,"Cum",{"v":0,"d":"0.00"},{"v":0,"d":"0.00"}]
[null,"TOTAL",{"$nulls":4},{"$f":"SUM(G25:G26)","v":{"v":0,"d":"0.00"}}]
[null,"(E)","WOOD & P.V.C WORK"]
[13,"DSR VOL1 9.21.1","Providing  and  fixing  ISI  marked  flush  door  shutters conforming  to   IS:  2202  (Part  I)  non-decorative  type, core  of  block  board  construction  with  frame   of  1st class  hard  wood  and  well  matched  commercial  3  ply veneering with vertical  grains or cross bands and face veneers   on   both   faces   of   shutters   35   mm   thick including  ISI  marked  Stainless  Steel  butt  hinges  with necessary screws.",48.24,"Sqm",{"v":0,"d":"0.00"},{"v":0,"d":"0.00"}]
[14,"DSR VOL1 9.100.1","Providing  and  fixing  aluminium  handles  ISI  marked anodised   (anodic  coating  not  less  than  grade  AC  10 as  per  IS  :  1868)  transparent  or  dyed  to   required colour or shade with necessary screws etc. complete : 125 mm",{"v":28,"d":"28.00"},"Nos",{"v":0,"d":"0.00"},{"v":0,"d":"0.00"}]
[15,"DSR VOL1 9.96","Providing  and  fixing  aluminium  sliding  door  bolts  ISI marked  anodised (anodic coating not less than grade AC  10  as  per  IS  :  1868)  transparent  or   dyed  to required  colour  or  shade  with  nuts  and  screws  etc. complete"]
[null,"9.96.1","300x16 mm",{"v":24,"d":"24.00"},"Nos",{"v":0,"d":"0.00"},{"v":0,"d":"0.00"}]
[16,"DSR VOL1 9.97","Providing and fixing aluminium tower bolts ISI marked anodised   (anodic  coating  not  less  than  grade  AC  10 as  per  IS  :  1868  )  transparent  or  dyed   to  required colour or shade with necessary screws etc. complete"]
["(a)","9.97.2","250x10 mm",{"v":24,"d":"24.00"},"Nos",{"v":0,"d":"0.00"},{"v":0,"d":"0.00"}]
["(b)","9.97.4","150X10 MM",{"v":8,"d":"8.00"},"Nos",{"v":0,"d":"0.00"},{"v":0,"d":"0.00"}]
[17,"DSR VOL1 9.101.1","Providing   and   fixing   aluminium   hanging   floor   door stopper ISI  marked anodised (anodic coating not less than  grade  AC  10  as  per  IS  :  1868)   transparent  or dyed  to  required  colour  and  shade  with  necessary screws etc. complete. Single rubber stopper",{"v":14,"d":"14.00"},"Each",{"v":0,"d":"0.00"},{"v":0,"d":"0.00"}]
[18,"DSR VOL1 9.51.2","Providing  and  fixing  fly  proof  galvanised  M.S  wire gauze   to   windows   and   clerestory   windows   using galvanised  M.S.  wire  gauge  with  average  width  of aperture  1.4  mm  in  both  directions  with  wire  of  dia.\n0.63 mm. With 12 mm mild steel U beading.",{"v":11.5,"d":"11.50"},"sqm",{"v":0,"d":"0.00"},{"v":0,"d":"0.00"}]
[null,"TOTAL",{"$nulls":4},{"$f":"SUM(G29:G37)","v":{"v":0,"d":"0.00"}}]
[null,"(F)","STEEL WORK"]
[19,"DSR VOL1 10.14","Providing   and   fixing   pressed   steel   door   frames confirming     to     IS:      4351     manufactured     from commercial  mild  steel  sheet  of  1.25  mm  thickness including    hinges   jamb,   lock   jamb,   bead   and   if required   angle   threshold   of   mild   steel   angle   of section  50x25mm,  or  base  ties  of  1.25mm  pressed mild   steel   welded   or   rigidly   fixed    together   by mechanical means, adjustable lugs with split  end tail to each jamb  including steel butt hinges 2.5mm thick with   mortar   guards,   lock   strike-plate   and    shock absorbers   as   specified   and    applying   a    coat   of approved  steel  primer  after   pre-treatment  of  the surface as directed by Engineer-in-charge"]
["(a)","10.14.1","Profile  'B'   (Single Pattam)",91.74,"Rm",{"v":0,"d":"0.00"},{"v":0,"d":"0.00"}]
[20,"DSR VOL1 10.25.2","Steel  work  welded  in  built  up  section/framed  work including    cutting,   hoisting,   fixing   in   position   and applying a priming coat of approved steel primer  using steel  etc.  as  required.   In   gratings,   frames,   guard bar,   ladder,   railings,   brackets,   gates  and  similar works.",{"v":190.8,"d":"190.80"},"kg",{"v":0,"d":"0.00"},{"v":0,"d":"0.00"}]
[21,"DSR VOL1 10.03","Providing   and   fixing   in   position   collapsible   steel shutters   with   vertical   channels   20x10x2   mm   and braced with flat iron diagonals 20x5 mm size,  with  top  and  bottom  rail  of  T-iron  40x40x6  mm, with 40 mm dia steel pulleys, complete with bolts, nuts, locking arrangement, stoppers,",{"v":7.2,"d":"7.20"},"Sqm",{"v":0,"d":"0.00"},{"v":0,"d":"0.00"}]
[22,"DSR VOL1 10.30.2","Providing  &  fixing  glass  panes  with  putty  and  glazing clips  in  steel  doors,  windows,  clerestory  windows,  all complete with : 5.5 mm thick glass panes",{"v":10.4,"d":"10.40"},"Sqm",{"v":0,"d":"0.00"},{"v":0,"d":"0.00"}]
[null,"TOTAL",{"$nulls":4},{"$f":"SUM(G41:G44)","v":{"v":0,"d":"0.00"}}]
[null,"(G)","FLOORING"]
[23,"DSR VOL1 11.21","Providing  and  fixing  10  mm  thick  acid  and/or  alkali resistant tiles of approved make and colour using acid and/or alkali resisting mortar bedding, and joints filled with  acid  and/or  alkali  resisting  cement  as  per  IS  : 4457,  complete  as  per  the  direction  of  Engineer-in- Charge. In flooring on a bed of 10 mm thick mortar 1:4 (1 acid proof cement : 4 coarse sand) Acid and alkali resistant tile",156.69,"Sqm",{"v":0,"d":"0.00"},{"v":0,"d":"0.00"}]
[]
[null,"(H)","FINISHING"]
[24,"SOR MORD 12-3","12 mm  cement  plaster  of  mix :  1:6  (1 cement:  6 fine sand)",326.34,"sqm",{"v":0,"d":"0.00"},{"v":0,"d":"0.00"}]
[25,"SOR MORD 12-3","Plastering  with  cement  mortar  (1:4),  15  mm  thick  on brickwork in substructure as per",167.42,"sqm",{"v":0,"d":"0.00"},{"v":0,"d":"0.00"}]
[26,"DSR VOL1 8.31","Providing  and  fixing  Ist  quality  ceramic  glazed  wall tiles    conforming   to   IS  :  15622  (thickness   to  be specified by the manufacture  )  of   approved   make  in all  colours,  shades  except  burgundy,  bottle  green, black   of    any   size   as  approved   by   Engineer-in- Charge  in   skirting,  risers   of   steps   and   dados  over 12 mm  thick  bed of cement Mortar 1:3 (1 cement : 3 coarse   sand)   and  jointing   with  grey   cement   slurry @    3.3kg   per    sqm     including    pointing    in    white cement   mixed   with   pigment   of   matching    shade\ncomplete.",152.97,"sqm",{"v":0,"d":"0.00"},{"v":0,"d":"0.00"}]
[27,"DSR VOL2 13.8","Providing  and  applying  white  cement  based  putty  of average   thickness   1   mm,   of  approved   brand  and manufacturer,   over   the   plastered   wall   surface   to prepare the surface even and smooth complete.",650.45,"Sqm",{"v":0,"d":"0.00"},{"v":0,"d":"0.00"}]
[28,"DSR VOL2 13.41.1","Distempering  with  oil  bound  washable  distemper  of approved   brand  and  manufacture  to  give  an  even shade   (New   work   (two   or   more   coats)   over   and including  priming  coat   with  cement  primer)  in  Ceiling Area",650.45,"sqm",{"v":0,"d":"0.00"},{"v":0,"d":"0.00"}]
[30,"DSR VOL2 13.62.1","Painting with synthetic enamel paint of approved brand and  manufacture  of  required  colour  to  give  an  even shade : Two or more coats on new work over an under coat of suitable shade with ordinary paint of approved brand and manufacture",226.48,"sqm",{"v":0,"d":"0.00"},{"$f":"D55*F55","v":{"v":0,"d":"0.00"}}]
[31,"AS per market","TLM painting work",{"v":75,"d":"75.00"},"sqm",{"v":0,"d":"0.00"},{"$f":"D56*F56","v":{"v":0,"d":"0.00"}}]
[null,null,"TOTAL",{"$nulls":3},{"$f":"SUM(G50:G56)","v":{"v":0,"d":"0.00"}}]
[null,null,"TOTAL ABSTRACT COST",{"$nulls":3},{"$f":"G57+G47+G45+G38+G27+G23+G12+G7","v":{"v":0,"d":"0.00"}}]

{"sheet":"MEASUREMENT GROUND FLOOR","index":4,"n_rows":420,"n_cols":9,"rows_kept":420,"merged":[[0,0,0,8],[1,0,1,8],[2,0,2,8],[3,0,4,0],[3,1,4,1],[3,2,3,5],[3,6,4,8],[5,6,5,8],[6,6,6,7],[7,6,7,7],[8,6,8,7],[9,6,9,7],[10,6,10,7],[11,6,11,7],[12,6,12,7],[13,6,13,7],[14,6,14,7],[15,6,15,7],[16,6,16,7],[17,6,17,7],[18,6,18,7],[19,6,19,7],[20,6,20,7],[21,6,21,7],[22,6,22,7],[23,6,23,7],[24,6,24,7],[25,6,25,7],[26,6,26,7],[27,6,27,7],[28,6,28,7],[29,6,29,7],[30,6,30,7],[31,6,31,7],[32,6,32,7],[33,6,33,7],[34,6,34,7],[35,6,35,7],[36,6,36,7],[37,6,37,7],[38,6,38,7],[39,6,39,7],[40,6,40,7],[41,6,41,7],[42,6,42,7],[43,6,43,7],[44,6,44,7],[45,6,45,7],[46,6,46,7],[47,6,47,7],[48,6,48,7],[49,6,49,7],[50,6,50,7],[51,6,51,7],[52,6,52,7],[53,6,53,7],[54,6,54,7],[55,6,55,7],[56,6,56,7],[57,6,57,7],[58,6,58,7],[59,6,59,7],[60,6,60,7],[61,6,61,7],[62,6,62,7],[63,6,63,7],[64,6,64,7],[65,6,65,7],[66,6,66,7],[67,6,67,7],[68,6,68,7],[69,6,69,7],[70,6,70,7],[71,6,71,7],[72,6,72,7],[73,6,73,7],[74,6,74,7],[75,6,75,7],[76,6,76,7],[77,6,77,7],[78,6,78,7],[79,6,79,7],[80,6,80,7],[81,6,81,7],[82,6,82,7],[83,6,83,7],[84,6,84,7],[85,6,85,7],[86,6,86,7],[87,6,87,7],[88,6,88,7],[89,6,89,7],[90,6,90,7],[91,3,91,4],[91,6,91,7],[92,6,92,7],[93,6,93,7],[94,6,94,7],[95,6,95,7],[96,6,96,7],[97,6,97,7],[98,6,98,7],[99,6,99,7],[100,6,100,7],[101,6,101,7],[102,6,102,7],[103,6,103,7],[106,6,106,7],[107,6,107,7],[108,6,108,7],[109,6,109,7],[110,6,110,7],[111,6,111,7],[112,6,112,7],[113,6,113,7],[114,6,114,7],[115,6,115,7],[116,6,116,7],[117,6,117,7],[118,6,118,7],[119,6,119,7],[120,3,120,4],[120,6,120,7],[121,6,121,7],[122,6,122,7],[123,6,123,7],[124,6,124,7],[125,6,125,7],[126,6,126,7],[127,6,127,7],[128,6,128,7],[129,6,129,7],[130,6,130,7],[131,6,131,7],[132,6,132,7],[133,6,133,7],[134,6,134,7],[135,6,135,7],[136,6,136,7],[137,6,137,7],[138,6,138,7],[139,6,139,7],[140,6,140,7],[141,6,141,7],[142,6,142,7],[143,6,143,7],[144,6,144,7],[145,6,145,7],[146,6,146,7],[147,6,147,7],[148,6,148,7],[149,6,149,7],[150,6,150,7],[151,6,151,7],[152,6,152,7],[153,6,153,7],[154,6,154,7],[155,6,155,7],[156,6,156,7],[157,6,157,7],[158,6,158,7],[159,6,159,7],[160,6,160,7],[161,6,161,7],[162,6,162,7],[163,6,163,7],[164,3,164,4],[164,6,164,7],[165,6,165,7],[166,6,166,7],[167,6,167,7],[167,8,171,8],[168,6,168,7],[169,6,169,7],[170,6,170,7],[171,6,171,7],[172,6,172,7],[173,6,173,7],[174,6,174,7],[175,6,175,7],[176,6,176,7],[177,6,177,7],[178,6,178,7],[179,6,179,7],[180,6,180,7],[181,6,181,7],[182,6,182,7],[183,6,183,7],[184,6,184,7],[185,6,185,7],[186,6,186,7],[187,6,187,7],[188,6,188,7],[189,6,189,7],[190,6,190,7],[191,6,191,7],[192,6,192,7],[193,6,193,7],[194,6,194,7],[195,6,195,7],[196,6,196,7],[197,6,197,7],[198,6,198,7],[199,6,199,7],[200,6,200,7],[201,6,201,7],[202,6,202,7],[203,6,203,7],[205,6,205,7],[206,6,206,7],[207,6,207,7],[208,6,208,7],[209,6,209,7],[210,6,210,7],[211,6,211,7],[212,6,212,7],[213,6,213,7],[214,6,214,7],[215,6,215,7],[216,6,216,7],[217,6,217,7],[218,6,218,7],[219,6,219,7],[220,6,220,7],[221,6,221,7],[222,6,222,7],[223,6,223,7],[224,6,224,7],[225,6,225,7],[226,6,226,7],[227,6,227,7],[228,6,228,7],[229,6,229,7],[230,6,230,7],[231,6,231,7],[232,6,232,7],[233,6,233,7],[234,6,234,7],[235,6,235,7],[236,6,236,7],[237,6,237,7],[238,6,238,7],[239,6,239,7],[240,6,240,7],[241,6,241,7],[242,6,242,7],[244,6,244,7],[245,6,245,7],[246,6,246,7],[247,6,247,7],[248,6,248,7],[249,6,249,7],[250,6,250,7],[251,6,251,7],[252,6,252,7],[253,6,253,7],[254,6,254,7],[255,6,255,7],[256,6,256,7],[257,6,257,7],[258,6,258,7],[259,6,259,7],[260,6,260,7],[261,6,261,7],[262,6,262,7],[263,6,263,7],[264,6,264,7],[265,6,265,7],[266,6,266,7],[267,6,267,7],[268,6,268,7],[269,6,269,7],[270,6,270,7],[271,6,271,7],[272,6,272,7],[273,6,273,7],[274,6,274,7],[275,6,275,7],[276,6,276,7],[277,6,277,7],[278,6,278,7],[279,6,279,7],[280,6,280,7],[281,6,281,7],[282,6,282,7],[283,6,283,7],[284,6,284,7],[285,6,285,7],[286,6,286,7],[287,6,287,7],[288,6,288,7],[289,6,289,7],[290,6,290,7],[291,6,291,7],[292,6,292,7],[293,6,293,7],[294,6,294,7],[295,6,295,7],[296,6,296,7],[297,6,297,7],[298,6,298,7],[299,6,299,7],[300,6,300,7],[301,6,301,7],[302,6,302,7],[303,6,303,7],[304,6,304,7],[305,6,305,7],[306,6,306,7],[307,6,307,7],[308,6,308,7],[309,6,309,7],[310,6,310,7],[311,6,311,7],[312,6,312,7],[313,6,313,7],[314,6,314,7],[315,6,315,7],[316,6,316,7],[317,6,317,7],[318,6,318,7],[319,6,319,7],[320,6,320,7],[321,6,321,7],[322,6,322,7],[323,6,323,7],[324,6,324,7],[325,6,325,7],[326,6,326,7],[327,6,327,7],[328,6,328,7],[329,6,329,7],[330,6,330,7],[331,6,331,7],[332,6,332,7],[333,6,333,7],[334,6,334,7],[335,6,335,7],[336,6,336,7],[337,6,337,7],[338,6,338,7],[339,6,339,7],[340,6,340,7],[341,6,341,7],[342,6,342,7],[343,6,343,7],[344,6,344,7],[345,6,345,7],[346,6,346,7],[347,6,347,7],[348,6,348,7],[349,6,349,7],[350,6,350,7],[351,6,351,7],[352,6,352,7],[353,6,353,7],[354,6,354,7],[355,6,355,7],[356,6,356,7],[357,6,357,7],[358,6,358,7],[359,6,359,7],[360,6,360,7],[361,6,361,7],[362,6,362,7],[363,6,363,7],[364,6,364,7],[365,6,365,7],[366,6,366,7],[367,6,367,7],[368,6,368,7],[369,6,369,7],[370,6,370,7],[371,6,371,7],[372,6,372,7],[373,6,373,7],[374,6,374,7],[375,6,375,7],[376,6,376,7],[377,6,377,7],[378,6,378,7],[379,6,379,7],[380,6,380,7],[381,6,381,7],[382,6,382,7],[383,6,383,7],[384,6,384,7],[385,6,385,7],[386,6,386,7],[387,6,387,7],[388,6,388,7],[389,6,389,7],[390,6,390,7],[391,6,391,7],[392,6,392,7],[393,6,393,7],[394,6,394,7],[395,6,395,7],[396,6,396,7],[397,6,397,7],[398,6,398,7],[399,6,399,7],[400,6,400,7],[401,6,401,7],[402,6,402,7],[403,6,403,7],[404,6,404,7],[405,6,405,7],[406,6,406,7],[407,6,407,7],[408,6,408,7],[409,6,409,7],[410,6,410,7],[411,6,411,7],[412,6,412,7],[413,6,413,7],[414,6,414,7],[415,6,415,7],[416,6,416,7],[419,6,419,7],[420,6,420,7],[421,6,421,7],[422,6,422,7],[423,6,423,7],[424,6,424,7],[425,6,425,7],[426,6,426,7],[427,6,427,7],[428,6,428,7],[429,6,429,7]]}
["DETAILED ESTIMATE REPORT FOR P.H.C. CENTER, SUMAN NAGAR,\nHARIDWAR"]
["ABSTRACT OF COST-"]
[" DETAILS OF MEASUREMENTS"]
["SL.\nNO.","Particulars Items","Measurements",{"$nulls":3},"Quantity   or\nContents"]
[null,null,"No.","L.","B.","H."]
[1,2,3,4,5,6,7]
["(A)","EARTH WORK"]
[1,"Earth work in excavation of foundation of structures as per drawing and technical \nspecification, including setting out, construction of shoring and bracing, removal of \nstumps and other deleterious matter, dressing of sides and bottom and backfilling with \napproved material.\n12-1-1 Ordinary soil"]
[null,"Column footings"]
[null,null,17,{"v":1.2,"d":"1.20"},{"v":1.2,"d":"1.200"},{"v":1.5,"d":"1.50"},{"$f":"C10*D10*E10*F10","v":36.72}]
[null,"Tie beams",{"$nulls":4},{"$f":"C11*D11*E11*F11","v":{"v":0,"d":"0.00"}}]
[null,"X-X Axis",{"$nulls":4},{"v":0,"d":"0.00"}]
[null,"PB1",3,4.82,{"v":0.6,"d":"0.60"},{"v":0.6,"d":"0.60"},{"v":5.2056,"d":"5.21"}]
[null,"PB1",3,4.49,{"v":0.6,"d":"0.60"},{"v":0.6,"d":"0.60"},{"v":4.849200000000001,"d":"4.85"}]
[null,"PB1",3,3.27,{"v":0.6,"d":"0.60"},{"v":0.6,"d":"0.60"},{"v":3.5316,"d":"3.53"}]
[null,"PB1",2,2.47,{"v":0.6,"d":"0.60"},{"v":0.6,"d":"0.60"},{"$f":"C16*D16*E16*F16","v":{"v":1.7784,"d":"1.78"}}]
[null,"PB1",2,4.63,{"v":0.6,"d":"0.60"},{"v":0.6,"d":"0.60"},{"$f":"C17*D17*E17*F17","v":{"v":3.3336,"d":"3.33"}}]
[null,"PB1",1,11.63,{"v":0.6,"d":"0.60"},{"v":0.6,"d":"0.60"},{"v":4.1868,"d":"4.19"}]
[null,"PB1",1,1.45,0.6,0.6,{"v":0.522,"d":"0.52"}]
[null,"PB3",3,2.47,0.6,0.6,{"v":2.6675999999999997,"d":"2.67"}]
[null,"Y-Y Axis",{"$nulls":4},{"v":0,"d":"0.00"}]
[null,"PB1",4,4.79,{"v":0.6,"d":"0.60"},{"v":0.6,"d":"0.60"},{"v":6.8976,"d":"6.90"}]
[null,"PB1",2,6.21,{"v":0.6,"d":"0.60"},{"v":0.6,"d":"0.60"},{"v":4.4712,"d":"4.47"}]
[null,"PB1",2,4.41,{"v":0.6,"d":"0.60"},{"v":0.6,"d":"0.60"},{"v":3.1752,"d":"3.18"}]
[null,"PB1",1,2.05,{"v":0.6,"d":"0.60"},{"v":0.6,"d":"0.60"},{"v":0.7379999999999999,"d":"0.74"}]
[{"$nulls":6},{"$f":"SUM(G10:G25)","v":{"v":78.07679999999999,"d":"78.08"}},null,"CUM"]
[]
[2,"Filling available excavated  earth (excluding rock) in trenches,  plinth,  sides  of  foundations  etc.  in layers     not     exceeding     20cm     in      depth, consolidating      each      deposited      layer      by ramming and  watering,   lead  up to 50 m and lift\nupto 1.5 m."]
[null,null,1,{"v":0.8,"d":"0.80"},47.95,null,{"$f":"C29*D29*E29","v":{"v":38.36000000000001,"d":"38.36"}}]
[{"$nulls":5},"Total",38.36,null,"Cum"]
[3,"Supplying and filling in plinth with sand under floors, including watering,ramming, consolidating and dressing complete."]
[null,"Minor OT",1,4.57,4.57,0.15,{"$f":"C32*D32*E32*F32","v":{"v":3.1327350000000003,"d":"3.13"}}]
[null,"Labour delivery room",1,16.92,{"v":1,"d":"1.00"},0.15,{"$f":"C33*D33*E33*F33","v":{"v":2.5380000000000003,"d":"2.54"}}]
[null,"Changing room",1,3.05,3.05,0.15,{"v":1.3953749999999998,"d":"1.40"}]
[null,"Changing room toilat",1,2.13,{"v":1.2,"d":"1.20"},0.15,{"$f":"C35*D35*E35*F35","v":{"v":0.3833999999999999,"d":"0.38"}}]
[null,"female word",1,4.52,6.36,0.15,{"$f":"C36*D36*E36*F36","v":{"v":4.31208,"d":"4.31"}}]
[null,"wc",1,{"v":1.2,"d":"1.20"},{"v":1.6,"d":"1.60"},0.15,{"v":0.288,"d":"0.29"}]
[null,"bath room",1,{"v":1.2,"d":"1.20"},{"v":1.6,"d":"1.60"},0.15,{"v":0.288,"d":"0.29"}]
[null,"Passage (back side)",1,{"v":14.1,"d":"14.10"},4.95,0.15,{"v":10.46925,"d":"10.47"}]
[null,null,1,3.27,1.42,0.15,{"$f":"C40*D40*E40*F40","v":{"v":0.69651,"d":"0.70"}}]
[{"$nulls":5},"Total",{"$f":"SUM(G32:G40)","v":{"v":23.50335,"d":"23.50"}},null,"Cum"]
[]
["(B)","CONCRETE WORK"]
[4,"Providing  concrete  for  plain/  reinforced  concrete in open foundations complete as\nper drawings and technical specifications Clause 802,   803,   1202   &   1203.P.C.C   grade   M   10,\nNominal mix 1:3:6"]
[null,"Column footings"]
[null,"F1",17,{"v":1.2,"d":"1.20"},{"v":1.2,"d":"1.200"},{"v":0.1,"d":"0.10"},{"$f":"C46*D46*E46*F46","v":{"v":2.448,"d":"2.45"}}]
[null,"Tie beams",{"$nulls":4},{"$f":"C47*D47*E47*F47","v":{"v":0,"d":"0.00"}}]
[null,"X-X Axis",{"$nulls":4},{"v":0,"d":"0.00"}]
[null,"PB1",3,4.82,{"v":0.6,"d":"0.60"},{"v":0.1,"d":"0.10"},{"v":0.8676,"d":"0.87"}]
[null,"PB1",3,4.49,{"v":0.6,"d":"0.60"},{"v":0.1,"d":"0.10"},{"v":0.8082000000000001,"d":"0.81"}]
[null,"PB1",3,3.27,{"v":0.6,"d":"0.60"},{"v":0.1,"d":"0.10"},{"v":0.5886,"d":"0.59"}]
[null,"PB1",2,2.47,{"v":0.6,"d":"0.60"},{"v":0.1,"d":"0.10"},{"v":0.2964,"d":"0.30"}]
[null,"PB1",2,4.63,{"v":0.6,"d":"0.60"},{"v":0.1,"d":"0.10"},{"v":0.5556,"d":"0.56"}]
[null,"PB1",1,11.63,{"v":0.6,"d":"0.60"},{"v":0.1,"d":"0.10"},{"v":0.6978000000000001,"d":"0.70"}]
[null,"PB1",1,1.45,{"v":0.6,"d":"0.60"},{"v":0.1,"d":"0.10"},{"v":0.08700000000000001,"d":"0.09"}]
[null,"PB3",3,2.47,{"v":0.6,"d":"0.60"},{"v":0.1,"d":"0.10"},{"v":0.4446,"d":"0.44"}]
[null,"Y-Y Axis",{"$nulls":4},{"v":0,"d":"0.00"}]
[null,"PB1",4,4.79,{"v":0.6,"d":"0.60"},{"v":0.1,"d":"0.10"},{"v":1.1496000000000002,"d":"1.15"}]
[null,"PB1",2,6.21,{"v":0.6,"d":"0.60"},{"v":0.1,"d":"0.10"},{"v":0.7452000000000001,"d":"0.75"}]
[null,"PB1",2,4.41,{"v":0.6,"d":"0.60"},{"v":0.1,"d":"0.10"},{"v":0.5292,"d":"0.53"}]
[null,"PB1",1,2.05,{"v":0.6,"d":"0.60"},{"v":0.1,"d":"0.10"},{"v":0.12299999999999998,"d":"0.12"}]
[null,"Flooring base",{"$nulls":4},{"v":0,"d":"0.00"}]
[null,"Minor OT",1,4.57,4.57,{"v":0.1,"d":"0.10"},{"v":2.08849,"d":"2.09"}]
[null,"Labour delivery room",1,16.92,{"v":1,"d":"1.00"},{"v":0.1,"d":"0.10"},{"v":1.6920000000000002,"d":"1.69"}]
[null,"Changing room",1,3.05,3.05,{"v":0.1,"d":"0.10"},{"v":0.9302499999999999,"d":"0.93"}]
[null,"Changing room toilat",1,2.13,{"v":1.2,"d":"1.20"},{"v":0.1,"d":"0.10"},{"v":0.2556,"d":"0.26"}]
[null,"female word",1,4.52,6.36,{"v":0.1,"d":"0.10"},{"v":2.87472,"d":"2.87"}]
[null,"wc",1,{"v":1.2,"d":"1.20"},{"v":1.6,"d":"1.60"},{"v":0.1,"d":"0.10"},{"v":0.192,"d":"0.19"}]
[null,"bath room",1,{"v":1.2,"d":"1.20"},{"v":1.6,"d":"1.60"},{"v":0.1,"d":"0.10"},{"v":0.192,"d":"0.19"}]
[null,"Passage (back side)",1,{"v":14.1,"d":"14.10"},4.95,{"v":0.1,"d":"0.10"},{"v":6.979500000000001,"d":"6.98"}]
[null,null,1,3.27,1.42,{"v":0.1,"d":"0.10"},{"v":0.46434,"d":"0.46"}]
[{"$nulls":5},"Total",{"$f":"SUM(G46:G71)","v":{"v":25.009700000000002,"d":"25.01"}},null,"CUM"]
[]
[5,"Providing  and  laying  damp-proof  course  40mm thick  with   cement  concrete  1:2:4  (1  cement  :\n2   coarse   sand   :   4   graded   stone   aggregate\n12.5mm nominal size)."]
[null,"X-X Axis"]
[null,"PB1",3,4.82,0.23,null,{"$f":"C76*D76*E76","v":{"v":3.3258000000000005,"d":"3.33"}}]
[null,"PB1",3,4.49,0.23,null,{"$f":"C77*D77*E77","v":{"v":3.0981,"d":"3.10"}}]
[null,"PB1",3,3.27,0.23,null,{"v":2.2563000000000004,"d":"2.26"}]
[null,"PB1",2,2.47,0.23,null,{"v":1.1362,"d":"1.14"}]
[null,"PB1",2,4.63,0.23,null,{"v":2.1298,"d":"2.13"}]
[null,"PB1",1,11.63,0.23,null,{"$f":"C81*D81*E81","v":{"v":2.6749000000000005,"d":"2.67"}}]
[null,"PB1",1,1.45,0.23,null,{"v":0.3335,"d":"0.33"}]
[null,"PB3",3,2.47,0.23,null,{"v":1.7043000000000001,"d":"1.70"}]
[null,"Y-Y Axis"]
[null,"PB1",4,4.79,0.23,null,{"v":4.4068000000000005,"d":"4.41"}]
[null,"PB1",2,6.21,0.23,null,{"v":2.8566000000000003,"d":"2.86"}]
[null,"PB1",2,4.41,0.23,null,{"v":2.0286,"d":"2.03"}]
[null,"PB1",1,2.05,0.23,null,{"$f":"C88*D88*E88","v":{"v":0.4715,"d":"0.47"}}]
[{"$nulls":5},"Total",{"$f":"SUM(G76:G88)","v":{"v":26.422400000000003,"d":"26.42"}},null,"Sqm"]
[]
[6,"Making plinth protection 50 mm thick of cement concrete   1:3:6  (1   cement  :3   coarse  sand   :  6 graded  stone  aggregate  20  mm  nominal  size) over  75  mm  bed  by  dry  brick  ballast  40  mm nominal size well rammed and consolidated and grouted  with  fine  sand   including  finishing  the\ntop smooth"]
[null,"outer side of building",1,26.42,null,null,26.42]
[{"$nulls":5},"Total",26.42,null,"Sqm"]
[]
["(C)","REINFORCED CEMENT CONCRETE WORK"]
[7,"Providing  concrete  for  plain/  reinforced  concrete in open foundations complete as\nper drawings and technical specifications Clause 802, 803, 1202 & 1203, R.C.C grade M 20"]
["(a)","1:1.5:3 (1 cement  : 1.5  coarse sand  (zone-III): 3\ngraded stone aggregate 20 mm nominal size)"]
[null,"Footing"]
[null,"F1",17,{"v":1.2,"d":"1.20"},{"v":1.2,"d":"1.200"},{"v":0.5,"d":"0.50"},{"$f":"C99*D99*E99*F99","v":{"v":12.239999999999998,"d":"12.24"}},null,"CUM"]
["(b)","Columns up to plinth level"]
[null,"C1",8,0.23,{"v":0.4,"d":"0.40"},{"v":1,"d":"1.00"},{"$f":"C101*D101*E101*F101","v":{"v":0.7360000000000001,"d":"0.74"}}]
[null,"C2",7,{"v":0.3,"d":"0.30"},0.23,{"v":1,"d":"1.00"},{"$f":"C102*D102*E102*F102","v":{"v":0.48300000000000004,"d":"0.48"}}]
[null,"C3",2,0.23,0.23,{"v":1,"d":"1.00"},{"v":0.1058,"d":"0.11"}]
["(c)",{"$nulls":5},{"$f":"SUM(G101:G103)","v":{"v":1.3248000000000002,"d":"1.32"}},null,"CUM"]
[]
[null,"Tie beams"]
[null,"X-X Axis"]
[null,"PB1",3,4.82,0.23,0.45,{"$f":"C108*D108*E108*F108","v":{"v":1.4966100000000002,"d":"1.50"}}]
[null,"PB1",3,4.49,0.23,0.45,{"$f":"C109*D109*E109*F109","v":{"v":1.394145,"d":"1.39"}}]
[null,"PB1",3,3.27,0.23,0.45,{"v":1.0153350000000003,"d":"1.02"}]
[null,"PB1",2,2.47,0.23,0.45,{"v":0.51129,"d":"0.51"}]
[null,"PB1",2,4.63,0.23,0.45,{"v":0.95841,"d":"0.96"}]
[null,"PB1",1,11.63,0.23,0.45,{"$f":"C113*D113*E113*F113","v":{"v":1.2037050000000002,"d":"1.20"}}]
[null,"PB1",1,1.45,0.23,0.45,{"v":0.15007500000000001,"d":"0.15"}]
[null,"PB3",3,2.47,0.23,0.45,{"v":0.766935,"d":"0.77"}]
[null,"Y-Y Axis"]
[null,"PB1",4,4.79,0.23,0.45,{"$f":"C117*D117*E117*F117","v":{"v":1.9830600000000003,"d":"1.98"}}]
[null,"PB1",2,4.41,0.23,0.45,{"$f":"C118*D118*E118*F118","v":{"v":0.91287,"d":"0.91"}}]
[null,"PB1",1,2.05,0.23,0.45,{"$f":"C119*D119*E119*F119","v":{"v":0.212175,"d":"0.21"}}]
[{"$nulls":6},{"$f":"SUM(G108:G119)","v":{"v":10.604610000000001,"d":"10.60"}},null,"Cum"]
[{"$nulls":3},"(a+b+c)",null,"total",{"$f":"SUM(G120+G104+G99)","v":{"v":24.16941,"d":"24.17"}},null,"CUM"]
[8,"Providing  and  laying  reinforced  cement  concrete in superstructure as per drawing\nand technical specifications Clauses 800, 1205.4 and 1205.5 ,R.C.C grade M 20, height upto 5m"]
["(a)","Columns up to roof slab"]
[null,"C1",8,0.23,{"v":0.4,"d":"0.40"},{"v":3.2,"d":"3.20"},{"$f":"C124*D124*E124*F124","v":{"v":2.3552000000000004,"d":"2.36"}}]
[null,"C2",7,{"v":0.3,"d":"0.30"},0.23,{"v":3.2,"d":"3.20"},{"$f":"C125*D125*E125*F125","v":{"v":1.5456000000000003,"d":"1.55"}}]
[null,"C3",2,0.23,0.23,{"v":3.2,"d":"3.20"},{"v":0.33856,"d":"0.34"}]
[{"$nulls":6},{"$f":"SUM(G124:G126)","v":{"v":4.2393600000000005,"d":"4.24"}},null,"CUM"]
[null,"Slab beams"]
[null,"X-X Axis"]
[null,"PB1",3,4.82,0.23,0.45,{"v":1.4966100000000002,"d":"1.50"}]
[null,"PB1",3,4.49,0.23,0.45,{"v":1.394145,"d":"1.39"}]
[null,"PB1",3,3.27,0.23,0.45,{"v":1.0153350000000003,"d":"1.02"}]
[null,"PB1",2,2.47,0.23,0.45,{"v":0.51129,"d":"0.51"}]
[null,"PB1",2,4.63,0.23,0.45,{"v":0.95841,"d":"0.96"}]
[null,"PB1",1,11.63,0.23,0.45,{"$f":"C135*D135*E135*F135","v":{"v":1.2037050000000002,"d":"1.20"}}]
[null,"PB1",1,1.45,0.23,0.45,{"v":0.15007500000000001,"d":"0.15"}]
[null,"PB3",3,2.47,0.23,0.45,{"v":0.766935,"d":"0.77"}]
[null,"Y-Y Axis",{"$nulls":4},{"v":0,"d":"0.00"}]
[null,"PB1",4,4.79,0.23,0.45,{"v":1.9830600000000003,"d":"1.98"}]
[null,"PB1",2,4.41,0.23,0.45,{"v":0.91287,"d":"0.91"}]
[null,"PB1",1,2.05,0.23,0.45,{"v":0.212175,"d":"0.21"}]
[{"$nulls":6},{"$f":"SUM(G130:G141)","v":{"v":10.604610000000001,"d":"10.60"}},null,"CUM"]
["(c)","Roof slab"]
[null,"S1",1,{"v":4.8,"d":"4.80"},4.79,{"v":0.15,"d":"0.150"},{"v":3.4488,"d":"3.45"}]
[null,"S1",1,4.49,4.79,{"v":0.15,"d":"0.150"},{"v":3.226065,"d":"3.23"}]
[null,"S1",1,5.74,4.79,{"v":0.15,"d":"0.150"},{"v":4.1241900000000005,"d":"4.12"}]
[null,"S1",1,4.61,6.21,{"v":0.15,"d":"0.150"},{"v":4.294215,"d":"4.29"}]
[null,"S1",1,3.96,4.41,{"v":0.15,"d":"0.150"},{"v":2.6195399999999998,"d":"2.62"}]
[null,"S1",1,6.14,4.41,{"v":0.15,"d":"0.150"},{"v":4.06161,"d":"4.06"}]
[{"$nulls":3},4.09,4.41,{"v":0.15,"d":"0.150"},{"$f":"SUM(G144:G149)","v":{"v":21.77442,"d":"21.77"}},null,"CUM"]
["(d)","Lintel"]
[null,"D",2,{"v":2.7,"d":"2.70"},0.23,0.15,{"v":0.18630000000000002,"d":"0.19"}]
[null,"D1",4,{"v":2.1,"d":"2.10"},0.23,0.15,{"v":0.2898,"d":"0.29"}]
[null,"D2",3,{"v":1.5,"d":"1.50"},0.23,0.15,{"v":0.15525000000000003,"d":"0.16"}]
[null,"D3",3,{"v":1.2,"d":"1.20"},0.23,0.15,{"$f":"C155*D155*E155*F155","v":{"v":0.12419999999999999,"d":"0.12"}}]
[null,"W",4,{"v":2.1,"d":"2.10"},0.23,0.15,{"v":0.2898,"d":"0.29"}]
[null,"V",4,1.05,0.23,0.15,{"v":0.1449,"d":"0.14"}]
[{"$nulls":6},{"$f":"SUM(G152:G157)","v":{"v":1.19025,"d":"1.19"}},null,"CUM"]
["(e)","Chajja"]
[]
[]
[null,"W",3,{"v":2.1,"d":"2.10"},{"v":0.6,"d":"0.60"},{"v":0.1,"d":"0.10"},{"v":0.37800000000000006,"d":"0.38"}]
[null,"V",1,1.05,{"v":0.6,"d":"0.60"},{"v":0.1,"d":"0.10"},{"$f":"C163*D163*E163*F163","v":{"v":0.063,"d":"0.06"}}]
[{"$nulls":6},{"$f":"SUM(G162:G163)","v":{"v":0.44100000000000006,"d":"0.44"}},null,"CUM"]
[{"$nulls":3},"(a+b+c+d+e)",null,null,{"$f":"SUM(G164+G158+G150+G142+G127)","v":{"v":38.24964,"d":"38.25"}},null,"Cum"]
[]
[9,"Steel   reinforcement   for   R.C.C.   work   including straightening, cutting, bending, placing in position and binding all complete upto plinth level. Thermo Mechanically  Treated  bars  of  grade  Fe-500D  or\nmore"]
[null,"Footing  @1.0%",{"$nulls":3},12.24,{"v":0.1224,"d":"0.12"},null,"density of steel 78.5q\nper cum"]
[null,"Columns  @2.5%",{"$nulls":3},5.56,{"v":0.139,"d":"0.14"}]
[null,"Beams @ 2.0%",{"$nulls":3},{"v":21.2,"d":"21.20"},{"v":0.424,"d":"0.42"}]
[null,"Slab  @ 1.0%",{"$nulls":3},21.77,{"v":0.2177,"d":"0.22"}]
[null,"Lintels   @ 1.0%",{"$nulls":3},1.19,{"v":0.0119,"d":"0.01"}]
[null,"Chajjas  @ 1.0%",{"$nulls":3},0.44,{"v":0.0044,"d":"0.00"}]
[{"$nulls":5},"Sub Total",{"$f":"SUM(G168:G173)","v":{"v":0.9194,"d":"0.92"}}]
[null,null,1,0.92,{"v":78.5,"d":"78.50"},null,{"$f":"D175*E175","v":72.22}]
[{"$nulls":5},"Total",72.22,null,"Qtl"]
[{"$nulls":5},"Total",{"v":7222,"d":"7222.00"},null,"kg"]
[10,"Centring and shuttering including strutting,ropping etc. and  removal of form for"]
["(a)","Foundations, footings, bases of columns, etc. for\nmass concrete."]
[null,"F1",17,{"v":4.8,"d":"4.80"},null,{"v":0.5,"d":"0.50"},{"$f":"C180*D180*F180","v":{"v":40.8,"d":"40.80"}},null,"sqm"]
[]
["(b)","Columns,  Pillars,  Piers,  Abutments,  Posts  and\nStruts."]
[null,"Columns"]
[null,"Upto tie bems"]
[null,"C1",8,1.26,null,{"v":1,"d":"1.00"},{"$f":"C185*D185*F185","v":10.08}]
[null,"C2",7,1.06,null,{"v":1,"d":"1.00"},{"$f":"C186*D186*F186","v":7.42}]
[null,"C3",2,0.92,null,{"v":1,"d":"1.00"},1.84]
[null,"Columns up to roof slab",{"$nulls":4},{"v":0,"d":"0.00"}]
[null,"C1",8,1.26,null,{"v":3.2,"d":"3.20"},{"v":32.256,"d":"32.26"}]
[null,"C2",7,1.06,null,{"v":3.2,"d":"3.20"},{"v":23.744,"d":"23.74"}]
[null,"C3",2,0.92,null,{"v":3.2,"d":"3.20"},{"v":5.888000000000001,"d":"5.89"}]
[{"$nulls":6},{"$f":"SUM(G185:G191)","v":{"v":81.22800000000001,"d":"81.23"}},null,"Sqm"]
[]
["(c)","Lintels, beams, plinth beams, girders, bressumers\nand cantilevers."]
[null,"Tie Beam (two sides)"]
[null,"X-X Axis"]
[null,"PB1",3,4.82,null,0.45,{"$f":"C197*D197*F197","v":{"v":6.507000000000001,"d":"6.51"}}]
[null,"PB1",3,4.49,null,0.45,{"$f":"C198*D198*F198","v":{"v":6.0615000000000006,"d":"6.06"}}]
[null,"PB1",3,3.27,null,0.45,{"v":4.4145,"d":"4.41"}]
[null,"PB1",2,2.47,null,0.45,{"v":2.2230000000000003,"d":"2.22"}]
[null,"PB1",2,4.63,null,0.45,{"v":4.167,"d":"4.17"}]
[null,"PB1",1,11.63,null,0.45,{"$f":"C202*D202*F202","v":{"v":5.2335,"d":"5.23"}}]
[null,"PB1",1,1.45,null,0.45,{"v":0.6525,"d":"0.65"}]
[null,"PB3",3,2.47,null,0.45,{"v":3.3345000000000002,"d":"3.33"}]
[]
[null,"Y-Y Axis",{"$nulls":4},{"v":0,"d":"0.00"}]
[null,"PB1",4,4.79,null,0.45,{"$f":"C210*D207*F207","v":{"v":0,"d":"0.00"}}]
[null,"PB1",2,4.41,null,0.45,{"v":3.9690000000000003,"d":"3.97"}]
[null,"PB1",1,2.05,null,0.45,{"v":0.9225,"d":"0.92"}]
[]
[null,"Slab beam (two side)"]
[null,"Slab beam (bottom side)"]
[null,"X-X Axis"]
[null,"PB1",3,4.82,0.23,null,{"$f":"C214*D214*E214","v":{"v":3.3258000000000005,"d":"3.33"}}]
[null,"PB1",3,4.49,0.23,null,{"$f":"C215*D215*E215","v":{"v":3.0981,"d":"3.10"}}]
[null,"PB1",3,3.27,0.23,null,{"v":2.2563000000000004,"d":"2.26"}]
[null,"PB1",2,2.47,0.23,null,{"v":1.1362,"d":"1.14"}]
[null,"PB1",2,4.63,0.23,null,{"v":2.1298,"d":"2.13"}]
[null,"PB1",1,11.63,0.23,null,{"$f":"C219*D219*E219","v":{"v":2.6749000000000005,"d":"2.67"}}]
[null,"PB1",1,1.45,0.23,null,{"v":0.3335,"d":"0.33"}]
[null,"PB3",3,2.47,0.23,null,{"v":1.7043000000000001,"d":"1.70"}]
[null,"Y-Y Axis"]
[null,"PB1",4,4.79,0.23,null,{"v":4.4068000000000005,"d":"4.41"}]
[null,"PB1",2,4.41,0.23,null,{"v":2.0286,"d":"2.03"}]
[null,"PB1",1,2.05,0.23,null,{"$f":"C225*D225*E225","v":{"v":0.4715,"d":"0.47"}}]
[null,"Lintel beam (two side)"]
[null,"D",2,{"v":2.7,"d":"2.70"},null,0.15,{"$f":"C227*D227*F227","v":0.81}]
[null,"D1",4,{"v":2.1,"d":"2.10"},null,0.15,{"$f":"C228*D228*F228","v":1.26}]
[null,"D2",3,{"v":1.5,"d":"1.50"},null,0.15,{"v":0.6749999999999999,"d":"0.68"}]
[null,"D3",3,{"v":1.2,"d":"1.20"},null,0.15,{"v":0.5399999999999999,"d":"0.54"}]
[null,"W",4,{"v":2.1,"d":"2.10"},null,0.15,{"$f":"C231*D231*F231","v":1.26}]
[null,"V",4,1.05,null,0.15,0.63]
[{"$nulls":5},"Total(c)",{"$f":"SUM(G197:G232)","v":{"v":66.22580000000002,"d":"66.23"}},null,"Sqm"]
[]
["(d)","Suspended   floors,   roofs,   landings,   balconies\nand  access platform."]
[null,"S1",1,{"v":4.8,"d":"4.80"},4.79,null,{"$f":"C236*D236*E236","v":{"v":22.992,"d":"22.99"}}]
[null,"S1",1,4.49,4.79,null,{"$f":"C237*D237*E237","v":{"v":21.5071,"d":"21.51"}}]
[null,"S1",1,5.74,4.79,null,{"v":27.494600000000002,"d":"27.49"}]
[null,"S1",1,4.61,6.21,null,{"v":28.628100000000003,"d":"28.63"}]
[null,"S1",1,3.96,4.41,null,{"v":17.4636,"d":"17.46"}]
[null,"S1",1,6.14,4.41,null,{"$f":"C241*D241*E241","v":{"v":27.0774,"d":"27.08"}}]
[null,null,1,4.09,4.41,null,{"$f":"C242*D242*E242","v":{"v":18.0369,"d":"18.04"}}]
[]
[]
[null,"Chajja"]
[null,"D",2,{"v":2.7,"d":"2.70"},{"v":0.6,"d":"0.60"},null,{"$f":"C246*D246*E246","v":3.24}]
[null,"D1",4,{"v":2.1,"d":"2.10"},{"v":0.6,"d":"0.60"},null,{"$f":"C247*D247*E247","v":5.04}]
[null,"D2",3,{"v":1.5,"d":"1.50"},{"v":0.6,"d":"0.60"},null,{"v":2.6999999999999997,"d":"2.70"}]
[null,"D3",3,{"v":1.2,"d":"1.20"},{"v":0.6,"d":"0.60"},null,{"v":2.1599999999999997,"d":"2.16"}]
[null,"W",4,{"v":2.1,"d":"2.10"},{"v":0.6,"d":"0.60"},null,{"$f":"C250*D250*E250","v":5.04}]
[null,"V",4,1.05,{"v":0.6,"d":"0.60"},null,2.52]
[{"$nulls":6},{"$f":"SUM(G236:G251)","v":{"v":183.8997,"d":"183.90"}},null,"Sqm"]
["(D)","BRICK WORK"]
[11,"Brick    masonry    work    in    cement    mortar    in foundation complete excluding pointing and plastering     as    per    drawing    and    technical\nspecifications Clauses 600, 1202 & 1203"]
[null,"Cement mortar 1:4 (1 cement : 4 coarse sand)"]
[null,"9\" thick Wall"]
[null,"Long Wall",1,55.65,0.35,{"v":0.5,"d":"0.50"},{"$f":"D257*E257*F257","v":{"v":9.73875,"d":"9.74"}}]
[null,"Short Wall",1,{"v":40.4,"d":"40.40"},0.35,{"v":0.5,"d":"0.50"},{"$f":"D258*E258*F258","v":{"v":7.069999999999999,"d":"7.07"}}]
[null,null,1,{"v":12,"d":"12.00"},0.35,{"v":0.5,"d":"0.50"},{"$f":"D259*E259*F259","v":{"v":2.0999999999999996,"d":"2.10"}}]
[{"$nulls":6},{"$f":"SUM(G257:G259)","v":{"v":18.908749999999998,"d":"18.91"}},null,"Cum"]
[]
[12,"Brick    masonry    work    in    cement    mortar    in substructure complete excepting pointing\nand   plastering,   as   per   drawing   and   technical specification Clauses 602, 603, 604,\n1202 & 1204"]
[null,"Cement mortar 1:4 (1 cement : 4 coarse sand)"]
[null,"9\" thick Wall"]
[null,"Long Wall",1,55.65,0.23,{"v":3.2,"d":"3.20"},{"$f":"D265*E265*F265","v":{"v":40.958400000000005,"d":"40.96"}}]
[null,"Short Wall",1,{"v":40.4,"d":"40.40"},0.23,{"v":3.2,"d":"3.20"},{"$f":"D266*E266*F266","v":{"v":29.7344,"d":"29.73"}}]
[12,null,1,{"v":12,"d":"12.00"},0.23,{"v":3.2,"d":"3.20"},{"$f":"D267*E267*F267","v":{"v":8.832,"d":"8.83"}}]
[{"$nulls":6},{"$f":"SUM(G265:G267)","v":{"v":79.5248,"d":"79.52"}},null,"Cum"]
[]
[null,"Deduct for openings"]
[null,"D",2,{"v":2.7,"d":"2.70"},0.23,{"v":2.4,"d":"2.40"},{"$f":"C271*D271*E271*F271","v":{"v":2.9808000000000003,"d":"2.98"}}]
[null,"D1",4,{"v":2.1,"d":"2.10"},0.23,{"v":2.1,"d":"2.10"},{"$f":"C272*D272*E272*F272","v":{"v":4.057200000000001,"d":"4.06"}}]
[null,"D2",3,{"v":1.5,"d":"1.50"},0.23,{"v":2.1,"d":"2.10"},{"v":2.1735,"d":"2.17"}]
[null,"D3",3,{"v":1.2,"d":"1.20"},0.23,{"v":2.1,"d":"2.10"},{"v":1.7388,"d":"1.74"}]
[null,"W",4,{"v":2.1,"d":"2.10"},0.23,{"v":2.1,"d":"2.10"},{"$f":"C275*D275*E275*F275","v":{"v":4.057200000000001,"d":"4.06"}}]
[null,"V",4,1.05,0.23,{"v":2.1,"d":"2.10"},{"$f":"C276*D276*E276*F276","v":{"v":2.0286000000000004,"d":"2.03"}}]
[{"$nulls":6},{"$f":"SUM(G271:G276)","v":{"v":17.0361,"d":"17.04"}},null,"(-)"]
[{"$nulls":5},"Total",{"$f":"G268-G277","v":{"v":62.488699999999994,"d":"62.49"}},null,"Cum"]
[]
["(E)","WOOD & FITTING WORK"]
[13,"Providing   and   fixing   ISI   marked   flush   door shutters  conforming  to   IS:  2202  (Part  I)  non- decorative type, core of block board construction with  frame   of  1st  class  hard  wood  and  well matched commercial 3 ply veneering with vertical grains or cross bands and  face veneers  on both faces   of   shutters   35   mm   thick   including   ISI marked    Stainless    Steel    butt    hinges    with\nnecessary screws."]
[null,"D",2,2.7,null,{"v":2.4,"d":"2.40"},{"$f":"C282*D282*F282","v":12.96}]
[null,"D1",4,2.1,null,{"v":2.4,"d":"2.40"},{"$f":"C283*D283*F283","v":20.16}]
[null,"D2",3,1.5,null,{"v":2.1,"d":"2.10"},{"v":9.450000000000001,"d":"9.45"}]
[null,"D3",3,0.9,null,{"v":2.1,"d":"2.10"},{"$f":"C285*D285*F285","v":{"v":5.670000000000001,"d":"5.67"}}]
[]
[{"$nulls":5},"Total",{"$f":"SUM(G282:G286)","v":{"v":48.24000000000001,"d":"48.24"}},null,"Sqm"]
[]
[14,"Providing    and    fixing    aluminium    handles    ISI marked  anodised   (anodic  coating  not  less  than grade AC 10 as per IS : 1868) transparent or dyed to    required   colour   or   shade   with   necessary screws etc. complete : 125 mm"]
[null,"D",2,{"v":4,"d":"4.00"},null,null,{"$f":"C290*D290","v":{"v":8,"d":"8.00"}}]
[null,"D1",4,{"v":2,"d":"2.00"},null,null,{"$f":"C291*D291","v":{"v":8,"d":"8.00"}}]
[null,"D2",3,{"v":2,"d":"2.00"},null,null,{"v":6,"d":"6.00"}]
[null,"D3",3,{"v":2,"d":"2.00"},null,null,{"$f":"C293*D293","v":{"v":6,"d":"6.00"}}]
[{"$nulls":5},"Total",{"$f":"SUM(G290:G293)","v":{"v":28,"d":"28.00"}},null,"Nos"]
[]
[15,"Providing and fixing aluminium sliding door bolts ISI  marked   anodised  (anodic  coating  not  less than grade AC 10 as per IS : 1868) transparent or dyed  to  required  colour  or shade  with  nuts and\nscrews etc. complete"]
["(a)","300x16 mm"]
[null,"D",2,{"v":2,"d":"2.00"},null,null,{"$f":"C298*D298","v":{"v":4,"d":"4.00"}}]
[null,"D1",4,{"v":2,"d":"2.00"},null,null,{"$f":"C299*D299","v":{"v":8,"d":"8.00"}}]
[null,"D2",3,{"v":2,"d":"2.00"},null,null,{"v":6,"d":"6.00"}]
[null,"D3",3,{"v":2,"d":"2.00"},null,null,{"v":6,"d":"6.00"}]
[{"$nulls":5},"Total",{"$f":"SUM(G298:G301)","v":{"v":24,"d":"24.00"}},null,"Nos"]
[]
[16,"Providing  and  fixing  aluminium  tower  bolts  ISI marked  anodised   (anodic  coating  not  less  than grade  AC  10  as  per  IS  :  1868  )  transparent  or dyed  to required colour or shade with necessary\nscrews etc. complete"]
["(a)","250x10 mm"]
[null,"D",2,{"v":2,"d":"2.00"},null,null,{"$f":"C306*D306","v":{"v":4,"d":"4.00"}}]
[null,"D1",4,{"v":2,"d":"2.00"},null,null,{"$f":"C307*D307","v":{"v":8,"d":"8.00"}}]
[null,"D2",3,{"v":2,"d":"2.00"},null,null,{"v":6,"d":"6.00"}]
[null,"D3",3,{"v":2,"d":"2.00"},null,null,{"$f":"C309*D309","v":{"v":6,"d":"6.00"}}]
[{"$nulls":5},"Total",{"$f":"SUM(G306:G309)","v":{"v":24,"d":"24.00"}},null,"Nos"]
["(b)","150X10 MM"]
[null,"W",4,{"v":2,"d":"2.00"},null,null,{"$f":"C312*D312","v":{"v":8,"d":"8.00"}}]
[{"$nulls":5},"Total",{"$f":"SUM(G312:G312)","v":{"v":8,"d":"8.00"}},null,"Nos"]
[]
[17,"Providing and fixing aluminium hanging floor door stopper ISI  marked anodised (anodic coating not less   than   grade   AC   10   as   per   IS   :   1868) transparent or dyed to required colour and shade with   necessary   screws   etc.   complete.   Single\nrubber stopper"]
[null,"D",2,{"v":2,"d":"2.00"},null,null,{"$f":"C316*D316","v":{"v":4,"d":"4.00"}}]
[null,"D1",4,{"v":1,"d":"1.00"},null,null,{"$f":"C317*D317","v":{"v":4,"d":"4.00"}}]
[null,"D2",3,{"v":1,"d":"1.00"},null,null,{"v":3,"d":"3.00"}]
[null,"D3",3,{"v":1,"d":"1.00"},null,null,{"$f":"C319*D319","v":{"v":3,"d":"3.00"}}]
[{"$nulls":5},"Total",{"$f":"SUM(G316:G319)","v":{"v":14,"d":"14.00"}},null,"Each"]
[]
[18,"Providing and fixing fly proof galvanised M.S wire gauze  to  windows  and  clerestory  windows  using galvanised M.S. wire gauge with average width of aperture  1.4  mm  in  both  directions  with  wire  of dia. 0.63 mm. With 12 mm mild steel U beading."]
[null,"W",4,2.1,null,{"v":1.5,"d":"1.50"},{"$f":"C323*D323","v":{"v":8.4,"d":"8.40"}}]
[null,"V",4,{"v":0.75,"d":"0.8"},null,{"v":0.6,"d":"0.60"},{"$f":"C324*D324","v":{"v":3,"d":"3.00"}}]
[{"$nulls":5},"Total",{"$f":"SUM(G323:G324)","v":{"v":11.4,"d":"11.40"}},null,"sqm"]
[]
["(F)","STEEL WORK"]
[19,"Providing  and  fixing  pressed  steel  door  frames confirming   to   IS:    4351   manufactured   from commercial    mild    steel    sheet    of    1.25    mm thickness including  hinges jamb, lock jamb, bead and  if  required  angle  threshold   of  mild  steel angle   of    section   50x25mm,   or   base   ties   of\n1.25mm   pressed   mild   steel   welded   or   rigidly fixed  together by mechanical means, adjustable lugs  with  split  end  tail  to  each  jamb   including steel   butt   hinges   2.5mm   thick   with   mortar guards, lock strike-plate and  shock absorbers as specified  and  applying  a  coat  of  approved  steel primer  after   pre-treatment  of  the  surface  as directed by Engineer-in-charge"]
["(a)","Profile  'B'   (Single Pattam)"]
[null,"D",2,{"v":7.2,"d":"7.20"},null,null,{"$f":"C330*D33","v":33.84}]
[null,"D1",4,{"v":6.6,"d":"6.60"},null,null,{"$f":"C331*D331","v":{"v":26.4,"d":"26.40"}}]
[null,"D2",3,{"v":5.4,"d":"5.40"},null,null,{"v":16.200000000000003,"d":"16.20"}]
[null,"D3",3,{"v":5.1,"d":"5.10"},null,null,{"$f":"C333*D333","v":{"v":15.299999999999999,"d":"15.30"}}]
[{"$nulls":5},"Total",{"$f":"SUM(G330:G333)","v":91.74},null,"Rm"]
[]
[20,"Steel work welded in built up section/framed work including   cutting,  hoisting,  fixing  in  position  and applying a priming coat of approved steel primer using steel etc. as required.  In  gratings,  frames, guard  bar,  ladder,  railings,  brackets,  gates and similar works."]
[null,"W",4,1.8,null,{"v":1.5,"d":"1.50"},{"$f":"C337*D337*F337","v":{"v":10.8,"d":"10.80"}}]
[null,"V",4,0.8,null,{"v":0.6,"d":"0.60"},{"$f":"C338*D338*F338","v":1.92}]
[{"$nulls":6},{"$f":"SUM(G337:G338)","v":12.72},null,"sqm"]
[null,"(At 15.00Kg per Sqm)",1,12.72,{"v":15,"d":"15.00"},null,{"$f":"D340*E340","v":{"v":190.8,"d":"190.80"}}]
[{"$nulls":5},"Total",{"v":190.8,"d":"190.80"},null,"Kg"]
[]
[21,"Providing  and  fixing  in  position  collapsible  steel shutters  with  vertical  channels  20x10x2  mm  and braced with flat iron diagonals 20x5 mm\nsize,  with  top  and  bottom  rail  of  T-iron  40x40x6 mm, with 40 mm dia steel pulleys, complete with bolts, nuts, locking arrangement, stoppers, handles,  including  applying   a  priming   coat  of approved steel primer."]
[null,null,1,{"v":3,"d":"3.00"},null,{"v":2.4,"d":"2.40"},{"v":7.2,"d":"7.20"}]
[{"$nulls":5},"Total",{"v":7.2,"d":"7.20"},null,"Sqm"]
[]
[22,"Providing  &  fixing  glass  panes  with  putty  and glazing  clips  in  steel  doors,  windows,  clerestory windows,  all  complete  with  :  5.5  mm  thick  glass\npanes"]
[null,"W",4,1.8,null,{"v":1.5,"d":"1.50"},{"$f":"C348*D348","v":{"v":7.2,"d":"7.20"}}]
[null,"V",4,0.8,null,{"v":0.6,"d":"0.60"},{"$f":"C349*D349","v":{"v":3.2,"d":"3.20"}}]
[{"$nulls":5},"Total",{"$f":"SUM(G348:G349)","v":{"v":10.4,"d":"10.40"}},null,"Sqm"]
["(G)","FLOORING"]
[23,"Providing  and  fixing  10  mm  thick  acid  and/or\nalkali resistant tiles of approved make and colour using acid and/or alkali resisting mortar bedding, and  joints  filled  with  acid  and/or  alkali  resisting cement  as  per  IS  :  4457,  complete  as  per  the direction of Engineer-in- Charge. In flooring on a bed  of  10  mm  thick  mortar  1:4  (1  acid  proof cement : 4 coarse sand) Acid and alkali resistant\ntile"]
[null,"Minor OT",1,4.57,4.57,null,{"$f":"C353*D353*E353","v":{"v":20.884900000000002,"d":"20.88"}}]
[null,"Labour delivery room",1,16.92,{"v":1,"d":"1.00"},null,{"$f":"C354*D354*E354","v":16.92}]
[null,"Changing room",1,3.05,3.05,null,{"v":9.302499999999998,"d":"9.30"}]
[null,"Changing room toilet",1,2.13,{"v":1.2,"d":"1.20"},null,{"v":2.5559999999999996,"d":"2.56"}]
[null,"female ward",1,4.52,6.36,null,{"v":28.7472,"d":"28.75"}]
[null,"wc",1,{"v":1.2,"d":"1.20"},{"v":1.6,"d":"1.60"},null,1.92]
[null,"bath room",1,{"v":1.2,"d":"1.20"},{"v":1.6,"d":"1.60"},null,1.92]
[null,"Passage (back side)",1,{"v":14.1,"d":"14.10"},4.95,null,{"v":69.795,"d":"69.80"}]
[null,null,1,3.27,1.42,null,{"v":4.6434,"d":"4.64"}]
[{"$nulls":6},{"$f":"SUM(G353:G361)","v":{"v":156.68899999999996,"d":"156.69"}},null,"SQM"]
["(H)","FINISHING"]
[24,"12 mm cement plaster of mix :  1:6 (1 cement: 6\nfine sand)"]
[null,"Minor OT",2,4.57,null,{"v":3.2,"d":"3.20"},{"$f":"C365*D365*F365","v":{"v":29.248000000000005,"d":"29.25"}}]
[null,null,2,4.57,null,{"v":3.2,"d":"3.20"},{"$f":"C366*D366*F366","v":{"v":29.248000000000005,"d":"29.25"}}]
[null,"Labour delivery room",2,4.26,null,{"v":3.2,"d":"3.20"},{"v":27.264,"d":"27.26"}]
[null,null,2,3.97,null,{"v":3.2,"d":"3.20"},{"v":25.408,"d":"25.41"}]
[null,"Changing room",2,3.05,null,{"v":3.2,"d":"3.20"},19.52]
[null,null,2,3.05,null,{"v":3.2,"d":"3.20"},19.52]
[null,"changing room toilet",2,2.13,null,{"v":3.2,"d":"3.20"},{"v":13.632,"d":"13.63"}]
[null,null,2,{"v":1.2,"d":"1.20"},null,{"v":3.2,"d":"3.20"},7.68]
[null,"WC",2,{"v":1.2,"d":"1.20"},null,{"v":3.2,"d":"3.20"},7.68]
[null,null,2,{"v":1.6,"d":"1.60"},null,{"v":3.2,"d":"3.20"},{"v":10.240000000000002,"d":"10.24"}]
[null,"Toilet",2,{"v":1.2,"d":"1.20"},null,{"v":3.2,"d":"3.20"},7.68]
[null,null,2,{"v":1.6,"d":"1.60"},null,{"v":3.2,"d":"3.20"},{"v":10.240000000000002,"d":"10.24"}]
[null,"Passage (back side)",2,11.51,null,{"v":3.2,"d":"3.20"},{"$f":"C377*D377*F377","v":{"v":73.664,"d":"73.66"}}]
[null,null,2,4.95,null,{"v":3.2,"d":"3.20"},{"v":31.680000000000003,"d":"31.68"}]
[null,null,2,2.13,null,{"v":3.2,"d":"3.20"},{"v":13.632,"d":"13.63"}]
[{"$nulls":5},"Total",{"$f":"SUM(G365:G379)","v":{"v":326.33600000000007,"d":"326.34"}},null,"Sqm"]
[]
[25,"Plastering with cement mortar (1:4), 15 mm thick on brickwork in substructure as per\ntechnical specification Clauses 613.4 & 1204"]
[null,"External walls"]
[null,"x axis",1,19.92,null,{"v":3.2,"d":"3.20"},{"$f":"D384*F384","v":{"v":63.74400000000001,"d":"63.74"}}]
[null,"y axis",1,{"v":32.4,"d":"32.40"},null,{"v":3.2,"d":"3.20"},{"$f":"D385*F385","v":103.68}]
[{"$nulls":5},"Total",{"$f":"SUM(G384:G385)","v":{"v":167.424,"d":"167.42"}},null,"SQM"]
[26,"Providing  and  fixing  Ist  quality  ceramic  glazed wall   tiles    conforming   to   IS :  15622  (thickness to be specified by the manufacture ) of  approved make  in  all  colours,  shades  except  burgundy, bottle green, black of  any  size  as approved  by Engineer-in-Charge  in   skirting,  risers   of   steps and   dados  over  12  mm  thick  bed  of  cement Mortar  1:3  (1  cement  :  3   coarse   sand)   and jointing   with  grey   cement   slurry   @   3.3kg  per sqm   including  pointing  in  white  cement  mixed with  pigment  of  matching   shade  complete."]
[null,"Minor OT",2,4.57,null,{"v":1.5,"d":"1.50"},{"$f":"C388*D388*F388","v":13.71}]
[null,null,2,4.57,null,{"v":1.5,"d":"1.50"},{"$f":"C389*D389*F389","v":13.71}]
[null,"Labour delivery room",2,4.26,null,{"v":1.5,"d":"1.50"},12.78]
[null,null,2,3.97,null,{"v":1.5,"d":"1.50"},11.91]
[null,"Changing room",2,3.05,null,{"v":1.5,"d":"1.50"},{"v":9.149999999999999,"d":"9.15"}]
[null,null,2,3.05,null,{"v":1.5,"d":"1.50"},{"v":9.149999999999999,"d":"9.15"}]
[null,"changing room toilet",2,2.13,null,{"v":1.5,"d":"1.50"},6.39]
[null,null,2,{"v":1.2,"d":"1.20"},null,{"v":1.5,"d":"1.50"},{"v":3.5999999999999996,"d":"3.60"}]
[null,"WC",2,{"v":1.2,"d":"1.20"},null,{"v":1.5,"d":"1.50"},{"v":3.5999999999999996,"d":"3.60"}]
[null,null,2,{"v":1.6,"d":"1.60"},null,{"v":1.5,"d":"1.50"},{"$f":"C397*D397*F397","v":{"v":4.800000000000001,"d":"4.80"}}]
[null,"Toilet",2,{"v":1.2,"d":"1.20"},null,{"v":1.5,"d":"1.50"},{"v":3.5999999999999996,"d":"3.60"}]
[null,null,2,{"v":1.6,"d":"1.60"},null,{"v":1.5,"d":"1.50"},{"v":4.800000000000001,"d":"4.80"}]
[null,"Passage (back side)",2,11.51,null,{"v":1.5,"d":"1.50"},34.53]
[null,null,2,4.95,null,{"v":1.5,"d":"1.50"},{"v":14.850000000000001,"d":"14.85"}]
[null,null,2,2.13,null,{"v":1.5,"d":"1.50"},6.39]
[{"$nulls":5},"Total",{"$f":"SUM(G388:G402)","v":{"v":152.96999999999994,"d":"152.97"}},null,"Sqm"]
[27,"Providing and applying white cement based putty of  average  thickness  1  mm,  of  approved  brand and manufacturer, over the plastered wall surface to    prepare    the    surface    even    and    smooth\ncomplete."]
[null,"Area of l wall",{"$nulls":4},{"$f":"SUM(G380+G386)","v":{"v":493.7600000000001,"d":"493.76"}}]
[null,"Area of ceiling",{"$nulls":4},156.69]
[{"$nulls":5},"Total",{"$f":"SUM(G405:G406)","v":650.45},null,"Sqm"]
[]
[28,"Distempering  with  oil  bound  washable  distemper of  approved   brand  and  manufacture  to  give  an even shade (New work (two or more coats) over and including priming coat  with cement primer) in\nCeiling Area"]
[null,"Area same as above item of wall putty"]
[{"$nulls":5},"Total",650.45,null,"Sqm"]
[]
[]
[30,"Painting with synthetic enamel paint of approved brand and manufacture of required colour to give an even shade : Two or more coats on new work over an under coat of suitable shade with ordinary paint of approved brand and manufacture"]
[null,"Area 2.40 times the area of  doors",1,{"v":2.4,"d":"2.40"},null,91.74,{"$f":"D415*F415","v":{"v":220.176,"d":"220.18"}}]
[null,"Area same as windows girlls",1,null,null,12.72,{"v":6.3,"d":"6.30"}]
[{"$nulls":5},"Total",{"$f":"SUM(G415:G416)","v":{"v":226.476,"d":"226.48"}},null,"Sqm"]
[31,"TLM Painting works",1,50,null,1.5,null,{"$f":"D418*F418","v":{"v":75,"d":"75.00"}},"Sqm"]
[]
[32,"Providing and fixing 2 mm thick M.S. sheet sliding-shutters, with frame and diagonal braces of 40x40x6 mm angle iron, 3 mm M.S. gusset plates at the junctions and corners, 25 mm dia pulley, 40x40x6 mm angle and T iron guide at the top and bottom respectively, including applying a priming coat of approved steel primer",1,3.5,null,2.5,{"$f":"D420*F420","v":8.75},null,"sqm"]

{"sheet":"ABSTRACT OF BOUNDARY WALL","index":5,"n_rows":24,"n_cols":7,"rows_kept":24,"merged":[[0,0,0,6],[1,0,1,6],[23,4,23,5]]}
["DETAILED ESTIMATE REPORT FOR P.H.C. CENTER, SUMAN NAGAR,\nHARIDWAR"]
["ABSTRACT OF COST - BOUNDARY WALL (47 M)"]
["SL. No.","DSR/SOR NO.\n2023","Description","Quantity","Unit","Rate","Amount"]
[null,"(A)","EARTH WORK"]
[1,"SOR MORTH 12-1-1-A-1  2019","Earth work in excavation of foundation of structures as per drawing and technical \nspecification, including setting out, construction of shoring and bracing, removal of \nstumps and other deleterious matter, dressing of sides and bottom and backfilling with \napproved material.\n12-1-1 Ordinary soil",{"$f":"'BOUNDARY WALL MEASUREMENT'!G13","v":21.66},"Cum",{"v":0,"d":"0.00"},{"$f":"D5*F5","v":{"v":0,"d":"0.00"}}]
[null,"(B)","CONCRETE WORK"]
[3,"SOR MORD 11-4-1-1","Providing  and  laying  in  position  cement  concrete  of specified grade   excluding  the  cost of  centering and shuttering  -  All   work  up  to   plinth   level   1:4:8   (1 Cement    :    4    coarse    sand    :    8    graded    stone\naggregate 40 mm nominal size).",{"$f":"'BOUNDARY WALL MEASUREMENT'!G25","v":{"v":3.1900000000000004,"d":"3.19"}},"Cum",{"v":0,"d":"0.00"},{"$f":"D7*F7","v":{"v":0,"d":"0.00"}}]
[4,"DSR VOL1 4.1","Providing   and   laying   damp-proof   course   40mm thick   with   cement   concrete   1:2:4   (1   cement   :  2 coarse  sand  :  4  graded  stone  aggregate 12.5mm\nnominal size).",{"$f":"'BOUNDARY WALL MEASUREMENT'!G30","v":10.81},"Sqm",{"v":0,"d":"0.00"},{"v":0,"d":"0.00"}]
[null,"(C)","REINFORCED CEMENT CONCRETE WORK"]
[5,"SOR MORD 11-4-4","Providing  concrete  for  plain/  reinforced  concrete  in open foundations complete as\nper drawings and technical specifications Clause 802,\n803, 1202 & 1203, R.C.C grade M 20"]
[null,null,"1:1.5:3  (1  cement  :  1.5  coarse  sand  (zone-III):  3\ngraded stone aggregate 20 mm nominal size)",{"$f":"'BOUNDARY WALL MEASUREMENT'!G45","v":{"v":3.9763,"d":"3.98"}},"Cum",{"v":0,"d":"0.00"},{"v":0,"d":"0.00"}]
[6,"SOR MORD 13-1-1-1-A","Providing  and  laying  reinforced  cement  concrete  in superstructure as per drawing\nand technical specifications Clauses 800, 1205.4 and\n1205.5 ,R.C.C grade M 20, height upto 5m",{"$f":"'BOUNDARY WALL MEASUREMENT'!G49","v":1.11},"Cum",{"v":0,"d":"0.00"},{"v":0,"d":"0.00"}]
[7,"SOR MORD 11-8","Steel    reinforcement    for    R.C.C.    work    including straightening, cutting, bending, placing in position and binding   all   complete   upto   plinth   level.   Thermo- Mechanically Treated bars of grade Fe-500D or more",{"$f":"'BOUNDARY WALL MEASUREMENT'!G58","v":{"v":748,"d":"748.00"}},"Kg",{"v":0,"d":"0.00"},{"v":0,"d":"0.00"}]
[8,"DSR VOL1\n5.9","Centring and shuttering including strutting,ropping etc.\nand  removal of form for"]
["(a)","5.9.1","Foundations,  footings,  bases   of   columns,  etc.  for\nmass concrete.",{"$f":"'BOUNDARY WALL MEASUREMENT'!G62","v":13.44},"Sqm",{"v":0,"d":"0.00"},{"v":0,"d":"0.00"}]
["(b)","5.9.6","Columns, Pillars, Piers, Abutments, Posts and Struts.",{"$f":"'BOUNDARY WALL MEASUREMENT'!G70","v":{"v":23.772,"d":"23.77"}},"Sqm",{"v":0,"d":"0.00"},{"v":0,"d":"0.00"}]
[]
[null,"(D)","BRICK WORK"]
[9,"SOR MORD 11-5-1 2019","Brick  masonry  work  in  cement  mortar  in  foundation complete excluding pointing and\nplastering as per drawing and technical specifications\nClauses 600, 1202 & 1203",{"$f":"'BOUNDARY WALL MEASUREMENT'!G77","v":4.01},"Cum",{"v":0,"d":"0.00"},{"v":0,"d":"0.00"}]
[10,"SOR MORD 11-5-1 2019","Brick masonry work in cement mortar in substructure complete excepting pointing\nand    plastering,    as    per    drawing    and    technical specification Clauses 602, 603, 604,\n1202 & 1204",{"$f":"'BOUNDARY WALL MEASUREMENT'!G86","v":12.23},"Cum",{"v":0,"d":"0.00"},{"v":0,"d":"0.00"}]
[]
[null,"(e)","FINISHING"]
[11,"SOR MORD\n12-3","15 mm cement plaster of mix : 1:6 (1 cement: 6 fine\nsand)",{"$f":"'BOUNDARY WALL MEASUREMENT'!G96","v":{"v":118.5,"d":"118.50"}},"sqm",{"v":0,"d":"0.00"},{"v":0,"d":"0.00"}]
[{"$nulls":4},"TOTAL",null,{"$f":"SUM(G5:G23)","v":{"v":0,"d":"0.00"}}]

{"sheet":"BOUNDARY WALL MEASUREMENT","index":6,"n_rows":96,"n_cols":8,"rows_kept":96,"merged":[[0,0,0,7],[1,0,1,7],[2,0,3,0],[2,1,3,1],[2,2,2,5],[2,6,3,7],[4,6,4,7],[44,4,44,5],[51,7,55,7]]}
["DETAILED ESTIMATE REPORT FOR P.H.C. CENTER, SUMAN NAGAR, HARIDWAR"]
[" DETAILS OF MEASUREMENTS BOUNDARY WALL (47.00 RMT.)"]
["SL.\nNO.","Particulars Items","Measurements",{"$nulls":3},"Quantity   or\nContents"]
[null,null,"No.","L.","B.","H."]
[1,2,3,4,5,6]
["(A)","EARTH WORK"]
[1,"Earth work in excavation of foundation of structures as per drawing and technical \nspecification, including setting out, construction of shoring and bracing, removal of \nstumps and other deleterious matter, dressing of sides and bottom and backfilling with \napproved material.\n12-1-1 Ordinary soil"]
[null,"Column footings"]
[null,"F1",14,{"v":1,"d":"1.00"},{"v":0.6,"d":"0.600"},{"v":0.9,"d":"0.90"},{"$f":"C9*D9*E9*F9","v":{"v":7.5600000000000005,"d":"7.56"}}]
[null,"Tie beams"]
[null,"X-X Axis",1,{"v":22,"d":"22.00"},{"v":0.5,"d":"0.50"},{"v":0.6,"d":"0.60"},{"$f":"D11*E11*F11","v":{"v":6.6,"d":"6.60"}}]
[null,"Y-Y Axis",1,{"v":25,"d":"25.00"},{"v":0.5,"d":"0.50"},{"v":0.6,"d":"0.60"},{"$f":"D12*E12*F12","v":{"v":7.5,"d":"7.50"}}]
[{"$nulls":5},"Total",{"$f":"G12+G11+G9","v":21.66},"Cum"]
[]
[2,"Filling available excavated  earth (excluding rock) in trenches,  plinth,  sides  of  foundations  etc.  in layers     not     exceeding     20cm     in      depth, consolidating      each      deposited      layer      by ramming and  watering,   lead  up to 50 m and lift\nupto 1.5 m."]
[null,null,1,{"v":0.8,"d":"0.80"},21.66,null,{"$f":"D16*E16","v":{"v":17.328,"d":"17.33"}}]
[{"$nulls":5},"Total",16.37,"Cum"]
["(B)","CONCRETE WORK"]
[3,"Providing and laying in position cement concrete of    specified    grade     excluding     the    cost    of centering  and  shuttering  -  All   work  up  to   plinth level   1:4:8   (1   Cement   :   4   coarse   sand   :   8 graded  stone  aggregate 40 mm nominal size)."]
[null,"Footing"]
[null,"F1",14,{"v":1,"d":"1.00"},{"v":0.6,"d":"0.600"},{"v":0.1,"d":"0.10"},{"$f":"C21*D21*E21*F21","v":{"v":0.8400000000000001,"d":"0.84"}}]
[null,"Tie beams",{"$nulls":4},{"$f":"C22*D22*E22*F22","v":{"v":0,"d":"0.00"}}]
[null,"X-X Axis",1,{"v":22,"d":"22.00"},{"v":0.5,"d":"0.50"},{"v":0.1,"d":"0.10"},{"v":1.1,"d":"1.10"}]
[null,"Y-Y Axis",1,{"v":25,"d":"25.00"},{"v":0.5,"d":"0.50"},{"v":0.1,"d":"0.10"},1.25]
[{"$nulls":5},"Total",{"$f":"SUM(G21:G24)","v":{"v":3.1900000000000004,"d":"3.19"}},"Cum"]
[]
[4,"Providing  and  laying  damp-proof  course  40mm thick  with   cement  concrete  1:2:4  (1  cement  :\n2   coarse   sand   :   4   graded   stone   aggregate\n12.5mm nominal size)."]
[null,"X-X Axis",1,{"v":22,"d":"22.00"},0.23,null,{"$f":"D28*E28","v":{"v":5.0600000000000005,"d":"5.06"}}]
[null,"Y-Y Axis",1,{"v":25,"d":"25.00"},0.23,null,{"$f":"D29*E29","v":5.75}]
[{"$nulls":5},"Total",{"$f":"SUM(G28:G29)","v":10.81},"Sqm"]
[]
["(C)","REINFORCED CEMENT CONCRETE WORK"]
[5,"Providing and laying in position specified grade of reinforced  cement concrete excluding the cost of centring, shuttering,  finishing and reinforcement -\nAll work upto plinth level"]
["(a)","1:1.5:3 (1 cement : 1.5  coarse sand  (zone-III): 3 graded stone aggregate 20 mm nominal size)"]
[null,"Footing"]
[null,null,14,{"v":0.9,"d":"0.90"},{"v":0.6,"d":"0.600"},{"v":0.2,"d":"0.20"},{"$f":"C36*D36*E36*F36","v":{"v":1.512,"d":"1.51"}}]
[{"$nulls":5},"Total(a)",{"v":1.3,"d":"1.30"},"Cum"]
["(b)","Columns up to plinth level"]
[null,"C1",14,0.23,0.23,{"v":0.3,"d":"0.30"},{"$f":"C39*D39*E39*F39","v":{"v":0.22218000000000002,"d":"0.22"}}]
[{"$nulls":5},"Total(b)",0.19,"Cum"]
["(c)","Tie beams"]
[null,"X-X Axis",1,{"v":22,"d":"22.00"},0.23,0.23,{"$f":"D42*E42*F42","v":{"v":1.1638000000000002,"d":"1.16"}}]
[null,"Y-Y Axis",1,{"v":25,"d":"25.00"},0.23,0.23,{"$f":"D43*E43*F43","v":{"v":1.3225,"d":"1.32"}}]
[{"$nulls":5},"Total(c)",{"$f":"SUM(G42:G43)","v":{"v":2.4863,"d":"2.49"}},"Cum"]
[{"$nulls":4},"TOTAL (A+B+C)",null,{"$f":"G44+G40+G37","v":{"v":3.9763,"d":"3.98"}},"Cum"]
[6,"Reinforced  cement  concrete  work  in  walls  (any thickness),       including      attached      pilasters, buttresses,   plinth   and   string   courses,    fillets, columns,   pillars,   piers,abutments,   posts   and struts  etc.  upto   floor  five  level  excluding  cost of centring,  shuttering,  finishing  and  reinforcement 1:1.5:3    (1    cement    :    1.5    coarse   sand    :   3 graded  stone  aggregate 20 mm nominal size)"]
["(a)","Columns above ground"]
[null,"C1",14,0.23,0.23,{"v":1.5,"d":"1.50"},{"$f":"C48*D48*E48*F48","v":{"v":1.1109,"d":"1.11"}}]
[{"$nulls":5},"Total(a)",1.11,"Cum"]
[]
[7,"Steel   reinforcement   for   R.C.C.   work   including straightening, cutting, bending, placing in position and binding all complete upto plinth level. Thermo Mechanically  Treated  bars  of  grade  Fe-500D  or\nmore"]
[null,"Footing  @1.0%",{"$nulls":3},{"$f":"G37","v":{"v":1.3,"d":"1.30"}},{"$f":"F52*1%","v":{"v":0.013000000000000001,"d":"0.01"}},"density of steel 78.5q\nper cum"]
[null,"Columns  @2.5%",{"$nulls":3},{"$f":"SUM(G49+G40)","v":{"v":1.3,"d":"1.30"}},{"$f":"F53*2.5%","v":{"v":0.0325,"d":"0.03"}}]
[null,"Beams @ 2.0%",{"$nulls":3},{"$f":"G44","v":{"v":2.4863,"d":"2.49"}},{"$f":"F54*2%","v":{"v":0.049726,"d":"0.05"}}]
[{"$nulls":5},"Sub Total",{"$f":"SUM(G51:G54)","v":{"v":0.095226,"d":"0.10"}}]
[null,null,1,{"$f":"G55","v":{"v":0.095226,"d":"0.10"}},{"v":78.5,"d":"78.50"},null,{"$f":"D56*E56","v":{"v":7.4752410000000005,"d":"7.48"}}]
[{"$nulls":5},"Total",7.48,"Qtl"]
[{"$nulls":5},"Total",{"v":748,"d":"748.00"},"kg"]
[8,"Centring and shuttering including strutting,ropping\netc. and  removal of form for"]
["(a)","Foundations, footings, bases of columns, etc. for\nmass concrete."]
[null,"F1",14,{"v":3.2,"d":"3.20"},null,{"v":0.3,"d":"0.30"},{"$f":"C61*D61*F61","v":{"v":13.440000000000001,"d":"13.44"}}]
[{"$nulls":5},"Total(a)",13.44,"Sqm"]
[]
["(b)","Columns,  Pillars,  Piers,  Abutments,  Posts  and\nStruts."]
[null,"Columns"]
[null,"Upto tie bems"]
[null,"F1",14,1.06,null,{"v":0.3,"d":"0.30"},{"$f":"C67*D67*F67","v":{"v":4.452,"d":"4.45"}}]
[null,"Columns up to roof slab"]
[null,"C1",14,0.92,null,{"v":1.5,"d":"1.50"},{"$f":"C69*D69*F69","v":19.32}]
[{"$nulls":5},"Total(b)",{"$f":"SUM(G67:G69)","v":{"v":23.772,"d":"23.77"}},"Sqm"]
["(D)","BRICK WORK"]
[9,"Brick  work  with  common  burnt  clay  F.P.S.  (non modular)   bricks   of   class   designation   7.5   in foundation  and  plinth  in:  Cement  mortar  1:6  (1\ncement : 6 coarse sand)"]
[null,"Cement mortar 1:6 (1 cement : 6 coarse sand)"]
[null,"X-X Axis",1,{"v":22,"d":"22.00"},{"v":0.3,"d":"0.30"},{"v":0.3,"d":"0.30"},{"$f":"C74*D74*E74*F74","v":{"v":1.9799999999999998,"d":"1.98"}}]
[null,"Y-Y Axis",1,{"v":25,"d":"25.00"},{"v":0.3,"d":"0.30"},{"v":0.3,"d":"0.30"},{"$f":"C75*D75*E75*F75","v":2.25}]
[null,"(-)     Column",14,0.23,0.23,{"v":0.3,"d":"0.30"},{"v":0.22218000000000002,"d":"0.22"}]
[{"$nulls":5},"Total",{"$f":"SUM(G74+G75-0.22)","v":4.01},"Cum"]
[]
[10,"Brick  work  with  common  burnt  clay  F.P.S.  (non modular)   bricks   of   class   designation   7.5   in superstructure  above  plinth  level  up  to  floor  V level in  all shapes  and sizes  in : Cement mortar\n1:6 (1 cement : 6 coarse sand)"]
[null,"Cement mortar 1:6 (1 cement : 6 coarse sand)"]
[null,"X-X Axis",1,{"v":22,"d":"22.00"},{"v":0.23,"d":"0.230"},{"v":1.5,"d":"1.50"},{"$f":"C81*D81*E81*F81","v":{"v":7.590000000000001,"d":"7.59"}}]
[null,"Y-Y Axis",1,{"v":25,"d":"25.00"},{"v":0.23,"d":"0.230"},{"v":1.5,"d":"1.50"},{"$f":"C82*D82*E82","v":5.75}]
[{"$nulls":5},"Total",{"$f":"SUM(G81:G82)","v":13.34},"Cum"]
[null,"Column",14,0.23,{"v":0.23,"d":"0.230"},{"v":1.5,"d":"1.50"},{"$f":"C84*D84*E84*F84","v":{"v":1.1109,"d":"1.11"}}]
[{"$nulls":5},"Total",1.11,"(-)"]
[{"$nulls":5},"Total",{"$f":"G83-G85","v":12.23},"Cum"]
[]
[]
["(E)","FINISHING"]
[11,"12 mm cement plaster of mix : 1:6 (1 cement: 6\nfine sand)"]
[null,"External walls"]
[null,"X-X Axis",1,{"v":22,"d":"22.00"},null,{"v":1.5,"d":"1.50"},{"$f":"C92*D92*F92","v":{"v":33,"d":"33.00"}}]
[null,"Y-Y Axis",1,{"v":25,"d":"25.00"},null,{"v":1.5,"d":"1.50"},{"$f":"C93*D93*F93","v":{"v":37.5,"d":"37.50"}}]
[{"$nulls":5},"Total",{"$f":"SUM(G92:G93)","v":{"v":70.5,"d":"70.50"}},"Sqm"]
[null,"Internal walls (same as External wall)",{"$nulls":4},{"v":48,"d":"48.00"}]
[{"$nulls":5},"Total",{"$f":"SUM(G94:G95)","v":{"v":118.5,"d":"118.50"}},"Sqm"]

{"sheet":"ABSTRACT OF WATER SUPPLY","index":7,"n_rows":8,"n_cols":7,"rows_kept":8,"merged":[[0,0,0,6],[1,0,1,6]]}
["DETAILED ESTIMATE REPORT FOR P.H.C. CENTER, SUMAN NAGAR, HARIDWAR"]
["ABSTRACT OF COST -  (WATER SUPPLY)"]
["SL.No\n.","D.S.R 2023","Description","Quantity","Unit","Rate","Amount"]
[1,"(18.10.1)","Providing  and  fixing  G.I.  pipes  complete with   G.I.   fittings   and    clamps,   including cutting   and   making   good  the   walls   etc. Iinternal work - Exposed on  wall"]
[null,"(18.10.1)","15 mm dia nominal bore",{"v":60,"d":"60.00"},"Meter",{"v":0,"d":"0.00"},{"$f":"D5*F5","v":{"v":0,"d":"0.00"}}]
[2,"(18.49.1)","Providing and fixing C.P. brass bib cock of\napproved quality 15 mm nominial bore",8,"NOS",{"v":0,"d":"0.00"},{"$f":"D6*F6","v":{"v":0,"d":"0.00"}}]
[3,18.48,"Providing and placing on terrace (at all floor levels)  polyethylene  water  storage  tank  ISI\n:12701   marked   with   cover   and   suitable locking arrangement and making necessary holes  for  inlet,  outlet,  and  overflow  pipes but without fitting and the base support for\ntank.",{"v":2000,"d":"2000.00"},"Liter",{"v":0,"d":"0.00"},{"v":0,"d":"0.00"}]
[{"$nulls":5},"TOTAL",{"$f":"SUM(G5:G7)","v":{"v":0,"d":"0.00"}}]

{"sheet":"WATER SUPPLY MEASUREMENT","index":8,"n_rows":16,"n_cols":8,"rows_kept":16,"merged":[[0,0,0,7],[1,0,1,7],[2,0,3,0],[2,1,3,1],[2,2,2,5],[2,6,3,7],[4,6,4,7]]}
["DETAILED ESTIMATE REPORT FOR P.H.C. CENTER, SUMAN NAGAR, HARIDWAR"]
[" WATER SUPPLY "]
["SL.\nNO.","Particulars Items","Measurements",{"$nulls":3},"Quantity   or Contents"]
[null,null,"No.","L.","B.","H."]
[1,2,3,4,5,6,7]
[1,"Providing and fixing G.I. pipes complete with G.I. fittings and  clamps, including cutting and making good  the  walls  etc.  Iinternal  work  -  Exposed  on\nwall"]
[null,"15 mm dia nominal bore"]
[null,"Internal pipe & wet riser to O.H.T"]
[null,null,1,60,null,null,{"v":60,"d":"60.00"}]
[{"$nulls":5},"Total",{"v":60,"d":"60.00"},"M"]
[2,"Providing   and   fixing   C.P.   brass   bib   cock   of\napproved quality 15 mm nominial bore"]
[null,"Ground floor",8,{"$nulls":3},{"v":8,"d":"8.00"}]
[{"$nulls":5},"Total",{"v":8,"d":"8.00"},"Nos"]
[3,"Providing  and  placing  on  terrace  (at  all  floor levels) polyethylene water storage tank ISI :12701 marked     with     cover     and     suitable    locking arrangement  and  making  necessary  holes  for inlet, outlet, and overflow pipes but without fitting\nand the base support for tank."]
[null,null,2,1000,null,null,{"v":2000,"d":"2000.00"}]
[{"$nulls":5},"Total",{"v":2000,"d":"2000.00"},"Lit"]

{"sheet":"ABSTRACT OF SANITARY WORKE","index":9,"n_rows":10,"n_cols":7,"rows_kept":10,"merged":[[0,0,0,6],[1,0,1,6]]}
["DETAILED ESTIMATE REPORT FOR P.H.C. CENTER, SUMAN NAGAR,\nHARIDWAR"]
["ABSTRACT OF COST- (SANITRAY WORKS)"]
["SL.No\n.","D.S.R 2023","Description","Quantity","Unit","Rate","Amount"]
[1,"VOL2 17.2","Providing  and  fixing  white  vitreous  china pedestal  type  water closet  (European  type W.C.  pan)  with  seat  and  lid,  10  litre  low level white P.V.C. flushing cistern, including flush pipe, with manually controlled device (handle lever), conforming to IS : 7231, with all fittings and\nfixtures   complete,   including   cutting   and making good the walls and floors wherever required  W.C.  pan  with  ISI  marked  white solid plastic seat and lid",{"v":4,"d":"4.00"},"Nos",{"v":0,"d":"0.00"},{"$f":"D4*F4","v":{"v":0,"d":"0.00"}}]
[2,"VOL2 17.7.1","Providing  and  fixing  wash  basin  with  C.I. brackets, 15 mm C.P . brass pillar taps, 32 mm C.P . brass waste of standard pattern, including  painting  of  fittings  and  brackets, cutting    and    making    good    the    walls wherever   require:White    Vitreous    China Wash  basin  size  630x450  mm  with  a  pair of 15 mm C.P . brass pillar taps",{"v":4,"d":"4.00"},"Nos",{"v":0,"d":"0.00"},{"v":0,"d":"0.00"}]
[]
[3,"VOL2 17.35","Providing and fixing soil , waste and vent pipes:"]
["(a)","17.35.1.1","100 mm dia.",20,"Meter",{"v":0,"d":"0.00"},{"v":0,"d":"0.00"}]
["(b)","17.35.2.1","75 mm dia",16,"Meter",{"v":0,"d":"0.00"},{"v":0,"d":"0.00"}]
[{"$nulls":5},"TOTAL",{"$f":"SUM(G4:G9)","v":{"v":0,"d":"0.00"}}]

{"sheet":"SANITARY WORK MEASUREMENT","index":10,"n_rows":95,"n_cols":8,"rows_kept":95,"merged":[[0,0,0,7],[1,0,1,7],[2,0,3,0],[2,1,3,1],[2,2,2,5],[2,6,3,7],[4,6,4,7]]}
["DETAILED ESTIMATE REPORT FOR P.H.C. CENTER, SUMAN NAGAR, HARIDWAR"]
[" SANITRAY WORKS "]
["SL.\nNO.","Particulars Items","Measurements",{"$nulls":3},"Quantity   or\nContents"]
[null,null,"No.","L.","B.","H."]
[1,2,3,4,5,6,7]
[]
[1,"Providing  and  fixing  water  closet  squatting  pan (Indian type W.C. pan ) with 100 mm sand cast Iron P or S trap, 10 litre low level white P .V .C. flushing cistern,    including    flush    pipe,    with    manually controlled device (handle lever) conforming to IS : 7231,   with   all   fittings   and   fixtures   complete, including  cutting  and  making  good  the  walls  and floors   wherever   required:White   Vitreous   china Orissa pattern W.C. pan of size 580x440 mm with\nintegral type foot rests"]
[null,null,4,{"$nulls":3},{"v":4,"d":"4.00"}]
[{"$nulls":5},"Total",{"v":4,"d":"4.00"},"Nos"]
[]
[2,"Providing  and  fixing  white  vitreous  china  pedestal type  water  closet  (European  type  W.C.  pan)  with seat and lid, 10 litre low level white P.V.C. flushing cistern,    including    flush    pipe,    with    manually controlled device (handle lever), conforming to IS : 7231, with all fittings and\nfixtures   complete,   including   cutting   and   making good the  walls and  floors wherever  required W.C. pan with ISI marked white solid plastic seat and lid"]
[null,null,3,{"$nulls":3},{"v":3,"d":"3.00"}]
[{"$nulls":5},"Total",{"v":3,"d":"3.00"},"Nos"]
[3,"Providing and fixing wash basin with C.I. brackets, 15 mm C.P . brass pillar taps, 32 mm C.P . brass waste  of  standard  pattern,  including  painting  of fittings and brackets, cutting and making good the walls wherever require:White Vitreous China Wash basin size 630x450 mm with a pair of 15 mm C.P .\nbrass pillar taps"]
[null,null,4,{"$nulls":3},{"v":4,"d":"4.00"}]
[{"$nulls":5},"Total",{"v":4,"d":"4.00"},"Nos"]
[4,"Providing  and  fixing  white  vitreous  china  flat  back or  wall  corner  type  lipped  front  urinal  basin  of 430x260x350 mm and 340x410x265 mm\nsizes  respectively  with  automatic  flushing  cistern with standard flush pipe and C.P. brass spreaders with   brass   unions   and   G.I   clamps   complete, including  painting  of  fittings  and  brackets,  cutting and  making  good  the  walls  and  floors  wherever required :One urinal basin with 5 litre white P.V.C.\nautomatic flushing cistern"]
[null,null,3,{"$nulls":3},{"v":3,"d":"3.00"}]
[{"$nulls":5},"Total",{"v":3,"d":"3.00"},"Nos"]
[]
[5,"Providing and fixing soil , waste and vent pipes:"]
["(a)","100 mm dia."]
[null,"ground floor",1,60,null,null,{"v":60,"d":"60.00"}]
[{"$nulls":5},"Total",{"v":60,"d":"60.00"},"M"]
["(b)","75 mm dia"]
[null,"ground floor",1,40,null,null,{"v":40,"d":"40.00"}]
[{"$nulls":5},"Total",{"v":40,"d":"40.00"},"M"]
[]
[6,"Providing   and   fixing   M.S.   holder-bat   clamps   of approved design to Sand Cast iron/cast iron (spun) pipe  embedded  in  and  including  cement  concrete blocks  10x10x10  cm  of  1:2:4  mix  (1  cement  :  2 coarse  sand  :  4  graded  stone  aggregate  20  mm nominal  size),  including  cost  of  cutting  holes  and making good the walls etc. :For 100 mm dia pipe"]
["(a)","100 mm dia."]
[null,"ground floor",15,{"$nulls":3},{"v":15,"d":"15.00"}]
[{"$nulls":5},"Total",{"v":15,"d":"15.00"},"Nos"]
["(b)","75 mm"]
[null,"ground floor",15,{"$nulls":3},{"v":15,"d":"15.00"}]
[{"$nulls":5},"Total",{"v":15,"d":"15.00"},"Nos"]
[]
[7,"Providing  and  fixing  bend  of  required  degree  with access  door,  insertion  rubber  washer  3  mm  thick, bolts and nuts complete."]
["(a)","100 mm dia."]
[null,"ground floor",15,{"$nulls":3},{"v":15,"d":"15.00"}]
[{"$nulls":5},"Total",{"v":15,"d":"15.00"},"Nos"]
["(b)","75 mm dia"]
[null,"ground floor",15,{"$nulls":3},{"v":15,"d":"15.00"}]
[{"$nulls":5},"Total",{"v":15,"d":"15.00"},"Nos"]
[]
[8,"Providing and fixing plain bend of required degree."]
["(a)","Sand cast iron S&S as per IS - 1729"]
[null,"ground floor",15,{"$nulls":3},{"v":15,"d":"15.00"}]
[{"$nulls":5},"Total",{"v":15,"d":"15.00"},"Nos"]
["(b)","Sand cast iron S&S as per IS -1729"]
[null,"ground floor",15,{"$nulls":3},{"v":15,"d":"15.00"}]
[{"$nulls":5},"Total",{"v":15,"d":"15.00"},"Nos"]
[]
[9,"Providing  and  fixing  100  mm  sand  cast  iron   S&S\nheel rest sanitry bend of required degree."]
["(a)","100 mm SCI S&S heel rest sanitary bend"]
[null,"W.cs"]
[null,"ground floor",10,{"$nulls":3},{"v":10,"d":"10.00"}]
[{"$nulls":5},"Total",{"v":10,"d":"10.00"},"Nos"]
["(b)","75 mm"]
[]
[null,"ground floor",10,{"$nulls":3},{"v":10,"d":"10.00"}]
[{"$nulls":5},"Total",{"v":10,"d":"10.00"},"Nos"]
[]
[10,"Providing  and  fixing  single  equal  plain  junction  of required  degree  with  access  door  insertion  rubber washer 3 mm thick bolts and nuts complete."]
["(a)","100x100x100 mm"]
[null,null,10,{"$nulls":3},{"v":10,"d":"10.00"}]
[{"$nulls":5},"Total",{"v":10,"d":"10.00"},"Nos"]
["(b)","75x75x75mm"]
[null,null,10,{"$nulls":3},{"v":10,"d":"10.00"}]
[{"$nulls":5},"Total",{"v":10,"d":"10.00"},"Nos"]
[]
[11,"Providing  and  fixing  100  mm  sand  cast  iron   s&s\nterminal guard"]
["(a)","100 mm SCI sands terminal guard"]
[null,"100mm",6,{"$nulls":3},{"v":6,"d":"6.00"}]
[{"$nulls":5},"Total",{"v":6,"d":"6.00"},"Nos"]
[]
[12,"Providing  and  fixing  100  mm  sand  cast  iron  S&S collar"]
["(a)","100 mm SCI sands collar"]
[null,"ground floor",6,{"$nulls":3},{"v":6,"d":"6.00"}]
[{"$nulls":5},"Total",{"v":6,"d":"6.00"},"Nos"]
["(b)","75 mm dia"]
[null,"ground floor",6,{"$nulls":3},{"v":6,"d":"6.00"}]
[{"$nulls":5},"Total",{"v":6,"d":"6.00"},"Nos"]
[]
[13,"Providing and fixing 100 mm M.S stays and clamps for  sand  cast  iron  /centrifugally  cast  (squn)  iron pipes of diameter:"]
[null,"100 mm MS stays and clamps"]
[null,"100 mm dia.",7,{"$nulls":3},{"v":7,"d":"7.00"}]
[{"$nulls":5},"Total",{"v":7,"d":"7.00"},"Nos"]
[]
[14,"Providing  and  fixing  trap  of  self  cleansing  design with screwed down or hinged grating with or without vent  arm  complete,  including  cost  of  cutting  and\nmaking good the walls and floors:"]
[null,"100 mm inlet and 75 mm outlet SCI tarp"]
[null,"Wash basin",5,{"$nulls":3},{"v":5,"d":"5.00"}]
[{"$nulls":5},"Total",{"v":5,"d":"5.00"},"Nos"]
[null,"100 mm inlet and 100 mm outlet SCI tarp"]
[null,"For urinials",3,{"$nulls":3},{"v":3,"d":"3.00"}]
[{"$nulls":5},"Total",{"v":3,"d":"3.00"},"Nos"]